Department,Entity,Pay Date,Product Family,Expense area,Supplier Name,Transaction Number,Net Amount
DESNZ,UKAEA,27/02/2024,Research,Other,Full Matrix Ltd,5170081,"-67,715.64"
DESNZ,UKAEA,27/02/2024,Research,Other,Full Matrix Ltd,5170078,"-63,712.78"
DESNZ,UKAEA,12/02/2024,Professional Services,Other,Appleyard Lees IP LLP,5169258,"1,001.10"
DESNZ,UKAEA,27/02/2024,Operational Goods,Other,Arco Ltd,5170754,"1,901.75"
DESNZ,UKAEA,19/02/2024,Travel,Other,Sundry Supplier,5170090,"1,968.75"
DESNZ,UKAEA,12/02/2024,Professional Services,Other,Appleyard Lees IP LLP,5169259,"2,056.70"
DESNZ,UKAEA,14/02/2024,ICT,Other,International Fire Consulting Ltd,5169692,"2,500.00"
DESNZ,UKAEA,27/02/2024,Communications,Other,Cision,5170810,"2,824.00"
DESNZ,UKAEA,27/02/2024,Facilities,Other,GALSON SCIENCES LIMITED,5170600,"4,380.00"
DESNZ,UKAEA,05/02/2024,Consultancy - Other (per Cabinet Office definition),Other,Adiuvo Engineering & Training Ltd,5168517,"6,000.00"
DESNZ,UKAEA,12/02/2024,Professional Services,Other,Haseltine Lake Kempner LLP,5169257,"7,760.00"
DESNZ,UKAEA,12/02/2024,Communications,Other,Simon Florey and Son Marquee Hire Limited,5169408,"25,832.10"
DESNZ,UKAEA,27/02/2024,Research,Other,Full Matrix Ltd,5170622,"42,795.14"
DESNZ,UKAEA,05/02/2024,Research,Other,Oxford Sigma Technologies Ltd,5168664,"60,973.30"
DESNZ,UKAEA,27/02/2024,Research,Other,Full Matrix Ltd,5170634,"76,455.33"
DESNZ,UKAEA,27/02/2024,Research,Other,Full Matrix Ltd,5170082,"81,258.77"
DESNZ,UKAEA,14/02/2024,Research,Other,Frazer Nash Consultancy,5169728,"100,000.00"
DESNZ,UKAEA,14/02/2024,Research,Other,AQSORPTION LIMITED,5169755,"136,696.00"
DESNZ,UKAEA,19/02/2024,Research,Other,University of Bristol,5170076,"172,032.00"
DESNZ,UKAEA,21/02/2024,Research,Other,Jacobs U.K. Limited,5170409,"174,000.00"
DESNZ,UKAEA,27/02/2024,Research,Other,Duality Quantum Photonics Ltd,5170621,"228,185.64"
DESNZ,UKAEA,14/02/2024,Research,Other,Cal Gavin Ltd,5169694,"230,000.00"
DESNZ,UKAEA,27/02/2024,Research,Other,TWI Ltd,5170683,"299,055.00"
DESNZ,UKAEA,14/02/2024,Temporary Staff - Rullion CMF/PO,Other,Rullion Engineering Ltd,5169383,503.70
DESNZ,UKAEA,07/02/2024,Temporary Staff - Rullion CMF/PO,Other,Rullion Engineering Ltd,5168976,539.50
DESNZ,UKAEA,14/02/2024,Temporary Staff - Rullion CMF/PO,Other,Rullion Engineering Ltd,5169284,590.00
DESNZ,UKAEA,07/02/2024,Temporary Staff - Rullion CMF/PO,Other,Rullion Engineering Ltd,5169119,849.00
DESNZ,UKAEA,21/02/2024,Temporary Staff - Rullion CMF/PO,Other,Rullion Engineering Ltd,5170003,"1,485.76"
DESNZ,UKAEA,07/02/2024,Temporary Staff - Rullion CMF/PO,Other,Rullion Engineering Ltd,5168901,"1,553.19"
DESNZ,UKAEA,07/02/2024,Temporary Staff - Rullion CMF/PO,Other,Rullion Engineering Ltd,5169128,"1,586.58"
DESNZ,UKAEA,14/02/2024,Temporary Staff - Rullion CMF/PO,Other,Rullion Engineering Ltd,5169344,"1,591.89"
DESNZ,UKAEA,14/02/2024,Temporary Staff - Rullion CMF/PO,Other,Rullion Engineering Ltd,5169431,"1,591.89"
DESNZ,UKAEA,14/02/2024,Temporary Staff - Rullion CMF/PO,Other,Rullion Engineering Ltd,5169422,"1,698.02"
DESNZ,UKAEA,14/02/2024,Temporary Staff - Rullion CMF/PO,Other,Rullion Engineering Ltd,5169430,"1,776.60"
DESNZ,UKAEA,07/02/2024,Temporary Staff - Rullion CMF/PO,Other,Rullion Engineering Ltd,5169032,"1,804.14"
DESNZ,UKAEA,14/02/2024,Temporary Staff - Rullion CMF/PO,Other,Rullion Engineering Ltd,5169296,"1,844.28"
DESNZ,UKAEA,07/02/2024,Temporary Staff - Rullion CMF/PO,Other,Rullion Engineering Ltd,5169005,"1,919.70"
DESNZ,UKAEA,07/02/2024,Temporary Staff - Rullion CMF/PO,Other,Rullion Engineering Ltd,5169167,"1,948.16"
DESNZ,UKAEA,07/02/2024,Temporary Staff - Rullion CMF/PO,Other,Rullion Engineering Ltd,5169075,"1,966.29"
DESNZ,UKAEA,07/02/2024,Temporary Staff - Rullion CMF/PO,Other,Rullion Engineering Ltd,5168940,"2,016.39"
DESNZ,UKAEA,14/02/2024,Temporary Staff - Rullion CMF/PO,Other,Rullion Engineering Ltd,5169628,"2,207.40"
DESNZ,UKAEA,07/02/2024,Temporary Staff - Rullion CMF/PO,Other,Rullion Engineering Ltd,5169114,"2,266.40"
DESNZ,UKAEA,14/02/2024,Temporary Staff - Rullion CMF/PO,Other,Rullion Engineering Ltd,5169298,"2,270.98"
DESNZ,UKAEA,07/02/2024,Temporary Staff - Rullion CMF/PO,Other,Rullion Engineering Ltd,5168604,"2,297.74"
DESNZ,UKAEA,14/02/2024,Temporary Staff - Rullion CMF/PO,Other,Rullion Engineering Ltd,5169551,"2,313.54"
DESNZ,UKAEA,07/02/2024,Temporary Staff - Rullion CMF/PO,Other,Rullion Engineering Ltd,5168863,"2,397.47"
DESNZ,UKAEA,07/02/2024,Temporary Staff - Rullion CMF/PO,Other,Rullion Engineering Ltd,5169168,"2,472.00"
DESNZ,UKAEA,07/02/2024,Temporary Staff - Rullion CMF/PO,Other,Rullion Engineering Ltd,5168941,"2,547.02"
DESNZ,UKAEA,14/02/2024,Temporary Staff - Rullion CMF/PO,Other,Rullion Engineering Ltd,5169560,"2,644.65"
DESNZ,UKAEA,07/02/2024,Temporary Staff - Rullion CMF/PO,Other,Rullion Engineering Ltd,5168903,"2,785.61"
DESNZ,UKAEA,07/02/2024,Temporary Staff - Rullion CMF/PO,Other,Rullion Engineering Ltd,5168853,"2,802.60"
DESNZ,UKAEA,07/02/2024,Temporary Staff - Rullion CMF/PO,Other,Rullion Engineering Ltd,5168893,"2,904.13"
DESNZ,UKAEA,07/02/2024,Temporary Staff - Rullion CMF/PO,Other,Rullion Engineering Ltd,5169084,"3,163.58"
DESNZ,UKAEA,14/02/2024,Temporary Staff - Rullion CMF/PO,Other,Rullion Engineering Ltd,5169477,"3,221.24"
DESNZ,UKAEA,07/02/2024,Temporary Staff - Rullion CMF/PO,Other,Rullion Engineering Ltd,5169113,"3,376.43"
DESNZ,UKAEA,07/02/2024,Temporary Staff - Rullion CMF/PO,Other,Rullion Engineering Ltd,5168726,"3,382.62"
DESNZ,UKAEA,07/02/2024,Temporary Staff - Rullion CMF/PO,Other,Rullion Engineering Ltd,5169008,"3,399.00"
DESNZ,UKAEA,14/02/2024,Temporary Staff - Rullion CMF/PO,Other,Rullion Engineering Ltd,5169562,"3,450.59"
DESNZ,UKAEA,07/02/2024,Temporary Staff - Rullion CMF/PO,Other,Rullion Engineering Ltd,5168932,"3,583.89"
DESNZ,UKAEA,14/02/2024,Temporary Staff - Rullion CMF/PO,Other,Rullion Engineering Ltd,5169550,"3,591.00"
DESNZ,UKAEA,14/02/2024,Temporary Staff - Rullion CMF/PO,Other,Rullion Engineering Ltd,5169649,"3,995.16"
DESNZ,UKAEA,07/02/2024,Temporary Staff - Rullion CMF/PO,Other,Rullion Engineering Ltd,5169059,"4,098.69"
DESNZ,UKAEA,07/02/2024,Temporary Staff - Rullion CMF/PO,Other,Rullion Engineering Ltd,5169163,"4,098.72"
DESNZ,UKAEA,07/02/2024,Temporary Staff - Rullion CMF/PO,Other,Rullion Engineering Ltd,5168986,"4,232.25"
DESNZ,UKAEA,07/02/2024,Temporary Staff - Rullion CMF/PO,Other,Rullion Engineering Ltd,5169206,"4,575.62"
DESNZ,UKAEA,07/02/2024,Temporary Staff - Rullion CMF/PO,Other,Rullion Engineering Ltd,5169162,"4,604.85"
DESNZ,UKAEA,07/02/2024,Temporary Staff - Rullion CMF/PO,Other,Rullion Engineering Ltd,5168754,"4,667.40"
DESNZ,UKAEA,14/02/2024,Temporary Staff - Rullion CMF/PO,Other,Rullion Engineering Ltd,5169652,"4,709.40"
DESNZ,UKAEA,14/02/2024,Temporary Staff - Rullion CMF/PO,Other,Rullion Engineering Ltd,5169754,"4,772.34"
DESNZ,UKAEA,07/02/2024,Temporary Staff - Rullion CMF/PO,Other,Rullion Engineering Ltd,5169072,"5,362.89"
DESNZ,UKAEA,07/02/2024,Temporary Staff - Rullion CMF/PO,Other,Rullion Engineering Ltd,5168982,"5,677.72"
DESNZ,UKAEA,14/02/2024,Temporary Staff - Rullion CMF/PO,Other,Rullion Engineering Ltd,5169650,"5,895.20"
DESNZ,UKAEA,07/02/2024,Temporary Staff - Rullion CMF/PO,Other,Rullion Engineering Ltd,5168955,"5,952.98"
DESNZ,UKAEA,21/02/2024,Temporary Staff - Rullion CMF/PO,Other,Rullion Engineering Ltd,5170093,"6,035.40"
DESNZ,UKAEA,07/02/2024,Temporary Staff - Rullion CMF/PO,Other,Rullion Engineering Ltd,5169093,"6,126.09"
DESNZ,UKAEA,07/02/2024,Temporary Staff - Rullion CMF/PO,Other,Rullion Engineering Ltd,5168948,"6,373.37"
DESNZ,UKAEA,14/02/2024,Temporary Staff - Rullion CMF/PO,Other,Rullion Engineering Ltd,5169424,"6,658.39"
DESNZ,UKAEA,07/02/2024,Temporary Staff - Rullion CMF/PO,Other,Rullion Engineering Ltd,5169095,"7,129.08"
DESNZ,UKAEA,07/02/2024,Temporary Staff - Rullion CMF/PO,Other,Rullion Engineering Ltd,5169097,"7,333.20"
DESNZ,UKAEA,07/02/2024,Temporary Staff - Rullion CMF/PO,Other,Rullion Engineering Ltd,5168837,"7,511.66"
DESNZ,UKAEA,14/02/2024,Temporary Staff - Rullion CMF/PO,Other,Rullion Engineering Ltd,5169341,"7,568.40"
DESNZ,UKAEA,14/02/2024,Temporary Staff - Rullion CMF/PO,Other,Rullion Engineering Ltd,5169328,"7,580.64"
DESNZ,UKAEA,14/02/2024,Temporary Staff - Rullion CMF/PO,Other,Rullion Engineering Ltd,5169411,"7,649.40"
DESNZ,UKAEA,07/02/2024,Temporary Staff - Rullion CMF/PO,Other,Rullion Engineering Ltd,5169029,"7,703.04"
DESNZ,UKAEA,07/02/2024,Temporary Staff - Rullion CMF/PO,Other,Rullion Engineering Ltd,5168952,"7,740.60"
DESNZ,UKAEA,07/02/2024,Temporary Staff - Rullion CMF/PO,Other,Rullion Engineering Ltd,5169076,"7,740.60"
DESNZ,UKAEA,07/02/2024,Temporary Staff - Rullion CMF/PO,Other,Rullion Engineering Ltd,5168858,"7,749.29"
DESNZ,UKAEA,07/02/2024,Temporary Staff - Rullion CMF/PO,Other,Rullion Engineering Ltd,5168949,"8,071.20"
DESNZ,UKAEA,07/02/2024,Temporary Staff - Rullion CMF/PO,Other,Rullion Engineering Ltd,5169094,"8,192.34"
DESNZ,UKAEA,14/02/2024,Temporary Staff - Rullion CMF/PO,Other,Rullion Engineering Ltd,5169330,"8,219.40"
DESNZ,UKAEA,07/02/2024,Temporary Staff - Rullion CMF/PO,Other,Rullion Engineering Ltd,5169126,"8,464.50"
DESNZ,UKAEA,07/02/2024,Temporary Staff - Rullion CMF/PO,Other,Rullion Engineering Ltd,5168947,"8,525.31"
DESNZ,UKAEA,14/02/2024,Temporary Staff - Rullion CMF/PO,Other,Rullion Engineering Ltd,5169283,"8,528.64"
DESNZ,UKAEA,07/02/2024,Temporary Staff - Rullion CMF/PO,Other,Rullion Engineering Ltd,5168933,"8,777.10"
DESNZ,UKAEA,07/02/2024,Temporary Staff - Rullion CMF/PO,Other,Rullion Engineering Ltd,5169202,"9,246.84"
DESNZ,UKAEA,21/02/2024,Temporary Staff - Rullion CMF/PO,Other,Rullion Engineering Ltd,5170369,"9,599.16"
DESNZ,UKAEA,07/02/2024,Temporary Staff - Rullion CMF/PO,Other,Rullion Engineering Ltd,5168950,"9,623.04"
DESNZ,UKAEA,07/02/2024,Temporary Staff - Rullion CMF/PO,Other,Rullion Engineering Ltd,5168931,"9,977.57"
DESNZ,UKAEA,07/02/2024,Temporary Staff - Rullion CMF/PO,Other,Rullion Engineering Ltd,5169062,"10,247.42"
DESNZ,UKAEA,14/02/2024,Temporary Staff - Rullion CMF/PO,Other,Rullion Engineering Ltd,5169388,"10,629.60"
DESNZ,UKAEA,14/02/2024,Temporary Staff - Rullion CMF/PO,Other,Rullion Engineering Ltd,5169372,"10,693.52"
DESNZ,UKAEA,07/02/2024,Temporary Staff - Rullion CMF/PO,Other,Rullion Engineering Ltd,5169013,"11,169.16"
DESNZ,UKAEA,07/02/2024,Temporary Staff - Rullion CMF/PO,Other,Rullion Engineering Ltd,5168951,"12,071.55"
DESNZ,UKAEA,07/02/2024,Temporary Staff - Rullion CMF/PO,Other,Rullion Engineering Ltd,5168799,"12,559.74"
DESNZ,UKAEA,07/02/2024,Temporary Staff - Rullion CMF/PO,Other,Rullion Engineering Ltd,5169021,"12,817.40"
DESNZ,UKAEA,27/02/2024,Temporary Staff - Industrial Placements,Property,Arcadis Consulting (UK) Limited,5170571,"7,186.41"
DESNZ,UKAEA,12/02/2024,Communications,Other,Sundry Supplier,5169245,"1,190.00"
DESNZ,UKAEA,19/02/2024,ICT,Other,Bluefort Security Ltd,5169842,"1,298.92"
DESNZ,UKAEA,07/02/2024,Travel,Other,Employee Expenses,20019939,"2,064.00"
DESNZ,UKAEA,19/02/2024,ICT,Other,Computacenter UK Ltd,5170162,"2,240.93"
DESNZ,UKAEA,14/02/2024,ICT,Other,Oracle Corporation UK Limited,5169644,"2,296.83"
DESNZ,UKAEA,12/02/2024,ICT,Other,Bluefort Security Ltd,5169249,"2,756.00"
DESNZ,UKAEA,05/02/2024,ICT,Other,Logicalis UK Limited,5168519,"3,069.15"
DESNZ,UKAEA,27/02/2024,ICT,Other,Oracle Corporation UK Limited,5170658,"5,736.06"
DESNZ,UKAEA,19/02/2024,ICT,Other,Oracle Corporation UK Limited,5170089,"7,428.96"
DESNZ,UKAEA,19/02/2024,ICT,Other,Oracle Corporation UK Limited,5170184,"10,802.14"
DESNZ,UKAEA,19/02/2024,ICT,Other,Logicalis UK Limited,5170088,"13,325.70"
DESNZ,UKAEA,27/02/2024,ICT,Other,NV5 Geospatial Solutions UK Ltd,5169815,"17,550.00"
DESNZ,UKAEA,12/02/2024,Research,Other,DigiLab Solutions Ltd,5169579,"21,313.91"
DESNZ,UKAEA,19/02/2024,ICT,Other,Oracle Corporation UK Limited,5170087,"24,701.28"
DESNZ,UKAEA,19/02/2024,Research,Other,UK Research and Innovation,5170062,"174,171.00"
DESNZ,UKAEA,12/02/2024,Professional Services,Other,RWS Information Ltd,5169253,900.00
DESNZ,UKAEA,14/02/2024,Temporary Staff - Rullion CMF/PO,Fusion,Rullion Engineering Ltd,5169808,"1,396.26"
DESNZ,UKAEA,14/02/2024,Temporary Staff - Rullion CMF/PO,Fusion,Rullion Engineering Ltd,5169361,"3,307.44"
DESNZ,UKAEA,14/02/2024,Temporary Staff - Rullion CMF/PO,Fusion,Rullion Engineering Ltd,5169278,"3,734.64"
DESNZ,UKAEA,14/02/2024,Temporary Staff - Rullion CMF/PO,Fusion,Rullion Engineering Ltd,5169269,"7,261.89"
DESNZ,UKAEA,14/02/2024,Temporary Staff - Rullion CMF/PO,Fusion,Rullion Engineering Ltd,5169294,"7,399.05"
DESNZ,UKAEA,07/02/2024,Temporary Staff - Rullion CMF/PO,Fusion,Rullion Engineering Ltd,5168896,"7,494.08"
DESNZ,UKAEA,07/02/2024,Temporary Staff - Rullion CMF/PO,Fusion,Rullion Engineering Ltd,5168939,"8,066.27"
DESNZ,UKAEA,14/02/2024,Temporary Staff - Rullion CMF/PO,Fusion,Rullion Engineering Ltd,5169653,"8,265.00"
DESNZ,UKAEA,07/02/2024,Temporary Staff - Rullion CMF/PO,Fusion,Rullion Engineering Ltd,5169028,"8,866.35"
DESNZ,UKAEA,29/02/2024,Engineering Goods,Fusion,Southern Electric Power Distribution plc,5171040,"-4,391.91"
DESNZ,UKAEA,12/02/2024,Engineering Goods,Fusion,RS Components Ltd,5169382,501.20
DESNZ,UKAEA,27/02/2024,Engineering Goods,Fusion,RS Components Ltd,5170764,501.69
DESNZ,UKAEA,19/02/2024,Relocation Costs,Fusion,Employee Expenses,20020136,503.20
DESNZ,UKAEA,05/02/2024,Engineering Goods,Fusion,Hilti GB Ltd,5168801,533.20
DESNZ,UKAEA,12/02/2024,Logistics and Shipping,Fusion,Clearview Imaging Limited,5169308,539.00
DESNZ,UKAEA,27/02/2024,Engineering Goods,Fusion,JKS UK LTD,5170835,548.00
DESNZ,UKAEA,27/02/2024,Engineering Goods,Fusion,Labtech International Ltd,5170523,554.58
DESNZ,UKAEA,21/02/2024,Engineering Goods,Fusion,RS Components Ltd,5170445,572.42
DESNZ,UKAEA,05/02/2024,Research,Fusion,Conway Marsh Garrett Technologies Limited,5168674,589.16
DESNZ,UKAEA,05/02/2024,Engineering Goods,Fusion,Anixter UK Ltd,5168759,600.63
DESNZ,UKAEA,05/02/2024,Engineering Goods,Fusion,RS Components Ltd,5168366,607.11
DESNZ,UKAEA,19/02/2024,Engineering Goods,Fusion,Hilti GB Ltd,5170079,623.84
DESNZ,UKAEA,05/02/2024,Engineering Goods,Fusion,Underwoods Electrical Distributors,5168688,634.57
DESNZ,UKAEA,07/02/2024,Engineering Goods,Fusion,Thorlabs Ltd,5169104,642.84
DESNZ,UKAEA,12/02/2024,Engineering Goods,Fusion,S.A.F.I. LTD,5169374,646.00
DESNZ,UKAEA,14/02/2024,Engineering Goods,Fusion,Leybold UK Ltd,5169689,648.00
DESNZ,UKAEA,05/02/2024,ICT,Fusion,Aztex Solutions Ltd,5168824,655.78
DESNZ,UKAEA,05/02/2024,Engineering Goods,Fusion,RS Components Ltd,5168687,683.92
DESNZ,UKAEA,27/02/2024,Engineering Goods,Fusion,RS Components Ltd,5170532,693.69
DESNZ,UKAEA,27/02/2024,Travel,Fusion,Employee Expenses,20020183,729.28
DESNZ,UKAEA,12/02/2024,Facilities,Fusion,ICS Cool Energy Ltd,5169370,730.94
DESNZ,UKAEA,21/02/2024,Engineering Goods,Fusion,Thorlabs Ltd,5170348,748.00
DESNZ,UKAEA,19/02/2024,Facilities,Fusion,Feedwater Ltd,5169995,749.00
DESNZ,UKAEA,05/02/2024,Engineering Goods,Fusion,Swagelok London,5168495,752.52
DESNZ,UKAEA,05/02/2024,Engineering Goods,Fusion,Swagelok London,5168423,753.30
DESNZ,UKAEA,27/02/2024,Engineering Goods,Fusion,Hutton Engineering (Precision) Ltd,5170467,769.56
DESNZ,UKAEA,07/02/2024,Engineering Goods,Fusion,Edm Precision Technologies Ltd,5169154,812.00
DESNZ,UKAEA,05/02/2024,Engineering Goods,Fusion,Donaldson Filtration (GB) Limited,5168371,820.50
DESNZ,UKAEA,19/02/2024,Engineering Goods,Fusion,Farnell Electronic Components Ltd,5170186,837.48
DESNZ,UKAEA,27/02/2024,Travel,Fusion,Employee Expenses,20020186,840.00
DESNZ,UKAEA,14/02/2024,Engineering Goods,Fusion,Swagelok London,5169778,877.20
DESNZ,UKAEA,12/02/2024,Engineering Goods,Fusion,Laser 2000 UK Ltd - GBP,5169410,878.00
DESNZ,UKAEA,05/02/2024,ICT,Fusion,RS Components Ltd,5168734,879.12
DESNZ,UKAEA,14/02/2024,Engineering Goods,Fusion,MKS Instrument UK Limited,5169781,892.50
DESNZ,UKAEA,21/02/2024,Engineering Goods,Fusion,Shropshire Stainless & Aluminium Ltd,5170368,933.00
DESNZ,UKAEA,27/02/2024,Engineering Goods,Fusion,Machine Building Systems Ltd.,5170565,938.00
DESNZ,UKAEA,27/02/2024,Engineering Goods,Fusion,Garner Osborne Circuits Ltd,5170819,975.76
DESNZ,UKAEA,12/02/2024,Engineering Goods,Fusion,NERO Pipeline Connections Ltd,5169376,"1,009.68"
DESNZ,UKAEA,27/02/2024,Engineering Goods,Fusion,Garner Osborne Circuits Ltd,5170820,"1,028.89"
DESNZ,UKAEA,27/02/2024,Engineering Goods,Fusion,Mouser Electronics,5170666,"1,037.36"
DESNZ,UKAEA,27/02/2024,Engineering Goods,Fusion,Garner Osborne Circuits Ltd,5170821,"1,041.28"
DESNZ,UKAEA,12/02/2024,Research,Fusion,Acantecs Limited,5169518,"1,056.00"
DESNZ,UKAEA,21/02/2024,Engineering Goods,Fusion,Hilti GB Ltd,5170444,"1,069.28"
DESNZ,UKAEA,19/02/2024,Engineering Goods,Fusion,Swagelok London,5170098,"1,091.30"
DESNZ,UKAEA,21/02/2024,Engineering Goods,Fusion,Haltermann Carless UK Ltd,5170338,"1,147.20"
DESNZ,UKAEA,27/02/2024,ICT,Fusion,Network Installation Solutions Ltd,5170602,"1,200.00"
DESNZ,UKAEA,22/02/2024,Engineering Goods,Fusion,Chart Ferox A.S.,5170213,"1,258.01"
DESNZ,UKAEA,27/02/2024,Engineering Goods,Fusion,BOC Ltd,5170538,"1,288.99"
DESNZ,UKAEA,19/02/2024,Relocation Costs,Fusion,Employee Expenses,20020136,"1,301.30"
DESNZ,UKAEA,07/02/2024,Engineering Goods,Fusion,Altrad Babcock Limited,5168958,"1,306.25"
DESNZ,UKAEA,12/02/2024,Facilities,Fusion,Hydroblast,5169377,"1,380.00"
DESNZ,UKAEA,21/02/2024,Facilities,Fusion,Hydroblast,5170364,"1,400.00"
DESNZ,UKAEA,05/02/2024,Engineering Goods,Fusion,RS Components Ltd,5168687,"1,409.17"
DESNZ,UKAEA,14/02/2024,Relocation Costs,Fusion,Employee Expenses,20020069,"1,420.32"
DESNZ,UKAEA,27/02/2024,Engineering Goods,Fusion,DMS LASER PROFILES Ltd.,5170675,"1,450.00"
DESNZ,UKAEA,12/02/2024,Energy and Fuels,Fusion,Edmundson Electricals Ltd,5169446,"1,463.99"
DESNZ,UKAEA,14/02/2024,Engineering Goods,Fusion,Wolseley UK Limited,5169638,"1,490.50"
DESNZ,UKAEA,12/02/2024,Logistics and Shipping,Fusion,Van Toan Lee LTD,5169285,"1,500.00"
DESNZ,UKAEA,05/02/2024,Engineering Goods,Fusion,RS Components Ltd,5168760,"1,547.14"
DESNZ,UKAEA,27/02/2024,Engineering Goods,Fusion,Thorlabs Ltd,5170663,"1,551.66"
DESNZ,UKAEA,12/02/2024,Engineering Goods,Fusion,T and T Tubecraft Ltd,5169483,"1,566.00"
DESNZ,UKAEA,12/02/2024,Energy and Fuels,Fusion,Edmundson Electricals Ltd,5169449,"1,609.97"
DESNZ,UKAEA,27/02/2024,Engineering Goods,Fusion,Thorlabs Ltd,5170664,"1,618.93"
DESNZ,UKAEA,21/02/2024,Engineering Goods,Fusion,Thorlabs Ltd,5170318,"1,639.20"
DESNZ,UKAEA,21/02/2024,Engineering Goods,Fusion,Ind-Tech Ltd,5170314,"1,798.06"
DESNZ,UKAEA,21/02/2024,Research,Fusion,University of Liverpool,5170290,"1,912.80"
DESNZ,UKAEA,19/02/2024,Engineering Goods,Fusion,RS Components Ltd,5170185,"1,921.69"
DESNZ,UKAEA,19/02/2024,Engineering Goods,Fusion,Swagelok London,5170097,"1,962.80"
DESNZ,UKAEA,05/02/2024,Engineering Goods,Fusion,Swansea Materials Research & Testing Ltd. SMaRT,5168622,"2,000.00"
DESNZ,UKAEA,27/02/2024,Facilities,Fusion,Anton Paar Ltd,5170687,"2,000.00"
DESNZ,UKAEA,12/02/2024,Engineering Goods,Fusion,VEQTER Ltd,5169229,"2,025.00"
DESNZ,UKAEA,05/02/2024,Engineering Goods,Fusion,RS Components Ltd,5168400,"2,164.19"
DESNZ,UKAEA,07/02/2024,Engineering Goods,Fusion,Emerson Process management Limited,5168936,"2,206.70"
DESNZ,UKAEA,14/02/2024,Engineering Goods,Fusion,Anchor pumps co Ltd,5169805,"2,289.70"
DESNZ,UKAEA,19/02/2024,Energy and Fuels,Fusion,Edmundson Electricals Ltd,5170025,"2,380.47"
DESNZ,UKAEA,07/02/2024,Engineering Goods,Fusion,Sarens UK Ltd,5169003,"2,480.00"
DESNZ,UKAEA,14/02/2024,Engineering Goods,Fusion,Sarens UK Ltd,5169303,"2,480.00"
DESNZ,UKAEA,12/02/2024,Engineering Goods,Fusion,Clearview Imaging Limited,5169308,"2,515.00"
DESNZ,UKAEA,19/02/2024,Research,Fusion,University of Warwick - GBP,5170177,"2,525.00"
DESNZ,UKAEA,19/02/2024,Engineering Goods,Fusion,FTI Ltd,5170174,"2,545.47"
DESNZ,UKAEA,21/02/2024,Other Employee Expenses,Fusion,Employee Expenses,20020171,"2,576.00"
DESNZ,UKAEA,21/02/2024,Engineering Goods,Fusion,S.A.F.I. LTD,5170337,"2,653.68"
DESNZ,UKAEA,12/02/2024,Engineering Goods,Fusion,Edmundson Electricals Ltd,5169243,"2,745.62"
DESNZ,UKAEA,12/02/2024,Energy and Fuels,Fusion,Edmundson Electricals Ltd,5169451,"2,787.75"
DESNZ,UKAEA,12/02/2024,Engineering Goods,Fusion,University of Warwick - GBP,5169358,"2,800.00"
DESNZ,UKAEA,14/02/2024,Engineering Goods,Fusion,Shropshire Stainless & Aluminium Ltd,5169794,"2,941.85"
DESNZ,UKAEA,14/02/2024,Engineering Goods,Fusion,Machine Building Systems Ltd.,5169660,"2,982.12"
DESNZ,UKAEA,27/02/2024,Engineering Goods,Fusion,Foremost Electronics Ltd,5170490,"2,986.17"
DESNZ,UKAEA,27/02/2024,Facilities,Fusion,Arcadis (UK) Ltd.,5170684,"3,028.16"
DESNZ,UKAEA,19/02/2024,Research,Fusion,University of York - GBP,5170060,"3,057.49"
DESNZ,UKAEA,12/02/2024,Energy and Fuels,Fusion,Edmundson Electricals Ltd,5169447,"3,080.46"
DESNZ,UKAEA,05/02/2024,Research,Fusion,University of Warwick - GBP,5167913,"3,125.00"
DESNZ,UKAEA,14/02/2024,Research,Fusion,Acantecs Limited,5169724,"3,168.00"
DESNZ,UKAEA,05/02/2024,Research,Fusion,University of Southampton,5168721,"3,227.93"
DESNZ,UKAEA,27/02/2024,Engineering Goods,Fusion,S.A.F.I. LTD,5170581,"3,283.32"
DESNZ,UKAEA,12/02/2024,Engineering Goods,Fusion,Van Toan Lee LTD,5169306,"3,400.00"
DESNZ,UKAEA,21/02/2024,ICT,Fusion,FS.com Innovation Ltd,5170391,"3,561.60"
DESNZ,UKAEA,12/02/2024,Energy and Fuels,Fusion,Edmundson Electricals Ltd,5169445,"3,585.54"
DESNZ,UKAEA,27/02/2024,Engineering Goods,Fusion,Kiartys Engineering Limited,5170515,"3,605.08"
DESNZ,UKAEA,05/02/2024,Engineering Goods,Fusion,Sundry Supplier,5168685,"3,640.00"
DESNZ,UKAEA,05/02/2024,Engineering Goods,Fusion,A W Clarke,5168771,"3,682.10"
DESNZ,UKAEA,05/02/2024,Engineering Goods,Fusion,Thorlabs Ltd,5168645,"3,726.81"
DESNZ,UKAEA,21/02/2024,Engineering Goods,Fusion,Manutan UK Limited,5170258,"4,074.77"
DESNZ,UKAEA,07/02/2024,Engineering Goods,Fusion,Ingrid West Machinery Ltd,5169222,"4,174.00"
DESNZ,UKAEA,05/02/2024,Research,Fusion,Holdson Limited,5168735,"4,200.00"
DESNZ,UKAEA,07/02/2024,Engineering Goods,Fusion,Swagelok London,5168957,"4,263.15"
DESNZ,UKAEA,14/02/2024,Engineering Goods,Fusion,RS Components Ltd,5169725,"4,321.80"
DESNZ,UKAEA,12/02/2024,Engineering Goods,Fusion,University of Warwick - GBP,5169359,"4,400.00"
DESNZ,UKAEA,12/02/2024,Energy and Fuels,Fusion,Edmundson Electricals Ltd,5169450,"4,509.28"
DESNZ,UKAEA,05/02/2024,Engineering Goods,Fusion,RS Components Ltd,5168401,"4,696.80"
DESNZ,UKAEA,19/02/2024,Research,Fusion,University of Leeds - GBP,5170014,"5,000.00"
DESNZ,UKAEA,08/02/2024,Engineering Goods,Fusion,Melcom Electronics,5168708,"5,150.01"
DESNZ,UKAEA,05/02/2024,Research,Fusion,Texture Jet Ltd,5168729,"5,750.00"
DESNZ,UKAEA,27/02/2024,ICT,Fusion,NV5 Geospatial Solutions UK Ltd,5169815,"5,850.00"
DESNZ,UKAEA,19/02/2024,Engineering Goods,Fusion,DWE Scientific,5169840,"6,054.00"
DESNZ,UKAEA,12/02/2024,Research,Fusion,Oxford University - GBP,5169523,"6,113.76"
DESNZ,UKAEA,14/02/2024,Engineering Goods,Fusion,Swagelok London,5169777,"6,600.00"
DESNZ,UKAEA,27/02/2024,Engineering Goods,Fusion,Swansea Materials Research & Testing Ltd. SMaRT,5170583,"6,930.69"
DESNZ,UKAEA,19/02/2024,Engineering Goods,Fusion,Power Products International Ltd.,5170102,"7,670.00"
DESNZ,UKAEA,12/02/2024,Research,Fusion,Oxford University - GBP,5169522,"8,350.98"
DESNZ,UKAEA,07/02/2024,Temporary Staff - Industrial Placements,Fusion,AtkinsRealis UK Ltd,5169140,"8,614.50"
DESNZ,UKAEA,08/02/2024,Engineering Goods,Fusion,MAGICS Instruments NV,5169270,"8,672.85"
DESNZ,UKAEA,19/02/2024,Research,Fusion,University of Leeds - GBP,5170013,"10,000.00"
DESNZ,UKAEA,19/02/2024,Research,Fusion,University of Leeds - GBP,5170015,"10,000.00"
DESNZ,UKAEA,27/02/2024,Temporary Staff - Industrial Placements,Fusion,AtkinsRealis UK Ltd,5170768,"10,078.00"
DESNZ,UKAEA,05/02/2024,Engineering Goods,Fusion,Anchor pumps co Ltd,5168654,"10,169.72"
DESNZ,UKAEA,21/02/2024,ICT,Fusion,Academia,5170272,"10,401.17"
DESNZ,UKAEA,27/02/2024,Temporary Staff - Industrial Placements,Fusion,AtkinsRealis UK Ltd,5170769,"10,635.57"
DESNZ,UKAEA,21/02/2024,Construction,Fusion,Altrad Babcock Limited,5170241,"11,458.00"
DESNZ,UKAEA,12/02/2024,Engineering Goods,Fusion,University of Manchester (GBP),5169487,"11,490.80"
DESNZ,UKAEA,27/02/2024,Temporary Staff - Industrial Placements,Fusion,AtkinsRealis UK Ltd,5170773,"11,580.00"
DESNZ,UKAEA,27/02/2024,Temporary Staff - Industrial Placements,Fusion,AtkinsRealis UK Ltd,5170771,"12,108.00"
DESNZ,UKAEA,05/02/2024,Consultancy - Other (per Cabinet Office definition),Fusion,King's College London,5168762,"12,411.93"
DESNZ,UKAEA,05/02/2024,Consultancy - Other (per Cabinet Office definition),Fusion,University of Oxford,5168572,"12,454.00"
DESNZ,UKAEA,19/02/2024,Research,Fusion,Oxford University - GBP,5170017,"13,118.04"
DESNZ,UKAEA,27/02/2024,Research,Fusion,University of York - GBP,5170614,"13,306.71"
DESNZ,UKAEA,07/02/2024,Engineering Goods,Fusion,Thorlabs Ltd,5169101,"13,431.68"
DESNZ,UKAEA,14/02/2024,Construction,Fusion,Altrad Babcock Limited,5169262,"13,666.51"
DESNZ,UKAEA,19/02/2024,Engineering Goods,Fusion,The University Of Sheffield,5170084,"14,300.00"
DESNZ,UKAEA,21/02/2024,Engineering Goods,Fusion,KC Scientific Ltd,5170302,"14,640.00"
DESNZ,UKAEA,27/02/2024,Temporary Staff - Industrial Placements,Fusion,AtkinsRealis UK Ltd,5170772,"16,148.45"
DESNZ,UKAEA,21/02/2024,Engineering Goods,Fusion,MKS Instrument UK Limited,5170331,"16,930.00"
DESNZ,UKAEA,22/02/2024,Consultancy - Other (per Cabinet Office definition),Fusion,MATERIALS DESIGN S.A.R.L.,5170113,"16,969.20"
DESNZ,UKAEA,27/02/2024,Construction,Fusion,Altrad Babcock Limited,5170495,"17,820.90"
DESNZ,UKAEA,05/02/2024,Engineering Goods,Fusion,Thorlabs Ltd,5168808,"19,121.01"
DESNZ,UKAEA,28/02/2024,Engineering Goods,Fusion,Iridian Spectral Technologies Ltd.,5170859,"20,028.61"
DESNZ,UKAEA,05/02/2024,Research,Fusion,University of Manchester (GBP),5168807,"20,683.44"
DESNZ,UKAEA,27/02/2024,Research,Fusion,University of Manchester (GBP),5170730,"25,003.12"
DESNZ,UKAEA,19/02/2024,Engineering Goods,Fusion,Saffron Scientific Equipment Ltd,5169859,"25,202.10"
DESNZ,UKAEA,27/02/2024,Construction,Fusion,Altrad Babcock Limited,5170525,"25,983.08"
DESNZ,UKAEA,15/02/2024,Engineering Goods,Fusion,Teledyne Signal Processing Devices,5169981,"44,391.33"
DESNZ,UKAEA,19/02/2024,Research,Fusion,University Of Birmingham - GBP,5170047,"50,000.00"
DESNZ,UKAEA,14/02/2024,Temporary Staff - Rullion CMF/PO,Fusion,Rullion Engineering Ltd,5169471,571.50
DESNZ,UKAEA,27/02/2024,Temporary Staff - Rullion CMF/PO,Fusion,Rullion Engineering Ltd,5170463,607.66
DESNZ,UKAEA,14/02/2024,Temporary Staff - Rullion CMF/PO,Fusion,Rullion Engineering Ltd,5169792,669.75
DESNZ,UKAEA,07/02/2024,Temporary Staff - Rullion CMF/PO,Fusion,Rullion Engineering Ltd,5169047,890.09
DESNZ,UKAEA,07/02/2024,Temporary Staff - Rullion CMF/PO,Fusion,Rullion Engineering Ltd,5168919,"1,069.09"
DESNZ,UKAEA,07/02/2024,Temporary Staff - Rullion CMF/PO,Fusion,Rullion Engineering Ltd,5169216,"1,110.38"
DESNZ,UKAEA,07/02/2024,Temporary Staff - Rullion CMF/PO,Fusion,Rullion Engineering Ltd,5169041,"1,125.18"
DESNZ,UKAEA,07/02/2024,Temporary Staff - Rullion CMF/PO,Fusion,Rullion Engineering Ltd,5168899,"1,205.84"
DESNZ,UKAEA,07/02/2024,Temporary Staff - Rullion CMF/PO,Fusion,Rullion Engineering Ltd,5168854,"1,453.37"
DESNZ,UKAEA,14/02/2024,Temporary Staff - Rullion CMF/PO,Fusion,Rullion Engineering Ltd,5169289,"1,611.90"
DESNZ,UKAEA,14/02/2024,Temporary Staff - Rullion CMF/PO,Fusion,Rullion Engineering Ltd,5169681,"1,731.60"
DESNZ,UKAEA,07/02/2024,Temporary Staff - Rullion CMF/PO,Fusion,Rullion Engineering Ltd,5168946,"1,859.97"
DESNZ,UKAEA,07/02/2024,Temporary Staff - Rullion CMF/PO,Fusion,Rullion Engineering Ltd,5169048,"1,861.25"
DESNZ,UKAEA,07/02/2024,Temporary Staff - Rullion CMF/PO,Fusion,Rullion Engineering Ltd,5169009,"1,905.84"
DESNZ,UKAEA,07/02/2024,Temporary Staff - Rullion CMF/PO,Fusion,Rullion Engineering Ltd,5168921,"1,910.26"
DESNZ,UKAEA,07/02/2024,Temporary Staff - Rullion CMF/PO,Fusion,Rullion Engineering Ltd,5169218,"1,910.26"
DESNZ,UKAEA,14/02/2024,Temporary Staff - Rullion CMF/PO,Fusion,Rullion Engineering Ltd,5169399,"1,933.68"
DESNZ,UKAEA,07/02/2024,Temporary Staff - Rullion CMF/PO,Fusion,Rullion Engineering Ltd,5169038,"1,957.73"
DESNZ,UKAEA,07/02/2024,Temporary Staff - Rullion CMF/PO,Fusion,Rullion Engineering Ltd,5168945,"2,002.24"
DESNZ,UKAEA,07/02/2024,Temporary Staff - Rullion CMF/PO,Fusion,Rullion Engineering Ltd,5168532,"2,011.06"
DESNZ,UKAEA,07/02/2024,Temporary Staff - Rullion CMF/PO,Fusion,Rullion Engineering Ltd,5168991,"2,015.82"
DESNZ,UKAEA,14/02/2024,Temporary Staff - Rullion CMF/PO,Fusion,Rullion Engineering Ltd,5169420,"2,035.36"
DESNZ,UKAEA,07/02/2024,Temporary Staff - Rullion CMF/PO,Fusion,Rullion Engineering Ltd,5168902,"2,102.82"
DESNZ,UKAEA,07/02/2024,Temporary Staff - Rullion CMF/PO,Fusion,Rullion Engineering Ltd,5168778,"2,117.61"
DESNZ,UKAEA,07/02/2024,Temporary Staff - Rullion CMF/PO,Fusion,Rullion Engineering Ltd,5168920,"2,164.23"
DESNZ,UKAEA,07/02/2024,Temporary Staff - Rullion CMF/PO,Fusion,Rullion Engineering Ltd,5169036,"2,377.48"
DESNZ,UKAEA,14/02/2024,Temporary Staff - Rullion CMF/PO,Fusion,Rullion Engineering Ltd,5169394,"2,392.67"
DESNZ,UKAEA,07/02/2024,Temporary Staff - Rullion CMF/PO,Fusion,Rullion Engineering Ltd,5169138,"2,428.14"
DESNZ,UKAEA,07/02/2024,Temporary Staff - Rullion CMF/PO,Fusion,Rullion Engineering Ltd,5169092,"2,438.26"
DESNZ,UKAEA,07/02/2024,Temporary Staff - Rullion CMF/PO,Fusion,Rullion Engineering Ltd,5169073,"2,491.50"
DESNZ,UKAEA,07/02/2024,Temporary Staff - Rullion CMF/PO,Fusion,Rullion Engineering Ltd,5169207,"2,550.39"
DESNZ,UKAEA,07/02/2024,Temporary Staff - Rullion CMF/PO,Fusion,Rullion Engineering Ltd,5169033,"2,579.23"
DESNZ,UKAEA,07/02/2024,Temporary Staff - Rullion CMF/PO,Fusion,Rullion Engineering Ltd,5169166,"2,602.13"
DESNZ,UKAEA,07/02/2024,Temporary Staff - Rullion CMF/PO,Fusion,Rullion Engineering Ltd,5168533,"2,603.22"
DESNZ,UKAEA,07/02/2024,Temporary Staff - Rullion CMF/PO,Fusion,Rullion Engineering Ltd,5169034,"2,680.98"
DESNZ,UKAEA,07/02/2024,Temporary Staff - Rullion CMF/PO,Fusion,Rullion Engineering Ltd,5169132,"2,718.16"
DESNZ,UKAEA,07/02/2024,Temporary Staff - Rullion CMF/PO,Fusion,Rullion Engineering Ltd,5169049,"2,737.68"
DESNZ,UKAEA,14/02/2024,Temporary Staff - Rullion CMF/PO,Fusion,Rullion Engineering Ltd,5169608,"2,747.47"
DESNZ,UKAEA,14/02/2024,Temporary Staff - Rullion CMF/PO,Fusion,Rullion Engineering Ltd,5169543,"2,760.46"
DESNZ,UKAEA,07/02/2024,Temporary Staff - Rullion CMF/PO,Fusion,Rullion Engineering Ltd,5169133,"2,781.56"
DESNZ,UKAEA,14/02/2024,Temporary Staff - Rullion CMF/PO,Fusion,Rullion Engineering Ltd,5169614,"2,837.70"
DESNZ,UKAEA,14/02/2024,Temporary Staff - Rullion CMF/PO,Fusion,Rullion Engineering Ltd,5169542,"2,882.44"
DESNZ,UKAEA,07/02/2024,Temporary Staff - Rullion CMF/PO,Fusion,Rullion Engineering Ltd,5168878,"2,958.30"
DESNZ,UKAEA,07/02/2024,Temporary Staff - Rullion CMF/PO,Fusion,Rullion Engineering Ltd,5168786,"2,966.85"
DESNZ,UKAEA,07/02/2024,Temporary Staff - Rullion CMF/PO,Fusion,Rullion Engineering Ltd,5168925,"3,039.61"
DESNZ,UKAEA,07/02/2024,Temporary Staff - Rullion CMF/PO,Fusion,Rullion Engineering Ltd,5168723,"3,466.32"
DESNZ,UKAEA,14/02/2024,Temporary Staff - Rullion CMF/PO,Fusion,Rullion Engineering Ltd,5169617,"3,564.86"
DESNZ,UKAEA,07/02/2024,Temporary Staff - Rullion CMF/PO,Fusion,Rullion Engineering Ltd,5168788,"3,595.36"
DESNZ,UKAEA,07/02/2024,Temporary Staff - Rullion CMF/PO,Fusion,Rullion Engineering Ltd,5168787,"3,605.01"
DESNZ,UKAEA,14/02/2024,Temporary Staff - Rullion CMF/PO,Fusion,Rullion Engineering Ltd,5169598,"3,612.40"
DESNZ,UKAEA,07/02/2024,Temporary Staff - Rullion CMF/PO,Fusion,Rullion Engineering Ltd,5169039,"3,777.75"
DESNZ,UKAEA,07/02/2024,Temporary Staff - Rullion CMF/PO,Fusion,Rullion Engineering Ltd,5168663,"3,791.78"
DESNZ,UKAEA,07/02/2024,Temporary Staff - Rullion CMF/PO,Fusion,Rullion Engineering Ltd,5168748,"3,791.79"
DESNZ,UKAEA,14/02/2024,Temporary Staff - Rullion CMF/PO,Fusion,Rullion Engineering Ltd,5169419,"3,791.79"
DESNZ,UKAEA,14/02/2024,Temporary Staff - Rullion CMF/PO,Fusion,Rullion Engineering Ltd,5169527,"3,798.00"
DESNZ,UKAEA,07/02/2024,Temporary Staff - Rullion CMF/PO,Fusion,Rullion Engineering Ltd,5168934,"3,847.50"
DESNZ,UKAEA,14/02/2024,Temporary Staff - Rullion CMF/PO,Fusion,Rullion Engineering Ltd,5169437,"3,927.12"
DESNZ,UKAEA,07/02/2024,Temporary Staff - Rullion CMF/PO,Fusion,Rullion Engineering Ltd,5168900,"4,046.39"
DESNZ,UKAEA,14/02/2024,Temporary Staff - Rullion CMF/PO,Fusion,Rullion Engineering Ltd,5169307,"4,115.40"
DESNZ,UKAEA,07/02/2024,Temporary Staff - Rullion CMF/PO,Fusion,Rullion Engineering Ltd,5169137,"4,153.89"
DESNZ,UKAEA,14/02/2024,Temporary Staff - Rullion CMF/PO,Fusion,Rullion Engineering Ltd,5169463,"4,219.96"
DESNZ,UKAEA,07/02/2024,Temporary Staff - Rullion CMF/PO,Fusion,Rullion Engineering Ltd,5168544,"4,220.06"
DESNZ,UKAEA,07/02/2024,Temporary Staff - Rullion CMF/PO,Fusion,Rullion Engineering Ltd,5169194,"4,225.50"
DESNZ,UKAEA,07/02/2024,Temporary Staff - Rullion CMF/PO,Fusion,Rullion Engineering Ltd,5169050,"4,225.53"
DESNZ,UKAEA,07/02/2024,Temporary Staff - Rullion CMF/PO,Fusion,Rullion Engineering Ltd,5169052,"4,250.56"
DESNZ,UKAEA,07/02/2024,Temporary Staff - Rullion CMF/PO,Fusion,Rullion Engineering Ltd,5169096,"4,361.31"
DESNZ,UKAEA,07/02/2024,Temporary Staff - Rullion CMF/PO,Fusion,Rullion Engineering Ltd,5169215,"4,373.34"
DESNZ,UKAEA,07/02/2024,Temporary Staff - Rullion CMF/PO,Fusion,Rullion Engineering Ltd,5168804,"4,555.52"
DESNZ,UKAEA,07/02/2024,Temporary Staff - Rullion CMF/PO,Fusion,Rullion Engineering Ltd,5168805,"4,635.11"
DESNZ,UKAEA,21/02/2024,Temporary Staff - Rullion CMF/PO,Fusion,Rullion Engineering Ltd,5170328,"4,715.34"
DESNZ,UKAEA,14/02/2024,Temporary Staff - Rullion CMF/PO,Fusion,Rullion Engineering Ltd,5169320,"4,814.26"
DESNZ,UKAEA,07/02/2024,Temporary Staff - Rullion CMF/PO,Fusion,Rullion Engineering Ltd,5169056,"4,878.92"
DESNZ,UKAEA,07/02/2024,Temporary Staff - Rullion CMF/PO,Fusion,Rullion Engineering Ltd,5168821,"4,879.76"
DESNZ,UKAEA,07/02/2024,Temporary Staff - Rullion CMF/PO,Fusion,Rullion Engineering Ltd,5169055,"4,890.20"
DESNZ,UKAEA,14/02/2024,Temporary Staff - Rullion CMF/PO,Fusion,Rullion Engineering Ltd,5169438,"4,893.81"
DESNZ,UKAEA,14/02/2024,Temporary Staff - Rullion CMF/PO,Fusion,Rullion Engineering Ltd,5169260,"5,190.88"
DESNZ,UKAEA,07/02/2024,Temporary Staff - Rullion CMF/PO,Fusion,Rullion Engineering Ltd,5168994,"5,330.66"
DESNZ,UKAEA,14/02/2024,Temporary Staff - Rullion CMF/PO,Fusion,Rullion Engineering Ltd,5169460,"6,007.50"
DESNZ,UKAEA,07/02/2024,Temporary Staff - Rullion CMF/PO,Fusion,Rullion Engineering Ltd,5168877,"6,188.64"
DESNZ,UKAEA,07/02/2024,Temporary Staff - Rullion CMF/PO,Fusion,Rullion Engineering Ltd,5168731,"6,356.96"
DESNZ,UKAEA,07/02/2024,Temporary Staff - Rullion CMF/PO,Fusion,Rullion Engineering Ltd,5168705,"6,370.14"
DESNZ,UKAEA,14/02/2024,Temporary Staff - Rullion CMF/PO,Fusion,Rullion Engineering Ltd,5169441,"6,378.46"
DESNZ,UKAEA,14/02/2024,Temporary Staff - Rullion CMF/PO,Fusion,Rullion Engineering Ltd,5169313,"6,486.76"
DESNZ,UKAEA,07/02/2024,Temporary Staff - Rullion CMF/PO,Fusion,Rullion Engineering Ltd,5169091,"6,685.26"
DESNZ,UKAEA,14/02/2024,Temporary Staff - Rullion CMF/PO,Fusion,Rullion Engineering Ltd,5169385,"6,700.79"
DESNZ,UKAEA,07/02/2024,Temporary Staff - Rullion CMF/PO,Fusion,Rullion Engineering Ltd,5168993,"6,703.20"
DESNZ,UKAEA,14/02/2024,Temporary Staff - Rullion CMF/PO,Fusion,Rullion Engineering Ltd,5169478,"6,918.66"
DESNZ,UKAEA,14/02/2024,Temporary Staff - Rullion CMF/PO,Fusion,Rullion Engineering Ltd,5169439,"6,934.88"
DESNZ,UKAEA,07/02/2024,Temporary Staff - Rullion CMF/PO,Fusion,Rullion Engineering Ltd,5168766,"7,011.00"
DESNZ,UKAEA,07/02/2024,Temporary Staff - Rullion CMF/PO,Fusion,Rullion Engineering Ltd,5168716,"7,109.40"
DESNZ,UKAEA,07/02/2024,Temporary Staff - Rullion CMF/PO,Fusion,Rullion Engineering Ltd,5169016,"7,143.54"
DESNZ,UKAEA,07/02/2024,Temporary Staff - Rullion CMF/PO,Fusion,Rullion Engineering Ltd,5168918,"7,170.75"
DESNZ,UKAEA,07/02/2024,Temporary Staff - Rullion CMF/PO,Fusion,Rullion Engineering Ltd,5168730,"7,199.10"
DESNZ,UKAEA,14/02/2024,Temporary Staff - Rullion CMF/PO,Fusion,Rullion Engineering Ltd,5169510,"7,227.60"
DESNZ,UKAEA,07/02/2024,Temporary Staff - Rullion CMF/PO,Fusion,Rullion Engineering Ltd,5168780,"7,527.78"
DESNZ,UKAEA,07/02/2024,Temporary Staff - Rullion CMF/PO,Fusion,Rullion Engineering Ltd,5169122,"7,603.00"
DESNZ,UKAEA,14/02/2024,Temporary Staff - Rullion CMF/PO,Fusion,Rullion Engineering Ltd,5169389,"8,259.00"
DESNZ,UKAEA,14/02/2024,Temporary Staff - Rullion CMF/PO,Fusion,Rullion Engineering Ltd,5169250,"8,403.75"
DESNZ,UKAEA,14/02/2024,Temporary Staff - Rullion CMF/PO,Fusion,Rullion Engineering Ltd,5169251,"8,431.57"
DESNZ,UKAEA,14/02/2024,Temporary Staff - Rullion CMF/PO,Fusion,Rullion Engineering Ltd,5169461,"8,465.04"
DESNZ,UKAEA,07/02/2024,Temporary Staff - Rullion CMF/PO,Fusion,Rullion Engineering Ltd,5169196,"8,556.24"
DESNZ,UKAEA,07/02/2024,Temporary Staff - Rullion CMF/PO,Fusion,Rullion Engineering Ltd,5168916,"8,655.45"
DESNZ,UKAEA,07/02/2024,Temporary Staff - Rullion CMF/PO,Fusion,Rullion Engineering Ltd,5169025,"9,076.65"
DESNZ,UKAEA,07/02/2024,Temporary Staff - Rullion CMF/PO,Fusion,Rullion Engineering Ltd,5169054,"9,300.99"
DESNZ,UKAEA,14/02/2024,Temporary Staff - Rullion CMF/PO,Fusion,Rullion Engineering Ltd,5169680,"10,186.82"
DESNZ,UKAEA,07/02/2024,Temporary Staff - Rullion CMF/PO,Fusion,Rullion Engineering Ltd,5168885,"10,463.84"
DESNZ,UKAEA,07/02/2024,Temporary Staff - Rullion CMF/PO,Fusion,Rullion Engineering Ltd,5168684,"10,641.55"
DESNZ,UKAEA,14/02/2024,Temporary Staff - Rullion CMF/PO,Fusion,Rullion Engineering Ltd,5169458,"11,919.81"
DESNZ,UKAEA,07/02/2024,Temporary Staff - Rullion CMF/PO,Fusion,Rullion Engineering Ltd,5169000,"12,226.50"
DESNZ,UKAEA,07/02/2024,Temporary Staff - Rullion CMF/PO,Fusion,Rullion Engineering Ltd,5168722,"12,870.00"
DESNZ,UKAEA,14/02/2024,Temporary Staff - Rullion CMF/PO,Fusion,Rullion Engineering Ltd,5169462,"15,450.00"
DESNZ,UKAEA,12/02/2024,Research,Fusion,Strathclyde University,5169337,"16,322.75"
DESNZ,UKAEA,21/02/2024,Research,Fusion,Queens University Belfast,5170326,"26,914.35"
DESNZ,UKAEA,27/02/2024,Temporary Staff - Rullion CMF/PO,Fusion,Rullion Engineering Ltd,5170535,"-4,240.26"
DESNZ,UKAEA,07/02/2024,Temporary Staff - Rullion CMF/PO,Fusion,Rullion Engineering Ltd,5169112,"1,064.63"
DESNZ,UKAEA,14/02/2024,Temporary Staff - Rullion CMF/PO,Fusion,Rullion Engineering Ltd,5169315,"1,158.05"
DESNZ,UKAEA,07/02/2024,Temporary Staff - Rullion CMF/PO,Fusion,Rullion Engineering Ltd,5168998,"1,269.04"
DESNZ,UKAEA,14/02/2024,Temporary Staff - Rullion CMF/PO,Fusion,Rullion Engineering Ltd,5169640,"1,534.21"
DESNZ,UKAEA,07/02/2024,Temporary Staff - Rullion CMF/PO,Fusion,Rullion Engineering Ltd,5168847,"1,909.71"
DESNZ,UKAEA,07/02/2024,Temporary Staff - Rullion CMF/PO,Fusion,Rullion Engineering Ltd,5168850,"2,048.64"
DESNZ,UKAEA,07/02/2024,Temporary Staff - Rullion CMF/PO,Fusion,Rullion Engineering Ltd,5168915,"2,265.73"
DESNZ,UKAEA,07/02/2024,Temporary Staff - Rullion CMF/PO,Fusion,Rullion Engineering Ltd,5169086,"2,308.97"
DESNZ,UKAEA,14/02/2024,Temporary Staff - Rullion CMF/PO,Fusion,Rullion Engineering Ltd,5169393,"2,322.18"
DESNZ,UKAEA,07/02/2024,Temporary Staff - Rullion CMF/PO,Fusion,Rullion Engineering Ltd,5168869,"2,419.60"
DESNZ,UKAEA,07/02/2024,Temporary Staff - Rullion CMF/PO,Fusion,Rullion Engineering Ltd,5169026,"2,442.60"
DESNZ,UKAEA,07/02/2024,Temporary Staff - Rullion CMF/PO,Fusion,Rullion Engineering Ltd,5168855,"2,572.95"
DESNZ,UKAEA,07/02/2024,Temporary Staff - Rullion CMF/PO,Fusion,Rullion Engineering Ltd,5168964,"2,683.23"
DESNZ,UKAEA,07/02/2024,Temporary Staff - Rullion CMF/PO,Fusion,Rullion Engineering Ltd,5168983,"2,867.40"
DESNZ,UKAEA,07/02/2024,Temporary Staff - Rullion CMF/PO,Fusion,Rullion Engineering Ltd,5168668,"2,868.13"
DESNZ,UKAEA,07/02/2024,Temporary Staff - Rullion CMF/PO,Fusion,Rullion Engineering Ltd,5168894,"2,925.21"
DESNZ,UKAEA,07/02/2024,Temporary Staff - Rullion CMF/PO,Fusion,Rullion Engineering Ltd,5168779,"2,976.23"
DESNZ,UKAEA,14/02/2024,Temporary Staff - Rullion CMF/PO,Fusion,Rullion Engineering Ltd,5169629,"3,135.00"
DESNZ,UKAEA,14/02/2024,Temporary Staff - Rullion CMF/PO,Fusion,Rullion Engineering Ltd,5169433,"3,277.49"
DESNZ,UKAEA,07/02/2024,Temporary Staff - Rullion CMF/PO,Fusion,Rullion Engineering Ltd,5169214,"3,279.68"
DESNZ,UKAEA,07/02/2024,Temporary Staff - Rullion CMF/PO,Fusion,Rullion Engineering Ltd,5168839,"3,285.30"
DESNZ,UKAEA,07/02/2024,Temporary Staff - Rullion CMF/PO,Fusion,Rullion Engineering Ltd,5168844,"3,382.08"
DESNZ,UKAEA,07/02/2024,Temporary Staff - Rullion CMF/PO,Fusion,Rullion Engineering Ltd,5168718,"3,391.50"
DESNZ,UKAEA,07/02/2024,Temporary Staff - Rullion CMF/PO,Fusion,Rullion Engineering Ltd,5168554,"3,402.49"
DESNZ,UKAEA,07/02/2024,Temporary Staff - Rullion CMF/PO,Fusion,Rullion Engineering Ltd,5169053,"3,422.06"
DESNZ,UKAEA,14/02/2024,Temporary Staff - Rullion CMF/PO,Fusion,Rullion Engineering Ltd,5169639,"3,577.14"
DESNZ,UKAEA,07/02/2024,Temporary Staff - Rullion CMF/PO,Fusion,Rullion Engineering Ltd,5168852,"3,592.44"
DESNZ,UKAEA,07/02/2024,Temporary Staff - Rullion CMF/PO,Fusion,Rullion Engineering Ltd,5168849,"3,677.44"
DESNZ,UKAEA,14/02/2024,Temporary Staff - Rullion CMF/PO,Fusion,Rullion Engineering Ltd,5169516,"3,725.04"
DESNZ,UKAEA,07/02/2024,Temporary Staff - Rullion CMF/PO,Fusion,Rullion Engineering Ltd,5168792,"3,733.50"
DESNZ,UKAEA,14/02/2024,Temporary Staff - Rullion CMF/PO,Fusion,Rullion Engineering Ltd,5169246,"3,775.87"
DESNZ,UKAEA,14/02/2024,Temporary Staff - Rullion CMF/PO,Fusion,Rullion Engineering Ltd,5169528,"3,797.19"
DESNZ,UKAEA,14/02/2024,Temporary Staff - Rullion CMF/PO,Fusion,Rullion Engineering Ltd,5169625,"3,823.95"
DESNZ,UKAEA,07/02/2024,Temporary Staff - Rullion CMF/PO,Fusion,Rullion Engineering Ltd,5168838,"3,853.01"
DESNZ,UKAEA,07/02/2024,Temporary Staff - Rullion CMF/PO,Fusion,Rullion Engineering Ltd,5168553,"3,925.95"
DESNZ,UKAEA,07/02/2024,Temporary Staff - Rullion CMF/PO,Fusion,Rullion Engineering Ltd,5169068,"3,933.61"
DESNZ,UKAEA,14/02/2024,Temporary Staff - Rullion CMF/PO,Fusion,Rullion Engineering Ltd,5169434,"3,938.49"
DESNZ,UKAEA,14/02/2024,Temporary Staff - Rullion CMF/PO,Fusion,Rullion Engineering Ltd,5169517,"3,941.61"
DESNZ,UKAEA,14/02/2024,Temporary Staff - Rullion CMF/PO,Fusion,Rullion Engineering Ltd,5169648,"3,953.79"
DESNZ,UKAEA,14/02/2024,Temporary Staff - Rullion CMF/PO,Fusion,Rullion Engineering Ltd,5169247,"4,032.46"
DESNZ,UKAEA,14/02/2024,Temporary Staff - Rullion CMF/PO,Fusion,Rullion Engineering Ltd,5169425,"4,054.51"
DESNZ,UKAEA,07/02/2024,Temporary Staff - Rullion CMF/PO,Fusion,Rullion Engineering Ltd,5168912,"4,119.36"
DESNZ,UKAEA,07/02/2024,Temporary Staff - Rullion CMF/PO,Fusion,Rullion Engineering Ltd,5169051,"4,131.77"
DESNZ,UKAEA,07/02/2024,Temporary Staff - Rullion CMF/PO,Fusion,Rullion Engineering Ltd,5168783,"4,168.24"
DESNZ,UKAEA,27/02/2024,Temporary Staff - Rullion CMF/PO,Fusion,Rullion Engineering Ltd,5170536,"4,240.26"
DESNZ,UKAEA,07/02/2024,Temporary Staff - Rullion CMF/PO,Fusion,Rullion Engineering Ltd,5169115,"4,287.09"
DESNZ,UKAEA,14/02/2024,Temporary Staff - Rullion CMF/PO,Fusion,Rullion Engineering Ltd,5169514,"4,412.25"
DESNZ,UKAEA,07/02/2024,Temporary Staff - Rullion CMF/PO,Fusion,Rullion Engineering Ltd,5168819,"4,454.00"
DESNZ,UKAEA,07/02/2024,Temporary Staff - Rullion CMF/PO,Fusion,Rullion Engineering Ltd,5169079,"4,585.65"
DESNZ,UKAEA,21/02/2024,Temporary Staff - Rullion CMF/PO,Fusion,Rullion Engineering Ltd,5170283,"4,630.40"
DESNZ,UKAEA,14/02/2024,Temporary Staff - Rullion CMF/PO,Fusion,Rullion Engineering Ltd,5169664,"4,669.69"
DESNZ,UKAEA,14/02/2024,Temporary Staff - Rullion CMF/PO,Fusion,Rullion Engineering Ltd,5169468,"4,800.60"
DESNZ,UKAEA,14/02/2024,Temporary Staff - Rullion CMF/PO,Fusion,Rullion Engineering Ltd,5169623,"4,824.06"
DESNZ,UKAEA,14/02/2024,Temporary Staff - Rullion CMF/PO,Fusion,Rullion Engineering Ltd,5169360,"4,867.80"
DESNZ,UKAEA,14/02/2024,Temporary Staff - Rullion CMF/PO,Fusion,Rullion Engineering Ltd,5169228,"4,939.20"
DESNZ,UKAEA,14/02/2024,Temporary Staff - Rullion CMF/PO,Fusion,Rullion Engineering Ltd,5169669,"5,024.79"
DESNZ,UKAEA,14/02/2024,Temporary Staff - Rullion CMF/PO,Fusion,Rullion Engineering Ltd,5169418,"5,104.35"
DESNZ,UKAEA,14/02/2024,Temporary Staff - Rullion CMF/PO,Fusion,Rullion Engineering Ltd,5169432,"5,437.38"
DESNZ,UKAEA,14/02/2024,Temporary Staff - Rullion CMF/PO,Fusion,Rullion Engineering Ltd,5169671,"5,441.87"
DESNZ,UKAEA,21/02/2024,Temporary Staff - Rullion CMF/PO,Fusion,Rullion Engineering Ltd,5170372,"5,477.40"
DESNZ,UKAEA,07/02/2024,Temporary Staff - Rullion CMF/PO,Fusion,Rullion Engineering Ltd,5168678,"5,483.40"
DESNZ,UKAEA,07/02/2024,Temporary Staff - Rullion CMF/PO,Fusion,Rullion Engineering Ltd,5168962,"5,490.55"
DESNZ,UKAEA,07/02/2024,Temporary Staff - Rullion CMF/PO,Fusion,Rullion Engineering Ltd,5169217,"5,555.25"
DESNZ,UKAEA,07/02/2024,Temporary Staff - Rullion CMF/PO,Fusion,Rullion Engineering Ltd,5168959,"5,570.34"
DESNZ,UKAEA,07/02/2024,Temporary Staff - Rullion CMF/PO,Fusion,Rullion Engineering Ltd,5168961,"5,570.34"
DESNZ,UKAEA,14/02/2024,Temporary Staff - Rullion CMF/PO,Fusion,Rullion Engineering Ltd,5169673,"5,588.85"
DESNZ,UKAEA,07/02/2024,Temporary Staff - Rullion CMF/PO,Fusion,Rullion Engineering Ltd,5169066,"5,610.24"
DESNZ,UKAEA,14/02/2024,Temporary Staff - Rullion CMF/PO,Fusion,Rullion Engineering Ltd,5169626,"5,690.33"
DESNZ,UKAEA,07/02/2024,Temporary Staff - Rullion CMF/PO,Fusion,Rullion Engineering Ltd,5168963,"5,866.74"
DESNZ,UKAEA,14/02/2024,Temporary Staff - Rullion CMF/PO,Fusion,Rullion Engineering Ltd,5169515,"5,911.52"
DESNZ,UKAEA,14/02/2024,Temporary Staff - Rullion CMF/PO,Fusion,Rullion Engineering Ltd,5169597,"6,036.46"
DESNZ,UKAEA,14/02/2024,Temporary Staff - Rullion CMF/PO,Fusion,Rullion Engineering Ltd,5169647,"6,114.39"
DESNZ,UKAEA,14/02/2024,Temporary Staff - Rullion CMF/PO,Fusion,Rullion Engineering Ltd,5169624,"6,369.75"
DESNZ,UKAEA,14/02/2024,Temporary Staff - Rullion CMF/PO,Fusion,Rullion Engineering Ltd,5169676,"6,473.60"
DESNZ,UKAEA,07/02/2024,Temporary Staff - Rullion CMF/PO,Fusion,Rullion Engineering Ltd,5168856,"6,505.14"
DESNZ,UKAEA,14/02/2024,Temporary Staff - Rullion CMF/PO,Fusion,Rullion Engineering Ltd,5169668,"6,586.67"
DESNZ,UKAEA,07/02/2024,Temporary Staff - Rullion CMF/PO,Fusion,Rullion Engineering Ltd,5169022,"6,619.14"
DESNZ,UKAEA,14/02/2024,Temporary Staff - Rullion CMF/PO,Fusion,Rullion Engineering Ltd,5169675,"6,843.89"
DESNZ,UKAEA,07/02/2024,Temporary Staff - Rullion CMF/PO,Fusion,Rullion Engineering Ltd,5169064,"6,901.29"
DESNZ,UKAEA,21/02/2024,Temporary Staff - Rullion CMF/PO,Fusion,Rullion Engineering Ltd,5170280,"6,959.67"
DESNZ,UKAEA,14/02/2024,Temporary Staff - Rullion CMF/PO,Fusion,Rullion Engineering Ltd,5169670,"7,053.66"
DESNZ,UKAEA,21/02/2024,Temporary Staff - Rullion CMF/PO,Fusion,Rullion Engineering Ltd,5170281,"7,162.05"
DESNZ,UKAEA,14/02/2024,Temporary Staff - Rullion CMF/PO,Fusion,Rullion Engineering Ltd,5169672,"7,172.62"
DESNZ,UKAEA,07/02/2024,Temporary Staff - Rullion CMF/PO,Fusion,Rullion Engineering Ltd,5169078,"7,424.94"
DESNZ,UKAEA,07/02/2024,Temporary Staff - Rullion CMF/PO,Fusion,Rullion Engineering Ltd,5168569,"7,746.90"
DESNZ,UKAEA,21/02/2024,Temporary Staff - Rullion CMF/PO,Fusion,Rullion Engineering Ltd,5170284,"8,192.38"
DESNZ,UKAEA,07/02/2024,Temporary Staff - Rullion CMF/PO,Fusion,Rullion Engineering Ltd,5168764,"8,195.19"
DESNZ,UKAEA,14/02/2024,Temporary Staff - Rullion CMF/PO,Fusion,Rullion Engineering Ltd,5169665,"8,620.92"
DESNZ,UKAEA,07/02/2024,Temporary Staff - Rullion CMF/PO,Fusion,Rullion Engineering Ltd,5168798,"8,934.78"
DESNZ,UKAEA,07/02/2024,Temporary Staff - Rullion CMF/PO,Fusion,Rullion Engineering Ltd,5168822,"9,213.77"
DESNZ,UKAEA,07/02/2024,Temporary Staff - Rullion CMF/PO,Fusion,Rullion Engineering Ltd,5169083,"9,213.77"
DESNZ,UKAEA,14/02/2024,Temporary Staff - Rullion CMF/PO,Fusion,Rullion Engineering Ltd,5169651,"10,019.69"
DESNZ,UKAEA,14/02/2024,Temporary Staff - Rullion CMF/PO,Fusion,Rullion Engineering Ltd,5169417,"10,339.80"
DESNZ,UKAEA,07/02/2024,Temporary Staff - Rullion CMF/PO,Fusion,Rullion Engineering Ltd,5168938,"10,815.00"
DESNZ,UKAEA,03/01/2024,Construction,Property,Southern Electric Power Distribution plc,5170924,"-9,236.49"
DESNZ,UKAEA,19/02/2024,Professional Services,Property,Carter Jonas LLP,5170144,550.00
DESNZ,UKAEA,19/02/2024,Energy and Fuels,Property,Edmundson Electricals Ltd,5170045,650.00
DESNZ,UKAEA,21/02/2024,Facilities,Property,Dalkia Operations Ltd,5170255,734.08
DESNZ,UKAEA,27/02/2024,Consultancy - Other (per Cabinet Office definition),Property,Pink Elephant EMEA Ltd,5170626,745.00
DESNZ,UKAEA,19/02/2024,ICT,Property,Snelling Business Systems Limited,5170201,746.00
DESNZ,UKAEA,14/02/2024,Professional Services,Property,Leda Properties Ltd,5169784,750.00
DESNZ,UKAEA,05/02/2024,Professional Services,Property,Arcadis Consulting (UK) Limited,5168440,770.47
DESNZ,UKAEA,05/02/2024,ICT,Property,Aztex Solutions Ltd,5168823,870.00
DESNZ,UKAEA,05/02/2024,ICT,Property,Ivanti UK Ltd,5168842,900.00
DESNZ,UKAEA,27/02/2024,ICT,Property,Insight Direct UK Ltd,5170472,"1,188.60"
DESNZ,UKAEA,05/02/2024,Travel,Property,Manufacturing Technology Centre,5168447,"1,202.99"
DESNZ,UKAEA,12/02/2024,Professional Services,Property,Carter Jonas LLP,5169496,"1,500.00"
DESNZ,UKAEA,19/02/2024,Energy and Fuels,Property,Edmundson Electricals Ltd,5170021,"1,527.51"
DESNZ,UKAEA,19/02/2024,Communications,Property,Commission Air Limited,5170176,"1,530.00"
DESNZ,UKAEA,27/02/2024,ICT,Property,Mayflex UK Ltd,5170679,"1,755.80"
DESNZ,UKAEA,05/02/2024,Office Solutions,Property,Red17 Limited,5168744,"1,818.00"
DESNZ,UKAEA,05/02/2024,ICT,Property,Network Installation Solutions Ltd,5168386,"1,845.00"
DESNZ,UKAEA,05/02/2024,ICT,Property,Network Installation Solutions Ltd,5168382,"1,855.00"
DESNZ,UKAEA,12/02/2024,Travel,Property,Manufacturing Technology Centre,5169554,"2,000.00"
DESNZ,UKAEA,14/02/2024,Facilities,Property,Leda Properties Ltd,5169784,"2,050.00"
DESNZ,UKAEA,07/02/2024,Consultancy - Other (per Cabinet Office definition),Property,Baker Bond & Green  Limited,5169147,"2,234.38"
DESNZ,UKAEA,05/02/2024,ICT,Property,Network Installation Solutions Ltd,5168392,"2,280.00"
DESNZ,UKAEA,19/02/2024,Professional Services,Property,BSP Consulting,5170145,"2,400.00"
DESNZ,UKAEA,07/02/2024,Engineering Goods,Property,Safety Storage Systems Ltd,5169169,"2,700.00"
DESNZ,UKAEA,05/02/2024,Construction,Property,Manufacturing Technology Centre,5168444,"2,926.97"
DESNZ,UKAEA,05/02/2024,Professional Services,Property,Arcadis Consulting (UK) Limited,5168440,"3,031.00"
DESNZ,UKAEA,12/02/2024,ICT,Property,Snelling Business Systems Limited,5169371,"3,318.00"
DESNZ,UKAEA,27/02/2024,Consultancy - Other (per Cabinet Office definition),Property,Manufacturing Technology Centre,5170794,"3,388.55"
DESNZ,UKAEA,05/02/2024,Professional Services,Property,Carter Jonas LLP,5168742,"3,887.50"
DESNZ,UKAEA,27/02/2024,Construction,Property,AtkinsR�alis � Lead Advisor Design Contract,5170627,"4,000.00"
DESNZ,UKAEA,27/02/2024,Temporary Staff - Industrial Placements,Property,Arcadis Consulting (UK) Limited,5170573,"4,241.25"
DESNZ,UKAEA,27/02/2024,Professional Services,Property,Burges Salmon,5170489,"4,290.00"
DESNZ,UKAEA,05/02/2024,ICT,Property,Network Installation Solutions Ltd,5168383,"4,315.00"
DESNZ,UKAEA,21/02/2024,Engineering Goods,Property,Aquila Nuclear Engineering Ltd,5170413,"4,930.00"
DESNZ,UKAEA,19/02/2024,Communications,Property,M Condron Ltd,5169821,"5,000.00"
DESNZ,UKAEA,05/02/2024,Professional Services,Property,Ridge And Partners Llp,5168746,"5,378.10"
DESNZ,UKAEA,05/02/2024,ICT,Property,Network Installation Solutions Ltd,5168384,"5,465.00"
DESNZ,UKAEA,14/02/2024,ICT,Property,Snelling Business Systems Limited,5169733,"5,485.00"
DESNZ,UKAEA,12/02/2024,Facilities,Property,Barclays Eagle Labs Cumbria,5169492,"5,800.00"
DESNZ,UKAEA,05/02/2024,Professional Services,Property,McBains Ltd,5168710,"6,415.94"
DESNZ,UKAEA,27/02/2024,Consultancy - Other (per Cabinet Office definition),Property,Pink Elephant EMEA Ltd,5170625,"6,705.00"
DESNZ,UKAEA,12/02/2024,ICT,Property,Computacenter UK Ltd,5169300,"6,808.62"
DESNZ,UKAEA,27/02/2024,Learning and Development,Property,Compass Contract Services (UK) Ltd,5170828,"7,685.00"
DESNZ,UKAEA,21/02/2024,Communications,Property,M Condron Ltd,5170323,"7,999.60"
DESNZ,UKAEA,05/02/2024,Professional Services,Property,McBains Ltd,5168711,"8,155.29"
DESNZ,UKAEA,05/02/2024,Professional Services,Property,Manufacturing Technology Centre,5168454,"8,224.35"
DESNZ,UKAEA,19/02/2024,Professional Services,Property,Arcadis Consulting (UK) Limited,5170058,"8,822.00"
DESNZ,UKAEA,14/02/2024,Facilities,Property,SouthernsBroadstock Limited,5169756,"9,827.00"
DESNZ,UKAEA,14/02/2024,ICT,Property,boxxe Limited,5169707,"10,000.00"
DESNZ,UKAEA,14/02/2024,ICT,Property,Insight Direct UK Ltd,5169811,"13,165.24"
DESNZ,UKAEA,14/02/2024,Facilities,Property,SouthernsBroadstock Limited,5169751,"14,371.00"
DESNZ,UKAEA,14/02/2024,Facilities,Property,SouthernsBroadstock Limited,5169752,"14,371.00"
DESNZ,UKAEA,14/02/2024,Facilities,Property,SouthernsBroadstock Limited,5168435,"14,848.00"
DESNZ,UKAEA,14/02/2024,Professional Services,Property,Bouygues (U.K.) Limited PBA: FDP,5169635,"15,225.47"
DESNZ,UKAEA,19/02/2024,Construction,Property,SenSat Surveying Limited,5170026,"16,500.00"
DESNZ,UKAEA,27/02/2024,Consultancy - Other (per Cabinet Office definition),Property,Manufacturing Technology Centre,5170793,"17,972.00"
DESNZ,UKAEA,19/02/2024,Professional Services,Property,Arcadis Consulting (UK) Limited,5170059,"19,140.00"
DESNZ,UKAEA,05/02/2024,Consultancy - Other (per Cabinet Office definition),Property,Manufacturing Technology Centre,5168455,"19,482.00"
DESNZ,UKAEA,05/02/2024,ICT,Property,Computacenter UK Ltd,5168428,"21,599.00"
DESNZ,UKAEA,12/02/2024,Professional Services,Property,Trust for Oxfordshires Environment TOE,5169472,"24,000.00"
DESNZ,UKAEA,14/02/2024,Professional Services,Property,Bouygues (U.K.) Limited PBA: FDP,5169627,"31,693.82"
DESNZ,UKAEA,19/02/2024,Engineering Goods,Property,DWE Scientific,5170101,"37,869.80"
DESNZ,UKAEA,05/02/2024,Construction,Property,AtkinsR�alis � Lead Advisor Design Contract,5168577,"40,000.00"
DESNZ,UKAEA,05/02/2024,Professional Services,Property,Manufacturing Technology Centre,5168450,"50,185.40"
DESNZ,UKAEA,27/02/2024,Facilities,Property,SouthernsBroadstock Limited,5170801,"53,467.00"
DESNZ,UKAEA,27/02/2024,Facilities,Property,SouthernsBroadstock Limited,5170800,"79,093.00"
DESNZ,UKAEA,19/02/2024,Facilities,Property,SouthernsBroadstock Limited,5170204,"79,975.00"
DESNZ,UKAEA,14/02/2024,Facilities,Property,SouthernsBroadstock Limited,5169663,"90,835.00"
DESNZ,UKAEA,21/02/2024,Facilities,Property,SouthernsBroadstock Limited,5170299,"93,054.00"
DESNZ,UKAEA,14/02/2024,Professional Services,Property,Bouygues (U.K.) Limited PBA: FDP,5169635,"93,441.07"
DESNZ,UKAEA,14/02/2024,Facilities,Property,SouthernsBroadstock Limited,5169662,"96,770.00"
DESNZ,UKAEA,14/02/2024,Facilities,Property,SouthernsBroadstock Limited,5169753,"100,804.00"
DESNZ,UKAEA,14/02/2024,Construction,Property,McLaughlin & Harvey Ltd - Main Gate PBA,5169473,"744,603.00"
DESNZ,UKAEA,08/02/2024,Construction,Property,Isotope Technologies Dresden GmbH,5168818,"846,460.00"
DESNZ,UKAEA,14/02/2024,Construction,Property,Kier Construction Ltd PBACCDP,5169655,"1,085,422.14"
DESNZ,UKAEA,27/02/2024,Construction,Property,Southern Electric Power Distribution plc,5170672,"1,120,180.12"
DESNZ,UKAEA,14/02/2024,Engineering Goods,d,Sarens UK Ltd,5169793,-652.00
DESNZ,UKAEA,07/02/2024,Engineering Goods,Fusion,FISHERSCIENTIFIC,5169131,528.52
DESNZ,UKAEA,19/02/2024,Operational Goods,Fusion,Arco Ltd,5170230,532.91
DESNZ,UKAEA,21/02/2024,Engineering Goods,Fusion,Condec Industrial Maintenance,5170297,585.00
DESNZ,UKAEA,21/02/2024,Office Solutions,Fusion,Lyreco UK Limited,5170313,599.00
DESNZ,UKAEA,07/02/2024,Engineering Goods,Fusion,FISHERSCIENTIFIC,5169135,600.60
DESNZ,UKAEA,21/02/2024,Engineering Goods,Fusion,Budget Forktrucks Ltd,5170353,606.67
DESNZ,UKAEA,14/02/2024,Learning and Development,Fusion,Chartered Institution of Wastes Management,5169809,606.90
DESNZ,UKAEA,14/02/2024,Learning and Development,Fusion,Chartered Institution of Wastes Management,5169810,606.90
DESNZ,UKAEA,12/02/2024,Engineering Goods,Fusion,City Electrical Factors,5169237,614.22
DESNZ,UKAEA,19/02/2024,Logistics and Shipping,Fusion,Pfeiffer Vacuum UK,5169822,627.80
DESNZ,UKAEA,05/02/2024,Operational Goods,Fusion,Arco Ltd,5168755,629.06
DESNZ,UKAEA,07/02/2024,Engineering Goods,Fusion,BOC Ltd,5168670,647.65
DESNZ,UKAEA,07/02/2024,Fleet,Fusion,Rabbits Vehicle Hire,5169182,685.72
DESNZ,UKAEA,05/02/2024,Operational Goods,Fusion,Arco Ltd,5168683,687.60
DESNZ,UKAEA,05/02/2024,Engineering Goods,Fusion,FISHERSCIENTIFIC,5168548,699.36
DESNZ,UKAEA,21/02/2024,Engineering Goods,Fusion,Budget Forktrucks Ltd,5170352,736.67
DESNZ,UKAEA,05/02/2024,Engineering Goods,Fusion,FISHERSCIENTIFIC,5168405,736.70
DESNZ,UKAEA,14/02/2024,Operational Goods,Fusion,Arco Ltd,5169803,738.48
DESNZ,UKAEA,05/02/2024,ICT,Fusion,TeleCentric Ltd,5168394,750.00
DESNZ,UKAEA,21/02/2024,ICT,Fusion,Computacenter UK Ltd,5170447,809.60
DESNZ,UKAEA,12/02/2024,Engineering Goods,Fusion,Air Products Plc,5169577,825.52
DESNZ,UKAEA,07/02/2024,Engineering Goods,Fusion,D Furnell Plant Services Ltd,5169042,850.00
DESNZ,UKAEA,27/02/2024,Engineering Goods,Fusion,FISHERSCIENTIFIC,5170488,882.06
DESNZ,UKAEA,19/02/2024,Engineering Goods,Fusion,Feedwater Ltd,5169994,948.50
DESNZ,UKAEA,19/02/2024,ICT,Fusion,Computacenter UK Ltd,5170153,952.91
DESNZ,UKAEA,19/02/2024,Operational Goods,Fusion,Arco Ltd,5170010,961.92
DESNZ,UKAEA,12/02/2024,Engineering Goods,Fusion,City Electrical Factors,5169232,962.04
DESNZ,UKAEA,27/02/2024,Learning and Development,Fusion,Sundry Supplier,5170680,970.00
DESNZ,UKAEA,05/02/2024,Engineering Goods,Fusion,Swagelok London,5168653,"1,044.00"
DESNZ,UKAEA,05/02/2024,Engineering Goods,Fusion,Factair Ltd,5168414,"1,169.87"
DESNZ,UKAEA,27/02/2024,Engineering Goods,Fusion,J & E Hall Ltd.,5170815,"1,238.33"
DESNZ,UKAEA,21/02/2024,Engineering Goods,Fusion,Budget Forktrucks Ltd,5170351,"1,256.67"
DESNZ,UKAEA,12/02/2024,Engineering Goods,Fusion,Mersen UK Teesside Ltd,5169226,"1,265.00"
DESNZ,UKAEA,07/02/2024,Engineering Goods,Fusion,Augean Plc,5169063,"1,434.55"
DESNZ,UKAEA,19/02/2024,Engineering Goods,Fusion,Factair Ltd,5170236,"1,610.00"
DESNZ,UKAEA,19/02/2024,Engineering Goods,Fusion,CK Isotopes Limited,5170234,"1,640.00"
DESNZ,UKAEA,12/02/2024,Operational Goods,Fusion,Arco Ltd,5169592,"1,670.00"
DESNZ,UKAEA,05/02/2024,Operational Goods,Fusion,Arco Ltd,5168681,"1,856.60"
DESNZ,UKAEA,27/02/2024,Engineering Goods,Fusion,Swagelok London,5170698,"1,860.00"
DESNZ,UKAEA,27/02/2024,Engineering Goods,Fusion,UK Health Security Agency,5170636,"1,982.00"
DESNZ,UKAEA,05/02/2024,ICT,Fusion,Network Installation Solutions Ltd,5168381,"2,400.00"
DESNZ,UKAEA,27/02/2024,Engineering Goods,Fusion,FISHERSCIENTIFIC,5170665,"2,452.80"
DESNZ,UKAEA,05/02/2024,Engineering Goods,Fusion,Greyhound Chromatography,5168498,"2,584.00"
DESNZ,UKAEA,21/02/2024,Engineering Goods,Fusion,Sarens UK Ltd,5169861,"2,912.00"
DESNZ,UKAEA,19/02/2024,Engineering Goods,Fusion,National Physical Laboratory Management Ltd,5169832,"2,974.00"
DESNZ,UKAEA,05/02/2024,Engineering Goods,Fusion,A W Stokes & Son (Drums) Ltd,5168876,"2,975.00"
DESNZ,UKAEA,05/02/2024,Engineering Goods,Fusion,Feedwater Ltd,5168725,"3,398.00"
DESNZ,UKAEA,05/02/2024,Engineering Goods,Fusion,FISHERSCIENTIFIC,5168549,"3,459.04"
DESNZ,UKAEA,05/02/2024,ICT,Fusion,Computacenter UK Ltd,5168396,"3,567.73"
DESNZ,UKAEA,14/02/2024,ICT,Fusion,Oracle Corporation UK Limited,5169723,"4,749.18"
DESNZ,UKAEA,27/02/2024,Waste Management,Fusion,Adler and Allan Ltd,5170484,"5,858.21"
DESNZ,UKAEA,14/02/2024,Temporary Staff - Industrial Placements,Fusion,AtkinsRealis UK Ltd,5169704,"8,253.00"
DESNZ,UKAEA,27/02/2024,Engineering Goods,Fusion,Aqua Cooling Limited,5170660,"8,659.72"
DESNZ,UKAEA,14/02/2024,Temporary Staff - Industrial Placements,Fusion,AtkinsRealis UK Ltd,5169730,"8,842.50"
DESNZ,UKAEA,21/02/2024,Facilities,Fusion,Nuvia Limited,5170115,"9,677.25"
DESNZ,UKAEA,27/02/2024,Consultancy - Other (per Cabinet Office definition),Fusion,Department for Energy Security and Net Zero (DESNZ,5170473,"10,726.40"
DESNZ,UKAEA,27/02/2024,Temporary Staff - Industrial Placements,Fusion,AtkinsRealis UK Ltd,5170770,"10,855.75"
DESNZ,UKAEA,14/02/2024,Temporary Staff - Industrial Placements,Fusion,AtkinsRealis UK Ltd,5169717,"11,263.09"
DESNZ,UKAEA,19/02/2024,Engineering Goods,Fusion,Veolia ES UK Ltd,5169987,"12,325.10"
DESNZ,UKAEA,27/02/2024,Facilities,Fusion,Element Digital Engineering Ltd,5170461,"12,366.79"
DESNZ,UKAEA,05/02/2024,Professional Services,Fusion,SA Group Ltd,5168790,"12,910.14"
DESNZ,UKAEA,21/02/2024,Engineering Goods,Fusion,Veolia ES UK Ltd,5170433,"13,754.66"
DESNZ,UKAEA,12/02/2024,Professional Services,Fusion,SA Group Ltd,5169524,"14,343.75"
DESNZ,UKAEA,27/02/2024,Professional Services,Fusion,AtkinsRealis UK Ltd,5170596,"15,000.00"
DESNZ,UKAEA,05/02/2024,Professional Services,Fusion,SA Group Ltd,5168890,"17,046.00"
DESNZ,UKAEA,05/02/2024,Professional Services,Fusion,SA Group Ltd,5168791,"18,661.79"
DESNZ,UKAEA,19/02/2024,Engineering Goods,Fusion,Pfeiffer Vacuum UK,5169822,"26,718.48"
DESNZ,UKAEA,12/02/2024,Engineering Goods,Fusion,CK Isotopes Limited,5169379,"43,140.82"
DESNZ,UKAEA,19/02/2024,Facilities,Fusion,Quartzelec Ltd,5169828,"57,508.65"
DESNZ,UKAEA,12/02/2024,Energy and Fuels,Fusion,EDF Energy,5169490,"-788,921.88"
DESNZ,UKAEA,05/02/2024,Energy and Fuels,Fusion,EDF Energy,5168865,"-235,826.36"
DESNZ,UKAEA,19/02/2024,Facilities,Fusion,Tacklestore Ltd TA SafetyLiftinGear,5163273,"-1,559.90"
DESNZ,UKAEA,27/02/2024,ICT,Fusion,Snelling Business Systems Limited,5170692,"-1,127.00"
DESNZ,UKAEA,21/02/2024,Professional Services,Fusion,Rullion Engineering Ltd,5169973,523.90
DESNZ,UKAEA,21/02/2024,Professional Services,Fusion,Rullion Engineering Ltd,5169977,571.50
DESNZ,UKAEA,21/02/2024,Professional Services,Fusion,Rullion Engineering Ltd,5169884,601.80
DESNZ,UKAEA,21/02/2024,Professional Services,Fusion,Rullion Engineering Ltd,5169954,629.17
DESNZ,UKAEA,27/02/2024,Facilities,Fusion,CPS Ltd,5170580,639.91
DESNZ,UKAEA,27/02/2024,ICT,Fusion,NV5 Geospatial Solutions UK Ltd,5170197,645.00
DESNZ,UKAEA,21/02/2024,Professional Services,Fusion,Rullion Engineering Ltd,5169874,656.21
DESNZ,UKAEA,07/02/2024,Engineering Goods,Fusion,BOC Ltd,5168652,675.70
DESNZ,UKAEA,05/02/2024,ICT,Fusion,Oracle Corporation UK Limited,5168843,685.63
DESNZ,UKAEA,27/02/2024,Professional Services,Fusion,Rullion Engineering Ltd,5170549,715.18
DESNZ,UKAEA,27/02/2024,Professional Services,Fusion,Rullion Engineering Ltd,5170548,724.72
DESNZ,UKAEA,21/02/2024,Professional Services,Fusion,Rullion Engineering Ltd,5169903,751.97
DESNZ,UKAEA,19/02/2024,Waste Management,Fusion,Machine Mart Ltd,5164032,778.00
DESNZ,UKAEA,21/02/2024,Facilities,Fusion,CPS Ltd,5170330,950.31
DESNZ,UKAEA,21/02/2024,Professional Services,Fusion,Rullion Engineering Ltd,5169876,958.62
DESNZ,UKAEA,21/02/2024,Professional Services,Fusion,Rullion Engineering Ltd,5169971,"1,013.63"
DESNZ,UKAEA,21/02/2024,Facilities,Fusion,CPS Ltd,5170333,"1,043.05"
DESNZ,UKAEA,05/02/2024,Communications,Fusion,Sundry Supplier,5168770,"1,050.70"
DESNZ,UKAEA,15/02/2024,Engineering Goods,Fusion,COSASCO Inc - USD,5169612,"1,075.56"
DESNZ,UKAEA,21/02/2024,Professional Services,Fusion,Rullion Engineering Ltd,5169957,"1,083.64"
DESNZ,UKAEA,07/02/2024,Learning and Development,Fusion,Elevation Training & Development Ltd,5169149,"1,100.00"
DESNZ,UKAEA,14/02/2024,Engineering Goods,Fusion,Op-Tec Systems Ltd,5169679,"1,190.83"
DESNZ,UKAEA,21/02/2024,Professional Services,Fusion,Rullion Engineering Ltd,5169921,"1,265.94"
DESNZ,UKAEA,27/02/2024,Professional Services,Fusion,Rullion Engineering Ltd,5170555,"1,269.47"
DESNZ,UKAEA,21/02/2024,Professional Services,Fusion,Rullion Engineering Ltd,5169922,"1,298.64"
DESNZ,UKAEA,21/02/2024,Professional Services,Fusion,Rullion Engineering Ltd,5169965,"1,298.91"
DESNZ,UKAEA,12/02/2024,Engineering Goods,Fusion,Beckhoff Automation Ltd,5169282,"1,323.04"
DESNZ,UKAEA,19/02/2024,Engineering Goods,Fusion,Beckhoff Automation Ltd,5170135,"1,323.04"
DESNZ,UKAEA,21/02/2024,Professional Services,Fusion,Rullion Engineering Ltd,5169891,"1,338.27"
DESNZ,UKAEA,07/02/2024,Engineering Goods,Fusion,Gardner Denver Thomas GmbH,5169044,"1,340.00"
DESNZ,UKAEA,21/02/2024,Professional Services,Fusion,Rullion Engineering Ltd,5169925,"1,358.94"
DESNZ,UKAEA,21/02/2024,Professional Services,Fusion,Rullion Engineering Ltd,5169907,"1,363.79"
DESNZ,UKAEA,21/02/2024,Professional Services,Fusion,Rullion Engineering Ltd,5169928,"1,369.74"
DESNZ,UKAEA,21/02/2024,Professional Services,Fusion,Rullion Engineering Ltd,5169875,"1,430.57"
DESNZ,UKAEA,19/02/2024,Engineering Goods,Fusion,RS Components Ltd,5169856,"1,459.20"
DESNZ,UKAEA,21/02/2024,Professional Services,Fusion,Rullion Engineering Ltd,5169931,"1,470.80"
DESNZ,UKAEA,21/02/2024,Professional Services,Fusion,Rullion Engineering Ltd,5169979,"1,570.43"
DESNZ,UKAEA,21/02/2024,Professional Services,Fusion,Rullion Engineering Ltd,5169919,"1,574.63"
DESNZ,UKAEA,21/02/2024,Professional Services,Fusion,Rullion Engineering Ltd,5169976,"1,585.06"
DESNZ,UKAEA,27/02/2024,Facilities,Fusion,Arcadis (UK) Ltd.,5170652,"1,631.21"
DESNZ,UKAEA,21/02/2024,Professional Services,Fusion,Rullion Engineering Ltd,5169896,"1,647.49"
DESNZ,UKAEA,14/02/2024,Professional Services,Fusion,Arthur J Gallagher Insurance Brokers Limited,5169691,"1,680.00"
DESNZ,UKAEA,27/02/2024,ICT,Fusion,Snelling Business Systems Limited,5170693,"1,689.00"
DESNZ,UKAEA,21/02/2024,Professional Services,Fusion,Rullion Engineering Ltd,5169882,"1,759.30"
DESNZ,UKAEA,07/02/2024,Communications,Fusion,SFL Mobile Radio Limited,5169087,"1,851.00"
DESNZ,UKAEA,21/02/2024,Professional Services,Fusion,Rullion Engineering Ltd,5169901,"1,853.83"
DESNZ,UKAEA,27/02/2024,Professional Services,Fusion,Rullion Engineering Ltd,5170547,"1,935.38"
DESNZ,UKAEA,21/02/2024,Professional Services,Fusion,Rullion Engineering Ltd,5169926,"1,957.56"
DESNZ,UKAEA,21/02/2024,Professional Services,Fusion,Rullion Engineering Ltd,5169895,"2,018.94"
DESNZ,UKAEA,21/02/2024,Professional Services,Fusion,Rullion Engineering Ltd,5169950,"2,025.19"
DESNZ,UKAEA,27/02/2024,Engineering Goods,Fusion,HRM T/A FRANCIS WARD,5170598,"2,125.65"
DESNZ,UKAEA,21/02/2024,Professional Services,Fusion,Rullion Engineering Ltd,5169964,"2,282.80"
DESNZ,UKAEA,14/02/2024,Engineering Goods,Fusion,PI  - Physik Instrumente Ltd,5169804,"2,341.00"
DESNZ,UKAEA,21/02/2024,Professional Services,Fusion,Rullion Engineering Ltd,5169880,"2,341.91"
DESNZ,UKAEA,27/02/2024,Professional Services,Fusion,Rullion Engineering Ltd,5170546,"2,350.18"
DESNZ,UKAEA,21/02/2024,Professional Services,Fusion,Rullion Engineering Ltd,5169953,"2,413.80"
DESNZ,UKAEA,05/02/2024,Professional Services,Fusion,RCD Lockinge Ltd,5168571,"2,459.44"
DESNZ,UKAEA,19/02/2024,ICT,Fusion,Oracle Corporation UK Limited,5170183,"2,500.00"
DESNZ,UKAEA,12/02/2024,Learning and Development,Fusion,Arco Ltd,5169444,"2,500.00"
DESNZ,UKAEA,21/02/2024,Professional Services,Fusion,Rullion Engineering Ltd,5169910,"2,504.15"
DESNZ,UKAEA,21/02/2024,Professional Services,Fusion,Rullion Engineering Ltd,5169969,"2,514.85"
DESNZ,UKAEA,27/02/2024,Professional Services,Fusion,Rullion Engineering Ltd,5170545,"2,529.65"
DESNZ,UKAEA,21/02/2024,Professional Services,Fusion,Rullion Engineering Ltd,5169916,"2,532.24"
DESNZ,UKAEA,05/02/2024,Learning and Development,Fusion,Siemens Plc,5168545,"2,670.00"
DESNZ,UKAEA,21/02/2024,Professional Services,Fusion,Rullion Engineering Ltd,5169943,"2,801.80"
DESNZ,UKAEA,21/02/2024,Professional Services,Fusion,Rullion Engineering Ltd,5169934,"2,870.43"
DESNZ,UKAEA,21/02/2024,Professional Services,Fusion,Rullion Engineering Ltd,5169914,"2,924.72"
DESNZ,UKAEA,21/02/2024,Professional Services,Fusion,Rullion Engineering Ltd,5169869,"2,947.59"
DESNZ,UKAEA,19/02/2024,Engineering Goods,Fusion,National Physical Laboratory Management Ltd,5169832,"2,974.00"
DESNZ,UKAEA,27/02/2024,Professional Services,Fusion,Rullion Engineering Ltd,5170544,"3,115.25"
DESNZ,UKAEA,21/02/2024,Professional Services,Fusion,Rullion Engineering Ltd,5169888,"3,220.68"
DESNZ,UKAEA,21/02/2024,Professional Services,Fusion,Rullion Engineering Ltd,5169972,"3,273.15"
DESNZ,UKAEA,07/02/2024,Energy and Fuels,Fusion,National Grid Plc,5169208,"3,379.62"
DESNZ,UKAEA,14/02/2024,Energy and Fuels,Fusion,National Grid Plc,5169643,"3,379.62"
DESNZ,UKAEA,21/02/2024,Professional Services,Fusion,Rullion Engineering Ltd,5169908,"3,439.17"
DESNZ,UKAEA,19/02/2024,Facilities,Fusion,Socomec U.K. Limited,5169857,"3,555.00"
DESNZ,UKAEA,21/02/2024,Professional Services,Fusion,Rullion Engineering Ltd,5169940,"3,635.74"
DESNZ,UKAEA,21/02/2024,Professional Services,Fusion,Rullion Engineering Ltd,5169904,"3,677.36"
DESNZ,UKAEA,21/02/2024,Professional Services,Fusion,Rullion Engineering Ltd,5169883,"3,836.38"
DESNZ,UKAEA,21/02/2024,Professional Services,Fusion,Rullion Engineering Ltd,5169978,"3,870.42"
DESNZ,UKAEA,21/02/2024,Professional Services,Fusion,Rullion Engineering Ltd,5169885,"3,919.52"
DESNZ,UKAEA,21/02/2024,Professional Services,Fusion,Rullion Engineering Ltd,5169917,"3,927.14"
DESNZ,UKAEA,21/02/2024,Professional Services,Fusion,Rullion Engineering Ltd,5169929,"3,935.87"
DESNZ,UKAEA,21/02/2024,Professional Services,Fusion,Rullion Engineering Ltd,5169941,"4,067.02"
DESNZ,UKAEA,05/02/2024,Engineering Goods,Fusion,Condec Industrial Maintenance,5168695,"4,250.00"
DESNZ,UKAEA,21/02/2024,Professional Services,Fusion,Rullion Engineering Ltd,5169881,"4,369.06"
DESNZ,UKAEA,21/02/2024,Professional Services,Fusion,Rullion Engineering Ltd,5169912,"4,496.35"
DESNZ,UKAEA,21/02/2024,Professional Services,Fusion,Rullion Engineering Ltd,5169948,"4,550.90"
DESNZ,UKAEA,05/02/2024,Facilities,Fusion,OCS Group UK Ltd,5168696,"4,568.07"
DESNZ,UKAEA,21/02/2024,Professional Services,Fusion,Rullion Engineering Ltd,5169937,"4,569.28"
DESNZ,UKAEA,21/02/2024,Professional Services,Fusion,Rullion Engineering Ltd,5169889,"4,643.10"
DESNZ,UKAEA,21/02/2024,Professional Services,Fusion,Rullion Engineering Ltd,5169947,"4,753.22"
DESNZ,UKAEA,21/02/2024,Professional Services,Fusion,Rullion Engineering Ltd,5169913,"4,797.16"
DESNZ,UKAEA,19/02/2024,Operational Goods,Fusion,Respirex International Ltd,5169831,"4,810.00"
DESNZ,UKAEA,21/02/2024,Professional Services,Fusion,Rullion Engineering Ltd,5169918,"4,925.75"
DESNZ,UKAEA,21/02/2024,Professional Services,Fusion,Rullion Engineering Ltd,5169946,"5,031.19"
DESNZ,UKAEA,21/02/2024,Professional Services,Fusion,Rullion Engineering Ltd,5169923,"5,086.98"
DESNZ,UKAEA,27/02/2024,Professional Services,Fusion,Rullion Engineering Ltd,5170543,"5,090.82"
DESNZ,UKAEA,21/02/2024,Professional Services,Fusion,Rullion Engineering Ltd,5169963,"5,117.09"
DESNZ,UKAEA,21/02/2024,Professional Services,Fusion,Rullion Engineering Ltd,5169961,"5,257.52"
DESNZ,UKAEA,21/02/2024,Professional Services,Fusion,Rullion Engineering Ltd,5169944,"5,418.35"
DESNZ,UKAEA,21/02/2024,Professional Services,Fusion,Rullion Engineering Ltd,5169900,"5,620.14"
DESNZ,UKAEA,21/02/2024,Professional Services,Fusion,Rullion Engineering Ltd,5169951,"5,623.47"
DESNZ,UKAEA,21/02/2024,Professional Services,Fusion,Rullion Engineering Ltd,5169902,"5,718.72"
DESNZ,UKAEA,21/02/2024,Professional Services,Fusion,Rullion Engineering Ltd,5169920,"5,724.01"
DESNZ,UKAEA,21/02/2024,Professional Services,Fusion,Rullion Engineering Ltd,5169966,"5,946.07"
DESNZ,UKAEA,21/02/2024,Professional Services,Fusion,Rullion Engineering Ltd,5169960,"6,001.01"
DESNZ,UKAEA,21/02/2024,Professional Services,Fusion,Rullion Engineering Ltd,5169955,"6,031.74"
DESNZ,UKAEA,21/02/2024,Professional Services,Fusion,Rullion Engineering Ltd,5169927,"6,062.83"
DESNZ,UKAEA,21/02/2024,Professional Services,Fusion,Rullion Engineering Ltd,5169906,"6,243.55"
DESNZ,UKAEA,27/02/2024,Professional Services,Fusion,Rullion Engineering Ltd,5170542,"6,335.18"
DESNZ,UKAEA,27/02/2024,Professional Services,Fusion,Socotec UK Limited,5170673,"6,492.41"
DESNZ,UKAEA,21/02/2024,Professional Services,Fusion,Rullion Engineering Ltd,5169892,"6,788.25"
DESNZ,UKAEA,07/02/2024,Facilities,Fusion,Amber Integrated Controls & Automation Ltd.,5166767,"6,945.00"
DESNZ,UKAEA,21/02/2024,Professional Services,Fusion,Rullion Engineering Ltd,5169915,"7,012.02"
DESNZ,UKAEA,21/02/2024,Professional Services,Fusion,Rullion Engineering Ltd,5169894,"7,045.97"
DESNZ,UKAEA,21/02/2024,Professional Services,Fusion,Rullion Engineering Ltd,5169970,"7,063.88"
DESNZ,UKAEA,21/02/2024,Professional Services,Fusion,Rullion Engineering Ltd,5169945,"7,082.24"
DESNZ,UKAEA,21/02/2024,Professional Services,Fusion,Rullion Engineering Ltd,5169873,"7,188.64"
DESNZ,UKAEA,21/02/2024,Professional Services,Fusion,Rullion Engineering Ltd,5169935,"7,380.00"
DESNZ,UKAEA,21/02/2024,Professional Services,Fusion,Rullion Engineering Ltd,5169975,"7,433.93"
DESNZ,UKAEA,21/02/2024,Professional Services,Fusion,Rullion Engineering Ltd,5169870,"8,656.62"
DESNZ,UKAEA,21/02/2024,Professional Services,Fusion,Rullion Engineering Ltd,5169909,"9,065.87"
DESNZ,UKAEA,21/02/2024,Professional Services,Fusion,Rullion Engineering Ltd,5169924,"9,138.33"
DESNZ,UKAEA,21/02/2024,Professional Services,Fusion,Rullion Engineering Ltd,5169956,"9,320.99"
DESNZ,UKAEA,21/02/2024,Professional Services,Fusion,Rullion Engineering Ltd,5169872,"10,058.90"
DESNZ,UKAEA,21/02/2024,Professional Services,Fusion,Rullion Engineering Ltd,5169871,"10,340.90"
DESNZ,UKAEA,21/02/2024,Professional Services,Fusion,Rullion Engineering Ltd,5169893,"10,380.49"
DESNZ,UKAEA,21/02/2024,Professional Services,Fusion,Rullion Engineering Ltd,5169968,"10,932.16"
DESNZ,UKAEA,27/02/2024,Professional Services,Fusion,Socotec UK Limited,5170674,"11,534.39"
DESNZ,UKAEA,21/02/2024,Professional Services,Fusion,Rullion Engineering Ltd,5169898,"12,465.60"
DESNZ,UKAEA,21/02/2024,Professional Services,Fusion,Rullion Engineering Ltd,5169952,"12,519.99"
DESNZ,UKAEA,21/02/2024,Professional Services,Fusion,Rullion Engineering Ltd,5169877,"13,163.85"
DESNZ,UKAEA,21/02/2024,Professional Services,Fusion,Rullion Engineering Ltd,5169867,"13,256.86"
DESNZ,UKAEA,21/02/2024,Professional Services,Fusion,Rullion Engineering Ltd,5169879,"13,707.40"
DESNZ,UKAEA,21/02/2024,Professional Services,Fusion,Rullion Engineering Ltd,5169933,"14,017.08"
DESNZ,UKAEA,21/02/2024,Professional Services,Fusion,Rullion Engineering Ltd,5169938,"14,134.34"
DESNZ,UKAEA,21/02/2024,Professional Services,Fusion,Rullion Engineering Ltd,5169887,"14,299.98"
DESNZ,UKAEA,05/02/2024,Energy and Fuels,Fusion,EDF Energy,5168881,"16,166.76"
DESNZ,UKAEA,21/02/2024,Facilities,Fusion,Graham Asset Management Ltd,5170412,"16,561.63"
DESNZ,UKAEA,21/02/2024,Professional Services,Fusion,Rullion Engineering Ltd,5169932,"18,284.56"
DESNZ,UKAEA,05/02/2024,Professional Services,Fusion,RCD Lockinge Ltd,5168613,"19,515.17"
DESNZ,UKAEA,21/02/2024,Personnel Related,Fusion,Nuvia Limited,5170131,"21,233.50"
DESNZ,UKAEA,12/02/2024,Facilities,Fusion,OCS Group UK Ltd,5169403,"32,317.66"
DESNZ,UKAEA,12/02/2024,Facilities,Fusion,OCS Group UK Ltd,5169405,"32,317.66"
DESNZ,UKAEA,07/02/2024,Engineering Goods,Fusion,BOC Ltd,5168715,"34,853.41"
DESNZ,UKAEA,07/02/2024,Construction,Fusion,Altrad Babcock Limited,5168629,"101,409.26"
DESNZ,UKAEA,07/02/2024,Construction,Fusion,Altrad Babcock Limited,5168641,"132,553.90"
DESNZ,UKAEA,07/02/2024,Construction,Fusion,Altrad Babcock Limited,5168630,"143,001.72"
DESNZ,UKAEA,07/02/2024,Construction,Fusion,Altrad Babcock Limited,5168640,"190,551.06"
DESNZ,UKAEA,05/02/2024,Energy and Fuels,Fusion,EDF Energy,5168880,"235,416.24"
DESNZ,UKAEA,12/02/2024,Energy and Fuels,Fusion,EDF Energy,5169476,"490,008.22"
DESNZ,UKAEA,12/02/2024,Energy and Fuels,Fusion,EDF Energy,5169491,"765,839.50"
DESNZ,UKAEA,05/02/2024,Learning and Development,d,Premier People Solutions T/A Premier Partnership,5168417,513.76
DESNZ,UKAEA,27/02/2024,Engineering Goods,Other,Fumair Ltd,5170703,589.00
DESNZ,UKAEA,07/02/2024,Engineering Goods,Other,BOC Ltd,5168872,650.65
DESNZ,UKAEA,14/02/2024,Engineering Goods,Other,Edmundson Electricals Ltd,5169787,652.39
DESNZ,UKAEA,19/02/2024,Engineering Goods,Other,Underwoods Electrical Distributors,5170165,714.25
DESNZ,UKAEA,05/02/2024,Engineering Goods,Other,A W Clarke,5168707,725.30
DESNZ,UKAEA,21/02/2024,Engineering Goods,Other,Edmundson Electricals Ltd,5170355,836.01
DESNZ,UKAEA,12/02/2024,Construction,Other,Anixter UK Ltd,5169239,860.00
DESNZ,UKAEA,07/02/2024,Other Employee Expenses,Other,Employee Expenses,20019902,884.50
DESNZ,UKAEA,21/02/2024,Engineering Goods,Other,CPS Ltd,5170375,"1,346.00"
DESNZ,UKAEA,05/02/2024,ICT,Other,Computacenter UK Ltd,5168825,"1,596.68"
DESNZ,UKAEA,07/02/2024,Learning and Development,Other,Buehler,5169211,"2,250.00"
DESNZ,UKAEA,27/02/2024,Engineering Goods,Other,Buehler,5170813,"2,281.00"
DESNZ,UKAEA,27/02/2024,Engineering Goods,Other,Edm Precision Technologies Ltd,5170597,"2,434.00"
DESNZ,UKAEA,19/02/2024,ICT,Other,Computacenter UK Ltd,5170159,"3,578.33"
DESNZ,UKAEA,19/02/2024,Engineering Goods,Other,Saffron Scientific Equipment Ltd,5169865,"3,940.00"
DESNZ,UKAEA,12/02/2024,Temporary Staff - Industrial Placements,Other,IDOM UK Ltd,5169252,"4,153.54"
DESNZ,UKAEA,27/02/2024,Engineering Goods,Other,Netzsch Thermal Instruments UK Ltd,5170616,"5,024.06"
DESNZ,UKAEA,27/02/2024,Engineering Goods,Other,Fumair Ltd,5170694,"7,000.00"
DESNZ,UKAEA,07/02/2024,Temporary Staff - Industrial Placements,Other,Nuvia Limited,5168411,"7,200.00"
DESNZ,UKAEA,12/02/2024,Research,Other,The University Of Sheffield,5169618,"10,000.00"
DESNZ,UKAEA,07/02/2024,Facilities,Other,Nuvia Limited,5169190,"11,806.08"
DESNZ,UKAEA,21/02/2024,Facilities,Other,Nuvia Limited,5170396,"16,890.00"
DESNZ,UKAEA,07/02/2024,Facilities,Other,Nuvia Limited,5169190,"21,660.00"
DESNZ,UKAEA,05/02/2024,Research,Other,Astral Neutronics Ltd,5168812,"50,000.00"
DESNZ,UKAEA,22/02/2024,Research,Other,"UT-Battelle, LLC dba Oak Ridge National Laboratory",5170319,"120,025.74"
DESNZ,UKAEA,27/02/2024,Engineering Goods,Fusion,Crystran Ltd,5170452,500.00
DESNZ,UKAEA,07/02/2024,Engineering Goods,Fusion,RS Components Ltd,5169151,653.01
DESNZ,UKAEA,07/02/2024,Personnel Related,Fusion,WR Group Limited,5169106,665.00
DESNZ,UKAEA,14/02/2024,Professional Services,Fusion,Wessex Fleet Solutions Ltd,5169620,695.87
DESNZ,UKAEA,07/02/2024,Engineering Goods,Fusion,RS Components Ltd,5169136,711.06
DESNZ,UKAEA,27/02/2024,Engineering Goods,Fusion,Faro Technologies UK Ltd,5170823,800.00
DESNZ,UKAEA,12/02/2024,Engineering Goods,Fusion,RS Components Ltd,5169465,886.62
DESNZ,UKAEA,07/02/2024,Engineering Goods,Fusion,Jacobs Clean Energy Ltd - GBP,5168487,949.40
DESNZ,UKAEA,21/02/2024,Engineering Goods,Fusion,Oxford Bolts & Bearings,5170335,979.66
DESNZ,UKAEA,05/02/2024,Engineering Goods,Fusion,Aalco Limited,5168643,"1,075.00"
DESNZ,UKAEA,27/02/2024,Facilities,Fusion,Denco Fluid Systems trading as Denco Lubrication Ltd,5170599,"1,092.00"
DESNZ,UKAEA,27/02/2024,Engineering Goods,Fusion,AD Metal Spinners Ltd,5170453,"1,155.00"
DESNZ,UKAEA,05/02/2024,Learning and Development,Fusion,The British Fluid Power Association Limited,5168474,"1,375.00"
DESNZ,UKAEA,05/02/2024,Engineering Goods,Fusion,Precision Waterjet Ltd,5168740,"1,780.53"
DESNZ,UKAEA,14/02/2024,Engineering Goods,Fusion,CloudNC Ltd,5169790,"1,856.00"
DESNZ,UKAEA,21/02/2024,Facilities,Fusion,Stevenson Construction,5170398,"1,875.00"
DESNZ,UKAEA,19/02/2024,Engineering Goods,Fusion,Tacklestore Ltd TA SafetyLiftinGear,5170099,"1,889.55"
DESNZ,UKAEA,21/02/2024,Research,Fusion,University of Liverpool,5170290,"1,912.80"
DESNZ,UKAEA,27/02/2024,Learning and Development,Fusion,Premier People Solutions T/A Premier Partnership,5170782,"2,064.00"
DESNZ,UKAEA,05/02/2024,Engineering Goods,Fusion,HES Sales UK Ltd,5168452,"2,266.00"
DESNZ,UKAEA,27/02/2024,Facilities,Fusion,Arcadis (UK) Ltd.,5170650,"2,285.40"
DESNZ,UKAEA,22/02/2024,Engineering Goods,Fusion,Laseroptik,5170455,"2,732.94"
DESNZ,UKAEA,27/02/2024,Engineering Goods,Fusion,Aalco Limited,5170500,"2,780.00"
DESNZ,UKAEA,19/02/2024,ICT,Fusion,Computacenter UK Ltd,5170161,"3,048.65"
DESNZ,UKAEA,27/02/2024,Engineering Goods,Fusion,Digi-Key Corporation,5170657,"3,098.42"
DESNZ,UKAEA,27/02/2024,Learning and Development,Fusion,Premier People Solutions T/A Premier Partnership,5170804,"3,174.00"
DESNZ,UKAEA,12/02/2024,Engineering Goods,Fusion,Edmundson Electricals Ltd,5169244,"3,472.66"
DESNZ,UKAEA,07/02/2024,Engineering Goods,Fusion,AS Scientific Products Ltd,5169201,"4,450.00"
DESNZ,UKAEA,05/02/2024,Professional Services,Fusion,Ridge And Partners Llp,5168539,"4,550.00"
DESNZ,UKAEA,12/02/2024,Single Asset Purchases,Fusion,ICEoxford Limited,5169342,"4,750.00"
DESNZ,UKAEA,19/02/2024,Single Asset Purchases,Fusion,ICEoxford Limited,5170057,"4,750.00"
DESNZ,UKAEA,27/02/2024,Construction,Fusion,Mildren Construction Ltd,5170748,"7,079.00"
DESNZ,UKAEA,07/02/2024,Professional Services,Fusion,Ridge And Partners Llp,5169195,"7,270.00"
DESNZ,UKAEA,27/02/2024,Engineering Goods,Fusion,Vacuum Furnace Engineering Ltd,5170456,"7,350.00"
DESNZ,UKAEA,07/02/2024,Engineering Goods,Fusion,TDK-Lambda UK Ltd,5169223,"7,428.90"
DESNZ,UKAEA,19/02/2024,Learning and Development,Fusion,Swagelok London,5170210,"8,300.00"
DESNZ,UKAEA,12/02/2024,Facilities,Fusion,Wilson James Limited,5169326,"12,173.10"
DESNZ,UKAEA,12/02/2024,Facilities,Fusion,AtkinsRealis UK Ltd,5169409,"12,237.50"
DESNZ,UKAEA,12/02/2024,Temporary Staff - Industrial Placements,Fusion,AtkinsRealis UK Ltd,5169564,"12,978.50"
DESNZ,UKAEA,27/02/2024,Engineering Goods,Fusion,Vacuum Furnace Engineering Ltd,5170457,"14,325.00"
DESNZ,UKAEA,12/02/2024,Professional Services,Fusion,AtkinsRealis UK Ltd,5169457,"14,431.50"
DESNZ,UKAEA,12/02/2024,Consultancy - Other (per Cabinet Office definition),Fusion,Frazer Nash Consultancy,5169311,"14,947.49"
DESNZ,UKAEA,15/02/2024,Engineering Goods,Fusion,Haines & Maassen Metallhandelsges.GmbH,5169363,"15,642.07"
DESNZ,UKAEA,14/02/2024,Facilities,Fusion,Smiths Industries Industrial Group Limited,5169631,"17,220.00"
DESNZ,UKAEA,07/02/2024,Energy and Fuels,Fusion,EDF Energy,5169181,"23,353.65"
DESNZ,UKAEA,21/02/2024,Engineering Goods,Fusion,Hydrasun Limited,5170378,"24,463.00"
DESNZ,UKAEA,27/02/2024,Construction,Fusion,Mildren Construction Ltd,5170752,"32,726.53"
DESNZ,UKAEA,27/02/2024,Construction,Fusion,Mildren Construction Ltd,5170748,"57,956.54"
DESNZ,UKAEA,07/02/2024,Engineering Goods,Fusion,Jacobs Clean Energy Ltd - GBP,5168489,"64,437.36"
DESNZ,UKAEA,12/02/2024,Research,Fusion,University of Bristol,5169519,"75,000.00"
DESNZ,UKAEA,21/02/2024,Engineering Goods,Fusion,Jacobs Clean Energy Ltd - GBP,5170327,"419,251.40"
DESNZ,UKAEA,31/01/2024,Professional Services,d,Keoghs,5170981,"-1,866.00"
DESNZ,UKAEA,21/02/2024,Learning and Development,Support Services,Neurodiversity Specialists,5170420,"-1,850.00"
DESNZ,UKAEA,21/02/2024,Learning and Development,Support Services,Neurodiversity Specialists,5170427,"-1,700.00"
DESNZ,UKAEA,12/02/2024,Learning and Development,Support Services,Gendered Intelligence,5169482,-795.00
DESNZ,UKAEA,07/02/2024,Temporary Staff - Rullion CMF/PO,Support Services,Rullion Engineering Ltd,5168747,500.00
DESNZ,UKAEA,27/02/2024,Learning and Development,Support Services,Compass Contract Services (UK) Ltd,5170811,500.00
DESNZ,UKAEA,12/02/2024,Communications,Support Services,Ricoh UK Ltd,5169384,507.50
DESNZ,UKAEA,21/02/2024,Travel,Support Services,Rullion Engineering Ltd,5170002,510.30
DESNZ,UKAEA,05/02/2024,Learning and Development,Support Services,Premier People Solutions T/A Premier Partnership,5168417,513.75
DESNZ,UKAEA,27/02/2024,Office Solutions,Support Services,Zuna Web Limited,5170829,525.00
DESNZ,UKAEA,05/02/2024,Office Solutions,Support Services,PDC Presentation Solutions Ltd,5168449,530.00
DESNZ,UKAEA,05/02/2024,Learning and Development,Support Services,Premier People Solutions T/A Premier Partnership,5168773,530.00
DESNZ,UKAEA,19/02/2024,Learning and Development,Support Services,Premier People Solutions T/A Premier Partnership,5170198,550.00
DESNZ,UKAEA,21/02/2024,Learning and Development,Support Services,Premier People Solutions T/A Premier Partnership,5170346,550.00
DESNZ,UKAEA,19/02/2024,Engineering Goods,Support Services,Ricardo - AEA Ltd,5170020,564.00
DESNZ,UKAEA,14/02/2024,Facilities,Support Services,SouthernsBroadstock Limited,5169261,566.00
DESNZ,UKAEA,05/02/2024,Personnel Related,Support Services,WR Group Limited,5168379,600.00
DESNZ,UKAEA,19/02/2024,Communications,Support Services,University of Southampton,5170022,600.00
DESNZ,UKAEA,12/02/2024,Learning and Development,Support Services,Advanced People Strategies Ltd,5169525,600.00
DESNZ,UKAEA,19/02/2024,Learning and Development,Support Services,Premier People Solutions T/A Premier Partnership,5170207,632.50
DESNZ,UKAEA,07/02/2024,Engineering Goods,Support Services,Ind-Tech Ltd,5169117,638.13
DESNZ,UKAEA,08/02/2024,Learning and Development,Support Services,Pluralsight LLC,5168525,648.41
DESNZ,UKAEA,12/02/2024,Communications,Support Services,Fulton Paper,5169578,675.00
DESNZ,UKAEA,05/02/2024,ICT,Support Services,boxxe Limited,5168521,686.07
DESNZ,UKAEA,05/02/2024,Learning and Development,Support Services,The Active Bystander Training Company Ltd,5168473,700.00
DESNZ,UKAEA,14/02/2024,Travel,Support Services,Employee Expenses,20020080,800.00
DESNZ,UKAEA,27/02/2024,Engineering Goods,Support Services,Faro Technologies UK Ltd,5170534,810.00
DESNZ,UKAEA,14/02/2024,Engineering Goods,Support Services,Ind-Tech Ltd,5169742,816.07
DESNZ,UKAEA,12/02/2024,Learning and Development,Support Services,Gendered Intelligence,5169485,842.95
DESNZ,UKAEA,14/02/2024,Travel,Support Services,Employee Expenses,20020080,856.98
DESNZ,UKAEA,14/02/2024,Temporary Staff - Rullion CMF/PO,Support Services,Rullion Engineering Ltd,5169334,863.08
DESNZ,UKAEA,12/02/2024,Learning and Development,Support Services,Gendered Intelligence,5169484,881.49
DESNZ,UKAEA,19/02/2024,Learning and Development,Support Services,PASS (Portable Appliance Safety Services) Ltd,5170048,885.00
DESNZ,UKAEA,05/02/2024,Learning and Development,Support Services,Premier People Solutions T/A Premier Partnership,5168416,895.00
DESNZ,UKAEA,05/02/2024,Learning and Development,Support Services,Premier People Solutions T/A Premier Partnership,5168774,895.00
DESNZ,UKAEA,19/02/2024,Learning and Development,Support Services,Premier People Solutions T/A Premier Partnership,5170211,895.00
DESNZ,UKAEA,21/02/2024,Learning and Development,Support Services,Premier People Solutions T/A Premier Partnership,5170343,895.00
DESNZ,UKAEA,21/02/2024,Learning and Development,Support Services,Premier People Solutions T/A Premier Partnership,5170344,895.00
DESNZ,UKAEA,12/02/2024,Engineering Goods,Support Services,Rapid Racking Ltd,5169573,897.87
DESNZ,UKAEA,14/02/2024,Personnel Related,Support Services,WR Group Limited,5169763,963.00
DESNZ,UKAEA,14/02/2024,Temporary Staff - Industrial Placements,Support Services,AtkinsRealis UK Ltd,5169704,982.50
DESNZ,UKAEA,14/02/2024,Travel,Support Services,Employee Expenses,20020080,985.23
DESNZ,UKAEA,21/02/2024,Learning and Development,Support Services,Neurodiversity Specialists,5170422,"1,000.00"
DESNZ,UKAEA,21/02/2024,Learning and Development,Support Services,Neurodiversity Specialists,5170423,"1,000.00"
DESNZ,UKAEA,21/02/2024,Learning and Development,Support Services,Neurodiversity Specialists,5170424,"1,000.00"
DESNZ,UKAEA,21/02/2024,Learning and Development,Support Services,Neurodiversity Specialists,5170428,"1,000.00"
DESNZ,UKAEA,05/02/2024,Consultancy - Other (per Cabinet Office definition),Support Services,Hydrock Consultants Ltd,5168917,"1,003.27"
DESNZ,UKAEA,19/02/2024,Facilities,Support Services,SouthernsBroadstock Limited,5170205,"1,008.00"
DESNZ,UKAEA,27/02/2024,Professional Services,Support Services,Burges Salmon,5170492,"1,056.00"
DESNZ,UKAEA,19/02/2024,ICT,Support Services,O2 UK Ltd,5170027,"1,068.95"
DESNZ,UKAEA,05/02/2024,ICT,Support Services,O2 UK Ltd,5168391,"1,091.20"
DESNZ,UKAEA,07/02/2024,Temporary Staff - Rullion CMF/PO,Support Services,Rullion Engineering Ltd,5169080,"1,153.10"
DESNZ,UKAEA,27/02/2024,Professional Services,Support Services,Burges Salmon,5170493,"1,168.00"
DESNZ,UKAEA,05/02/2024,Learning and Development,Support Services,Premier People Solutions T/A Premier Partnership,5168772,"1,177.00"
DESNZ,UKAEA,14/02/2024,Temporary Staff - Rullion CMF/PO,Support Services,Rullion Engineering Ltd,5169415,"1,223.64"
DESNZ,UKAEA,19/02/2024,ICT,Support Services,O2 UK Ltd,5170139,"1,331.00"
DESNZ,UKAEA,14/02/2024,Construction,Support Services,Altrad Babcock Limited,5169505,"1,363.91"
DESNZ,UKAEA,27/02/2024,Professional Services,Support Services,Burges Salmon,5170497,"1,474.00"
DESNZ,UKAEA,14/02/2024,Relocation Costs,Support Services,Employee Expenses,20020061,"1,500.00"
DESNZ,UKAEA,14/02/2024,Learning and Development,Support Services,The Jordan Legacy CIC,5169690,"1,500.00"
DESNZ,UKAEA,27/02/2024,Other External Costs,Support Services,HSE - Financial Operations,5170486,"1,560.40"
DESNZ,UKAEA,14/02/2024,Temporary Staff - Rullion CMF/PO,Support Services,Rullion Engineering Ltd,5169288,"1,572.73"
DESNZ,UKAEA,05/02/2024,Learning and Development,Support Services,Premier People Solutions T/A Premier Partnership,5168415,"1,590.00"
DESNZ,UKAEA,21/02/2024,Learning and Development,Support Services,Pilz Automation Technology,5170366,"1,625.00"
DESNZ,UKAEA,07/02/2024,Operational Goods,Support Services,Cambridge University Press & Assessment,5169007,"1,744.00"
DESNZ,UKAEA,27/02/2024,Professional Services,Support Services,Burges Salmon,5170511,"1,760.00"
DESNZ,UKAEA,27/02/2024,Professional Services,Support Services,Burges Salmon,5170508,"1,774.00"
DESNZ,UKAEA,14/02/2024,Relocation Costs,Support Services,Employee Expenses,20020061,"1,783.92"
DESNZ,UKAEA,07/02/2024,Temporary Staff - Rullion CMF/PO,Support Services,Rullion Engineering Ltd,5168989,"1,972.14"
DESNZ,UKAEA,27/02/2024,Professional Services,Support Services,Burges Salmon,5170509,"2,024.00"
DESNZ,UKAEA,12/02/2024,Professional Services,Support Services,Managing For Quality Ltd (Mfq),5169265,"2,040.00"
DESNZ,UKAEA,05/02/2024,Communications,Support Services,Fulton Paper,5168448,"2,070.00"
DESNZ,UKAEA,07/02/2024,Temporary Staff - Rullion CMF/PO,Support Services,Rullion Engineering Ltd,5168846,"2,077.73"
DESNZ,UKAEA,27/02/2024,ICT,Support Services,Dassault Systemes UK Ltd,5170670,"2,080.00"
DESNZ,UKAEA,05/02/2024,Personnel Related,Support Services,Buro Happold Limited,5168620,"2,275.00"
DESNZ,UKAEA,05/02/2024,Professional Services,Support Services,Ridge And Partners Llp,5168476,"2,279.86"
DESNZ,UKAEA,14/02/2024,Construction,Support Services,Altrad Babcock Limited,5169503,"2,342.23"
DESNZ,UKAEA,19/02/2024,Personnel Related,Support Services,People Asset Management Ltd,5170105,"2,431.60"
DESNZ,UKAEA,21/02/2024,Temporary Staff - Rullion CMF/PO,Support Services,Rullion Engineering Ltd,5169863,"2,445.18"
DESNZ,UKAEA,05/02/2024,Learning and Development,Support Services,Premier People Solutions T/A Premier Partnership,5168632,"2,520.00"
DESNZ,UKAEA,27/02/2024,Professional Services,Support Services,Burges Salmon,5170505,"2,668.00"
DESNZ,UKAEA,07/02/2024,Temporary Staff - Rullion CMF/PO,Support Services,Rullion Engineering Ltd,5169099,"2,717.04"
DESNZ,UKAEA,27/02/2024,Professional Services,Support Services,Burges Salmon,5170494,"2,970.00"
DESNZ,UKAEA,07/02/2024,Temporary Staff - Rullion CMF/PO,Support Services,Rullion Engineering Ltd,5168835,"3,016.58"
DESNZ,UKAEA,07/02/2024,Temporary Staff - Rullion CMF/PO,Support Services,Rullion Engineering Ltd,5169020,"3,060.00"
DESNZ,UKAEA,14/02/2024,Temporary Staff - Rullion CMF/PO,Support Services,Rullion Engineering Ltd,5169348,"3,088.05"
DESNZ,UKAEA,14/02/2024,Relocation Costs,Support Services,Employee Expenses,20020061,"3,115.00"
DESNZ,UKAEA,19/02/2024,Learning and Development,Support Services,Oxford Procurement Training,5169980,"3,125.00"
DESNZ,UKAEA,19/02/2024,Learning and Development,Support Services,Bridgwater & Taunton College,5170024,"3,188.00"
DESNZ,UKAEA,07/02/2024,Temporary Staff - Rullion CMF/PO,Support Services,Rullion Engineering Ltd,5169017,"3,189.15"
DESNZ,UKAEA,07/02/2024,Temporary Staff - Rullion CMF/PO,Support Services,Rullion Engineering Ltd,5168686,"3,239.67"
DESNZ,UKAEA,07/02/2024,Temporary Staff - Rullion CMF/PO,Support Services,Rullion Engineering Ltd,5169006,"3,370.60"
DESNZ,UKAEA,07/02/2024,Temporary Staff - Rullion CMF/PO,Support Services,Rullion Engineering Ltd,5169037,"3,399.15"
DESNZ,UKAEA,14/02/2024,Facilities,Support Services,SouthernsBroadstock Limited,5168590,"3,436.00"
DESNZ,UKAEA,14/02/2024,Temporary Staff - Rullion CMF/PO,Support Services,Rullion Engineering Ltd,5169561,"3,444.42"
DESNZ,UKAEA,27/02/2024,Learning and Development,Support Services,University Of Teeside,5170712,"3,465.00"
DESNZ,UKAEA,14/02/2024,Temporary Staff - Rullion CMF/PO,Support Services,Rullion Engineering Ltd,5169395,"3,605.67"
DESNZ,UKAEA,14/02/2024,Temporary Staff - Rullion CMF/PO,Support Services,Rullion Engineering Ltd,5169407,"3,712.14"
DESNZ,UKAEA,07/02/2024,Personnel Related,Support Services,Rullion Engineering Ltd,5169184,"3,906.00"
DESNZ,UKAEA,14/02/2024,Temporary Staff - Rullion CMF/PO,Support Services,Rullion Engineering Ltd,5169387,"3,929.20"
DESNZ,UKAEA,07/02/2024,ICT,Support Services,Alfasoft Limited,5168927,"4,035.00"
DESNZ,UKAEA,19/02/2024,Learning and Development,Support Services,Premier People Solutions T/A Premier Partnership,5170127,"4,145.00"
DESNZ,UKAEA,14/02/2024,Temporary Staff - Rullion CMF/PO,Support Services,Rullion Engineering Ltd,5169397,"4,165.40"
DESNZ,UKAEA,07/02/2024,Temporary Staff - Rullion CMF/PO,Support Services,Rullion Engineering Ltd,5168990,"4,229.40"
DESNZ,UKAEA,05/02/2024,Relocation Costs,Support Services,Employee Expenses,20019850,"4,315.00"
DESNZ,UKAEA,05/02/2024,ICT,Support Services,boxxe Limited,5168522,"4,320.00"
DESNZ,UKAEA,27/02/2024,Professional Services,Support Services,Burges Salmon,5170507,"4,376.00"
DESNZ,UKAEA,14/02/2024,Temporary Staff - Rullion CMF/PO,Support Services,Rullion Engineering Ltd,5169729,"4,473.00"
DESNZ,UKAEA,14/02/2024,Temporary Staff - Rullion CMF/PO,Support Services,Rullion Engineering Ltd,5169530,"4,504.96"
DESNZ,UKAEA,27/02/2024,Travel,Support Services,Clarity Travel Limited,5170619,"4,517.83"
DESNZ,UKAEA,21/02/2024,Temporary Staff - Rullion CMF/PO,Support Services,Rullion Engineering Ltd,5169836,"4,541.49"
DESNZ,UKAEA,07/02/2024,Temporary Staff - Rullion CMF/PO,Support Services,Rullion Engineering Ltd,5168776,"4,659.23"
DESNZ,UKAEA,14/02/2024,Personnel Related,Support Services,Rullion Engineering Ltd,5169760,"4,662.00"
DESNZ,UKAEA,07/02/2024,Temporary Staff - Rullion CMF/PO,Support Services,Rullion Engineering Ltd,5169040,"4,667.47"
DESNZ,UKAEA,14/02/2024,Temporary Staff - Rullion CMF/PO,Support Services,Rullion Engineering Ltd,5169343,"4,763.55"
DESNZ,UKAEA,14/02/2024,Temporary Staff - Rullion CMF/PO,Support Services,Rullion Engineering Ltd,5169535,"4,812.77"
DESNZ,UKAEA,14/02/2024,Temporary Staff - Rullion CMF/PO,Support Services,Rullion Engineering Ltd,5169351,"4,828.28"
DESNZ,UKAEA,21/02/2024,Temporary Staff - Rullion CMF/PO,Support Services,Rullion Engineering Ltd,5169864,"4,949.46"
DESNZ,UKAEA,05/02/2024,ICT,Support Services,Allium UK Holding Limited,5168745,"5,000.00"
DESNZ,UKAEA,19/02/2024,Professional Services,Support Services,Didcot First Limited,5170217,"5,000.00"
DESNZ,UKAEA,14/02/2024,Temporary Staff - Rullion CMF/PO,Support Services,Rullion Engineering Ltd,5169532,"5,103.00"
DESNZ,UKAEA,07/02/2024,Temporary Staff - Rullion CMF/PO,Support Services,Rullion Engineering Ltd,5169148,"5,267.46"
DESNZ,UKAEA,07/02/2024,Temporary Staff - Rullion CMF/PO,Support Services,Rullion Engineering Ltd,5168693,"5,320.36"
DESNZ,UKAEA,14/02/2024,Temporary Staff - Rullion CMF/PO,Support Services,Rullion Engineering Ltd,5169414,"5,359.44"
DESNZ,UKAEA,14/02/2024,Temporary Staff - Rullion CMF/PO,Support Services,Rullion Engineering Ltd,5169455,"5,380.50"
DESNZ,UKAEA,22/02/2024,ICT,Support Services,Volume Graphics GmbH,5170274,"5,389.03"
DESNZ,UKAEA,19/02/2024,Learning and Development,Support Services,Doulos Ltd,5170138,"5,625.00"
DESNZ,UKAEA,14/02/2024,Temporary Staff - Rullion CMF/PO,Support Services,Rullion Engineering Ltd,5169574,"5,692.05"
DESNZ,UKAEA,07/02/2024,Temporary Staff - Rullion CMF/PO,Support Services,Rullion Engineering Ltd,5168888,"5,799.75"
DESNZ,UKAEA,27/02/2024,Professional Services,Support Services,Burges Salmon,5170496,"5,931.00"
DESNZ,UKAEA,14/02/2024,Temporary Staff - Rullion CMF/PO,Support Services,Rullion Engineering Ltd,5169536,"5,993.55"
DESNZ,UKAEA,21/02/2024,Learning and Development,Support Services,Premier People Solutions T/A Premier Partnership,5170345,"6,001.00"
DESNZ,UKAEA,14/02/2024,Temporary Staff - Rullion CMF/PO,Support Services,Rullion Engineering Ltd,5169533,"6,220.74"
DESNZ,UKAEA,07/02/2024,Temporary Staff - Rullion CMF/PO,Support Services,Rullion Engineering Ltd,5168627,"6,240.09"
DESNZ,UKAEA,07/02/2024,ICT,Support Services,Amtech Group Ltd,5168995,"6,300.00"
DESNZ,UKAEA,12/02/2024,Personnel Related,Support Services,Ibex Gale Limited,5169521,"6,409.63"
DESNZ,UKAEA,07/02/2024,Temporary Staff - Rullion CMF/PO,Support Services,Rullion Engineering Ltd,5168631,"6,437.15"
DESNZ,UKAEA,19/02/2024,ICT,Support Services,Cinos Limited,5170100,"6,440.00"
DESNZ,UKAEA,22/02/2024,ICT,Support Services,Zabbix,5170471,"6,652.43"
DESNZ,UKAEA,07/02/2024,Temporary Staff - Rullion CMF/PO,Support Services,Rullion Engineering Ltd,5168898,"6,867.09"
DESNZ,UKAEA,14/02/2024,Personnel Related,Support Services,Robertson Bell recruitment Agency,5169683,"6,943.94"
DESNZ,UKAEA,07/02/2024,Temporary Staff - Rullion CMF/PO,Support Services,Rullion Engineering Ltd,5169035,"7,032.39"
DESNZ,UKAEA,14/02/2024,Temporary Staff - Rullion CMF/PO,Support Services,Rullion Engineering Ltd,5169489,"7,087.50"
DESNZ,UKAEA,19/02/2024,ICT,Support Services,Jisc Services Limited,5170032,"7,087.84"
DESNZ,UKAEA,05/02/2024,Travel,Support Services,Flightlink Chauffeurs Limited,5168904,"7,104.66"
DESNZ,UKAEA,14/02/2024,Temporary Staff - Rullion CMF/PO,Support Services,Rullion Engineering Ltd,5169576,"7,132.66"
DESNZ,UKAEA,07/02/2024,Temporary Staff - Rullion CMF/PO,Support Services,Rullion Engineering Ltd,5168682,"7,180.77"
DESNZ,UKAEA,14/02/2024,Temporary Staff - Rullion CMF/PO,Support Services,Rullion Engineering Ltd,5169506,"7,303.84"
DESNZ,UKAEA,07/02/2024,Facilities,Support Services,AtkinsRealis UK Ltd,5169212,"7,402.91"
DESNZ,UKAEA,07/02/2024,Temporary Staff - Rullion CMF/PO,Support Services,Rullion Engineering Ltd,5169002,"7,441.89"
DESNZ,UKAEA,07/02/2024,Temporary Staff - Rullion CMF/PO,Support Services,Rullion Engineering Ltd,5168897,"7,447.05"
DESNZ,UKAEA,14/02/2024,Temporary Staff - Rullion CMF/PO,Support Services,Rullion Engineering Ltd,5169347,"7,470.91"
DESNZ,UKAEA,07/02/2024,Temporary Staff - Rullion CMF/PO,Support Services,Rullion Engineering Ltd,5169164,"7,587.96"
DESNZ,UKAEA,21/02/2024,Learning and Development,Support Services,Cabinet Office (Government Business Services),5170416,"7,700.00"
DESNZ,UKAEA,14/02/2024,Temporary Staff - Rullion CMF/PO,Support Services,Rullion Engineering Ltd,5169350,"7,703.63"
DESNZ,UKAEA,07/02/2024,Temporary Staff - Rullion CMF/PO,Support Services,Rullion Engineering Ltd,5169018,"7,732.01"
DESNZ,UKAEA,07/02/2024,Temporary Staff - Rullion CMF/PO,Support Services,Rullion Engineering Ltd,5168758,"7,776.66"
DESNZ,UKAEA,07/02/2024,Temporary Staff - Rullion CMF/PO,Support Services,Rullion Engineering Ltd,5168765,"7,805.54"
DESNZ,UKAEA,27/02/2024,Professional Services,Support Services,Verifile Limited,5170569,"7,940.74"
DESNZ,UKAEA,14/02/2024,Temporary Staff - Rullion CMF/PO,Support Services,Rullion Engineering Ltd,5169352,"7,973.45"
DESNZ,UKAEA,07/02/2024,Temporary Staff - Rullion CMF/PO,Support Services,Rullion Engineering Ltd,5169004,"7,977.15"
DESNZ,UKAEA,27/02/2024,Relocation Costs,Support Services,Employee Expenses,20020273,"8,000.00"
DESNZ,UKAEA,07/02/2024,Temporary Staff - Rullion CMF/PO,Support Services,Rullion Engineering Ltd,5168717,"8,072.64"
DESNZ,UKAEA,07/02/2024,Temporary Staff - Rullion CMF/PO,Support Services,Rullion Engineering Ltd,5168859,"8,118.28"
DESNZ,UKAEA,14/02/2024,Temporary Staff - Rullion CMF/PO,Support Services,Rullion Engineering Ltd,5169423,"8,129.64"
DESNZ,UKAEA,07/02/2024,Temporary Staff - Rullion CMF/PO,Support Services,Rullion Engineering Ltd,5169067,"8,163.61"
DESNZ,UKAEA,14/02/2024,Temporary Staff - Rullion CMF/PO,Support Services,Rullion Engineering Ltd,5169327,"8,230.80"
DESNZ,UKAEA,14/02/2024,Temporary Staff - Rullion CMF/PO,Support Services,Rullion Engineering Ltd,5169511,"8,257.64"
DESNZ,UKAEA,14/02/2024,Communications,Support Services,Ricoh UK Ltd,5169682,"8,269.58"
DESNZ,UKAEA,07/02/2024,Temporary Staff - Rullion CMF/PO,Support Services,Rullion Engineering Ltd,5168669,"8,317.42"
DESNZ,UKAEA,07/02/2024,Temporary Staff - Rullion CMF/PO,Support Services,Rullion Engineering Ltd,5168928,"8,410.00"
DESNZ,UKAEA,07/02/2024,Temporary Staff - Rullion CMF/PO,Support Services,Rullion Engineering Ltd,5168857,"8,505.00"
DESNZ,UKAEA,14/02/2024,Temporary Staff - Rullion CMF/PO,Support Services,Rullion Engineering Ltd,5169512,"8,517.18"
DESNZ,UKAEA,05/02/2024,Learning and Development,Support Services,Oxford Procurement Training,5168436,"8,550.00"
DESNZ,UKAEA,14/02/2024,Temporary Staff - Rullion CMF/PO,Support Services,Rullion Engineering Ltd,5169396,"8,579.94"
DESNZ,UKAEA,14/02/2024,Temporary Staff - Rullion CMF/PO,Support Services,Rullion Engineering Ltd,5169227,"8,652.60"
DESNZ,UKAEA,07/02/2024,Temporary Staff - Rullion CMF/PO,Support Services,Rullion Engineering Ltd,5169070,"8,680.29"
DESNZ,UKAEA,14/02/2024,Temporary Staff - Rullion CMF/PO,Support Services,Rullion Engineering Ltd,5169335,"8,911.37"
DESNZ,UKAEA,07/02/2024,Temporary Staff - Rullion CMF/PO,Support Services,Rullion Engineering Ltd,5168987,"8,928.11"
DESNZ,UKAEA,29/02/2024,Personnel Related,Support Services,CGI IT UK Limited,5166577,"8,940.06"
DESNZ,UKAEA,07/02/2024,Temporary Staff - Rullion CMF/PO,Support Services,Rullion Engineering Ltd,5169146,"9,017.72"
DESNZ,UKAEA,14/02/2024,Temporary Staff - Rullion CMF/PO,Support Services,Rullion Engineering Ltd,5169426,"9,069.57"
DESNZ,UKAEA,07/02/2024,Temporary Staff - Rullion CMF/PO,Support Services,Rullion Engineering Ltd,5169213,"9,071.74"
DESNZ,UKAEA,14/02/2024,Temporary Staff - Rullion CMF/PO,Support Services,Rullion Engineering Ltd,5169616,"9,170.59"
DESNZ,UKAEA,14/02/2024,Temporary Staff - Rullion CMF/PO,Support Services,Rullion Engineering Ltd,5169345,"9,446.34"
DESNZ,UKAEA,07/02/2024,Temporary Staff - Rullion CMF/PO,Support Services,Rullion Engineering Ltd,5168886,"9,626.27"
DESNZ,UKAEA,27/02/2024,Construction,Support Services,AtkinsR�alis � Lead Advisor Design Contract,5170578,"9,702.33"
DESNZ,UKAEA,14/02/2024,Temporary Staff - Rullion CMF/PO,Support Services,Rullion Engineering Ltd,5169531,"9,725.63"
DESNZ,UKAEA,07/02/2024,Temporary Staff - Rullion CMF/PO,Support Services,Rullion Engineering Ltd,5169069,"9,896.77"
DESNZ,UKAEA,14/02/2024,Temporary Staff - Rullion CMF/PO,Support Services,Rullion Engineering Ltd,5169526,"9,964.52"
DESNZ,UKAEA,07/02/2024,Temporary Staff - Rullion CMF/PO,Support Services,Rullion Engineering Ltd,5169015,"10,063.07"
DESNZ,UKAEA,07/02/2024,Temporary Staff - Rullion CMF/PO,Support Services,Rullion Engineering Ltd,5168836,"10,145.10"
DESNZ,UKAEA,07/02/2024,Temporary Staff - Rullion CMF/PO,Support Services,Rullion Engineering Ltd,5168800,"10,177.35"
DESNZ,UKAEA,21/02/2024,Temporary Staff - Rullion CMF/PO,Support Services,Rullion Engineering Ltd,5169862,"10,423.97"
DESNZ,UKAEA,05/02/2024,Learning and Development,Support Services,Instructus group,5168813,"10,720.00"
DESNZ,UKAEA,05/02/2024,Learning and Development,Support Services,Instructus group,5168814,"10,720.00"
DESNZ,UKAEA,14/02/2024,Temporary Staff - Rullion CMF/PO,Support Services,Rullion Engineering Ltd,5169349,"10,882.61"
DESNZ,UKAEA,07/02/2024,Temporary Staff - Rullion CMF/PO,Support Services,Rullion Engineering Ltd,5168817,"11,169.17"
DESNZ,UKAEA,07/02/2024,Temporary Staff - Rullion CMF/PO,Support Services,Rullion Engineering Ltd,5168996,"11,782.67"
DESNZ,UKAEA,21/02/2024,Temporary Staff - Rullion CMF/PO,Support Services,Rullion Engineering Ltd,5169999,"12,347.50"
DESNZ,UKAEA,05/02/2024,Personnel Related,Support Services,People Asset Management Ltd,5168459,"12,439.79"
DESNZ,UKAEA,05/02/2024,Personnel Related,Support Services,People Asset Management Ltd,5168460,"12,439.79"
DESNZ,UKAEA,05/02/2024,Personnel Related,Support Services,People Asset Management Ltd,5168462,"12,439.79"
DESNZ,UKAEA,19/02/2024,Personnel Related,Support Services,People Asset Management Ltd,5170221,"12,439.79"
DESNZ,UKAEA,05/02/2024,Office Solutions,Support Services,Kyocera Document Solutions (U.K) Ltd.,5168612,"12,477.35"
DESNZ,UKAEA,07/02/2024,Temporary Staff - Rullion CMF/PO,Support Services,Rullion Engineering Ltd,5168820,"12,658.29"
DESNZ,UKAEA,14/02/2024,Temporary Staff - Rullion CMF/PO,Support Services,Rullion Engineering Ltd,5169346,"13,287.10"
DESNZ,UKAEA,27/02/2024,Professional Services,Support Services,Burges Salmon,5170498,"18,160.00"
DESNZ,UKAEA,05/02/2024,Professional Services,Support Services,HM Treasury T/A Government Internal Audit Service,5168596,"19,543.75"
DESNZ,UKAEA,27/02/2024,Temporary Staff - Industrial Placements,Support Services,Arcadis Consulting (UK) Limited,5170572,"22,048.39"
DESNZ,UKAEA,12/02/2024,ICT,Support Services,boxxe Limited,5169301,"27,435.47"
DESNZ,UKAEA,22/02/2024,Operational Goods,Support Services,Content Online,5170316,"31,383.40"
DESNZ,UKAEA,27/02/2024,Learning and Development,Support Services,Skern Lodge Ltd.,5170685,"34,450.00"
DESNZ,UKAEA,27/02/2024,Travel,Support Services,Clarity Travel Limited,5170619,"104,155.46"
DESNZ,UKAEA,27/02/2024,Facilities,Property,Trinity Fire & Security Systems Ltd,5170615,"-7,326.00"
DESNZ,UKAEA,12/02/2024,Facilities,Property,OCS Group UK Ltd,5169401,"-1,430.92"
DESNZ,UKAEA,27/02/2024,Facilities,Property,Gunfire Ltd,5170012,-764.00
DESNZ,UKAEA,12/02/2024,Energy and Fuels,Property,EDF Energy,5169323,506.71
DESNZ,UKAEA,12/02/2024,Energy and Fuels,Property,EDF Energy,5169339,521.50
DESNZ,UKAEA,14/02/2024,Facilities,Property,Wilson James Limited,5169746,537.00
DESNZ,UKAEA,07/02/2024,Facilities,Property,Altrad Babcock Limited,5169107,540.81
DESNZ,UKAEA,07/02/2024,Facilities,Property,Vergo Pest Management Ltd,5168616,550.00
DESNZ,UKAEA,12/02/2024,Facilities,Property,OCS Group UK Ltd,5169402,551.44
DESNZ,UKAEA,07/02/2024,Waste Management,Property,Mercury Recycling Ltd,5169031,592.00
DESNZ,UKAEA,05/02/2024,Engineering Goods,Property,Edmundson Electricals Ltd,5168566,600.00
DESNZ,UKAEA,12/02/2024,Facilities,Property,ASSA ABLOY Ltd,5169279,604.60
DESNZ,UKAEA,21/02/2024,Engineering Goods,Property,Budget Forktrucks Ltd,5170350,606.67
DESNZ,UKAEA,27/02/2024,Facilities,Property,Trinity Fire & Security Systems Ltd,5170711,638.40
DESNZ,UKAEA,19/02/2024,Engineering Goods,Property,Edmundson Electricals Ltd,5170112,675.52
DESNZ,UKAEA,07/02/2024,Energy and Fuels,Property,EDF Energy,5169171,683.29
DESNZ,UKAEA,27/02/2024,Travel,Property,Arcadis Consulting (UK) Limited,5170579,715.31
DESNZ,UKAEA,14/02/2024,Facilities,Property,Idverde Ltd,5169398,720.00
DESNZ,UKAEA,05/02/2024,Facilities,Property,Trinity Fire & Security Systems Ltd,5168485,735.20
DESNZ,UKAEA,27/02/2024,Facilities,Property,Gunfire Ltd,5169984,764.00
DESNZ,UKAEA,07/02/2024,Facilities,Property,Vergo Pest Management Ltd,5168692,781.25
DESNZ,UKAEA,27/02/2024,Facilities,Property,Gunfire Ltd,5170585,785.36
DESNZ,UKAEA,05/02/2024,Facilities,Property,Wilson James Limited,5168593,792.91
DESNZ,UKAEA,05/02/2024,Facilities,Property,BWT UK Limited,5168581,798.86
DESNZ,UKAEA,05/02/2024,ICT,Property,Network Installation Solutions Ltd,5168388,800.00
DESNZ,UKAEA,12/02/2024,Energy and Fuels,Property,EDF Energy,5169316,856.04
DESNZ,UKAEA,27/02/2024,Facilities,Property,Inspectas Compliance Ltd,5170738,890.00
DESNZ,UKAEA,07/02/2024,Construction,Property,AtkinsR�alis � Lead Advisor Design Contract,5169045,900.00
DESNZ,UKAEA,21/02/2024,Facilities,Property,Wilson James Limited,5170310,902.95
DESNZ,UKAEA,27/02/2024,Facilities,Property,Trinity Fire & Security Systems Ltd,5170605,915.75
DESNZ,UKAEA,27/02/2024,Facilities,Property,Trinity Fire & Security Systems Ltd,5170606,915.75
DESNZ,UKAEA,27/02/2024,Facilities,Property,Trinity Fire & Security Systems Ltd,5170607,915.75
DESNZ,UKAEA,27/02/2024,Facilities,Property,Trinity Fire & Security Systems Ltd,5170608,915.75
DESNZ,UKAEA,27/02/2024,Facilities,Property,Trinity Fire & Security Systems Ltd,5170609,915.75
DESNZ,UKAEA,27/02/2024,Facilities,Property,Trinity Fire & Security Systems Ltd,5170610,915.75
DESNZ,UKAEA,27/02/2024,Facilities,Property,Trinity Fire & Security Systems Ltd,5170611,915.75
DESNZ,UKAEA,27/02/2024,Facilities,Property,Trinity Fire & Security Systems Ltd,5170612,915.75
DESNZ,UKAEA,21/02/2024,Facilities,Property,Inspectas Compliance Ltd,5170148,949.00
DESNZ,UKAEA,07/02/2024,Energy and Fuels,Property,EDF Energy,5169170,"1,081.25"
DESNZ,UKAEA,27/02/2024,Facilities,Property,Gunfire Ltd,5170482,"1,100.00"
DESNZ,UKAEA,19/02/2024,Engineering Goods,Property,Edmundson Electricals Ltd,5170111,"1,164.11"
DESNZ,UKAEA,21/02/2024,Facilities,Property,Wilson James Limited,5170309,"1,195.85"
DESNZ,UKAEA,27/02/2024,Facilities,Property,Inspectas Compliance Ltd,5170733,"1,200.00"
DESNZ,UKAEA,12/02/2024,Energy and Fuels,Property,EDF Energy,5169322,"1,204.96"
DESNZ,UKAEA,21/02/2024,Engineering Goods,Property,Budget Forktrucks Ltd,5170349,"1,256.67"
DESNZ,UKAEA,27/02/2024,Facilities,Property,Imperium Fire Consultancy Ltd,5170618,"1,300.00"
DESNZ,UKAEA,14/02/2024,Temporary Staff - Rullion CMF/PO,Property,Rullion Engineering Ltd,5169456,"1,305.76"
DESNZ,UKAEA,27/02/2024,Facilities,Property,Trinity Fire & Security Systems Ltd,5170706,"1,401.44"
DESNZ,UKAEA,27/02/2024,Professional Services,Property,BSP Consulting,5170475,"1,500.00"
DESNZ,UKAEA,07/02/2024,Facilities,Property,Gunfire Ltd,5168953,"1,588.00"
DESNZ,UKAEA,12/02/2024,Facilities,Property,OCS Group UK Ltd,5169402,"1,602.02"
DESNZ,UKAEA,27/02/2024,Construction,Property,AtkinsR�alis � Lead Advisor Design Contract,5170714,"1,800.00"
DESNZ,UKAEA,05/02/2024,ICT,Property,Network Installation Solutions Ltd,5168387,"1,890.00"
DESNZ,UKAEA,21/02/2024,Engineering Goods,Property,Edmundson Electricals Ltd,5170438,"1,916.41"
DESNZ,UKAEA,12/02/2024,Energy and Fuels,Property,EDF Energy,5169366,"1,942.07"
DESNZ,UKAEA,21/02/2024,Facilities,Property,Graham Asset Management Ltd,5170412,"1,953.55"
DESNZ,UKAEA,14/02/2024,Professional Services,Property,Avison Young (UK) Limited,5169714,"2,040.00"
DESNZ,UKAEA,07/02/2024,Facilities,Property,Baxter Storey Ltd.,5168980,"2,047.59"
DESNZ,UKAEA,19/02/2024,Engineering Goods,Property,Edmundson Electricals Ltd,5170167,"2,075.90"
DESNZ,UKAEA,07/02/2024,Facilities,Property,Gunfire Ltd,5168943,"2,086.50"
DESNZ,UKAEA,07/02/2024,Facilities,Property,Vergo Pest Management Ltd,5169139,"2,155.89"
DESNZ,UKAEA,07/02/2024,Energy and Fuels,Property,EDF Energy,5169174,"2,185.58"
DESNZ,UKAEA,07/02/2024,Facilities,Property,Inspectas Compliance Ltd,5168803,"2,190.00"
DESNZ,UKAEA,05/02/2024,Facilities,Property,OCS Group UK Ltd,5168696,"2,284.04"
DESNZ,UKAEA,19/02/2024,Engineering Goods,Property,Edmundson Electricals Ltd,5169858,"2,342.00"
DESNZ,UKAEA,07/02/2024,Temporary Staff - Rullion CMF/PO,Property,Rullion Engineering Ltd,5169203,"2,424.91"
DESNZ,UKAEA,21/02/2024,Waste Management,Property,New Pig Ltd,5170431,"2,563.95"
DESNZ,UKAEA,21/02/2024,Facilities,Property,Wilson James Limited,5170383,"2,939.15"
DESNZ,UKAEA,07/02/2024,Personnel Related,Property,Rullion Engineering Ltd,5169185,"3,128.75"
DESNZ,UKAEA,07/02/2024,Personnel Related,Property,Rullion Engineering Ltd,5169186,"3,128.75"
DESNZ,UKAEA,21/02/2024,ICT,Property,Spidex Software Limited,5170377,"3,133.15"
DESNZ,UKAEA,12/02/2024,Energy and Fuels,Property,EDF Energy,5169318,"3,311.45"
DESNZ,UKAEA,14/02/2024,Facilities,Property,Idverde Ltd,5169400,"3,420.00"
DESNZ,UKAEA,12/02/2024,Energy and Fuels,Property,EDF Energy,5169321,"3,469.77"
DESNZ,UKAEA,27/02/2024,Facilities,Property,Inspectas Compliance Ltd,5170737,"3,560.00"
DESNZ,UKAEA,05/02/2024,Professional Services,Property,Glanville Consultants,5168905,"4,000.00"
DESNZ,UKAEA,07/02/2024,Communications,Property,Digipress,5169158,"4,070.00"
DESNZ,UKAEA,07/02/2024,Energy and Fuels,Property,EDF Energy,5169176,"4,166.06"
DESNZ,UKAEA,27/02/2024,Facilities,Property,Gunfire Ltd,5170584,"4,195.00"
DESNZ,UKAEA,14/02/2024,Facilities,Property,Wilson James Limited,5169746,"4,231.91"
DESNZ,UKAEA,12/02/2024,Facilities,Property,Nationwide Facilities Ltd,5169357,"4,346.00"
DESNZ,UKAEA,27/02/2024,Facilities,Property,Inspectas Compliance Ltd,5170734,"4,380.00"
DESNZ,UKAEA,27/02/2024,ICT,Property,Network Installation Solutions Ltd,5170470,"4,550.00"
DESNZ,UKAEA,19/02/2024,Professional Services,Property,Ridge And Partners Llp,5170147,"4,693.31"
DESNZ,UKAEA,21/02/2024,Construction,Property,AtkinsR�alis � Lead Advisor Design Contract,5170275,"4,750.00"
DESNZ,UKAEA,05/02/2024,Facilities,Property,Wilson James Limited,5168593,"4,968.98"
DESNZ,UKAEA,14/02/2024,Facilities,Property,Wilson James Limited,5169748,"4,973.09"
DESNZ,UKAEA,07/02/2024,Facilities,Property,Wilson James Limited,5169024,"5,068.08"
DESNZ,UKAEA,14/02/2024,Facilities,Property,Bojen Electrical Ltd,5169256,"5,336.10"
DESNZ,UKAEA,21/02/2024,Construction,Property,Altrad Babcock Limited,5170365,"5,371.98"
DESNZ,UKAEA,27/02/2024,Facilities,Property,Trinity Fire & Security Systems Ltd,5170613,"5,592.86"
DESNZ,UKAEA,07/02/2024,Facilities,Property,Wilson James Limited,5169024,"5,885.13"
DESNZ,UKAEA,27/02/2024,Facilities,Property,Trinity Fire & Security Systems Ltd,5170713,"5,970.02"
DESNZ,UKAEA,07/02/2024,Facilities,Property,Gunfire Ltd,5168944,"6,466.73"
DESNZ,UKAEA,12/02/2024,Energy and Fuels,Property,EDF Energy,5169365,"6,650.09"
DESNZ,UKAEA,07/02/2024,Energy and Fuels,Property,EDF Energy,5169175,"6,990.84"
DESNZ,UKAEA,05/02/2024,Facilities,Property,Trinity Fire & Security Systems Ltd,5168481,"7,339.88"
DESNZ,UKAEA,27/02/2024,Facilities,Property,Trinity Fire & Security Systems Ltd,5170659,"7,339.88"
DESNZ,UKAEA,21/02/2024,Facilities,Property,Graham Asset Management Ltd,5170412,"7,440.14"
DESNZ,UKAEA,14/02/2024,Facilities,Property,Wilson James Limited,5169748,"7,630.23"
DESNZ,UKAEA,12/02/2024,Waste Management,Property,Hills Waste Solutions Ltd,5169427,"7,653.61"
DESNZ,UKAEA,05/02/2024,Facilities,Property,OCS Group UK Ltd,5168696,"8,374.81"
DESNZ,UKAEA,27/02/2024,Facilities,Property,Gunfire Ltd,5170582,"8,433.00"
DESNZ,UKAEA,27/02/2024,Temporary Staff - Industrial Placements,Property,Arcadis Consulting (UK) Limited,5170576,"8,541.95"
DESNZ,UKAEA,14/02/2024,Facilities,Property,Wilson James Limited,5169748,"8,810.59"
DESNZ,UKAEA,07/02/2024,Facilities,Property,Wilson James Limited,5169024,"8,851.85"
DESNZ,UKAEA,12/02/2024,Professional Services,Property,AtkinsR�alis � Lead Advisor Design Contract,5169501,"9,075.25"
DESNZ,UKAEA,21/02/2024,Construction,Property,Altrad Babcock Limited,5169819,"9,232.84"
DESNZ,UKAEA,27/02/2024,Construction,Property,AtkinsR�alis � Lead Advisor Design Contract,5170632,"9,500.00"
DESNZ,UKAEA,27/02/2024,Facilities,Property,Trinity Fire & Security Systems Ltd,5170705,"9,722.60"
DESNZ,UKAEA,27/02/2024,Facilities,Property,Inspectas Compliance Ltd,5170731,"10,000.00"
DESNZ,UKAEA,27/02/2024,Facilities,Property,Inspectas Compliance Ltd,5170732,"10,000.00"
DESNZ,UKAEA,21/02/2024,Construction,Property,Edmundson Electricals Ltd,5170442,"10,150.00"
DESNZ,UKAEA,07/02/2024,Facilities,Property,VVB Engineering (UK)Ltd,5168926,"10,378.75"
DESNZ,UKAEA,21/02/2024,Energy and Fuels,Property,EDF Energy,5170385,"11,214.05"
DESNZ,UKAEA,14/02/2024,Facilities,Property,Wilson James Limited,5169748,"11,367.78"
DESNZ,UKAEA,07/02/2024,Energy and Fuels,Property,EDF Energy,5169188,"11,440.92"
DESNZ,UKAEA,07/02/2024,Energy and Fuels,Property,EDF Energy,5169179,"11,527.12"
DESNZ,UKAEA,07/02/2024,Facilities,Property,Wilson James Limited,5169024,"11,780.49"
DESNZ,UKAEA,21/02/2024,Construction,Property,Altrad Babcock Limited,5169818,"11,860.50"
DESNZ,UKAEA,05/02/2024,Facilities,Property,Trinity Fire & Security Systems Ltd,5168484,"11,910.56"
DESNZ,UKAEA,12/02/2024,Facilities,Property,Trinity Fire & Security Systems Ltd,5169340,"12,282.19"
DESNZ,UKAEA,07/02/2024,Energy and Fuels,Property,EDF Energy,5169173,"12,623.48"
DESNZ,UKAEA,21/02/2024,Construction,Property,Altrad Babcock Limited,5169817,"12,906.19"
DESNZ,UKAEA,21/02/2024,Construction,Property,AtkinsR�alis � Lead Advisor Design Contract,5170362,"13,999.00"
DESNZ,UKAEA,12/02/2024,Facilities,Property,OCS Group UK Ltd,5169403,"14,691.98"
DESNZ,UKAEA,12/02/2024,Facilities,Property,OCS Group UK Ltd,5169405,"14,691.98"
DESNZ,UKAEA,27/02/2024,Facilities,Property,Inspectas Compliance Ltd,5170735,"15,150.00"
DESNZ,UKAEA,21/02/2024,Facilities,Property,Dalkia Operations Ltd,5170246,"15,357.87"
DESNZ,UKAEA,27/02/2024,Construction,Property,AtkinsR�alis � Lead Advisor Design Contract,5170709,"15,369.00"
DESNZ,UKAEA,21/02/2024,Construction,Property,Altrad Babcock Limited,5169820,"16,116.65"
DESNZ,UKAEA,14/02/2024,Facilities,Property,Idverde Ltd,5169404,"17,831.28"
DESNZ,UKAEA,07/02/2024,Facilities,Property,Baxter Storey Ltd.,5168981,"18,360.69"
DESNZ,UKAEA,27/02/2024,Facilities,Property,Trinity Fire & Security Systems Ltd,5170710,"20,002.67"
DESNZ,UKAEA,21/02/2024,Facilities,Property,Advanced Demand Side Management Limited,5170384,"24,440.36"
DESNZ,UKAEA,07/02/2024,Construction,Property,AtkinsR�alis � Lead Advisor Design Contract,5169046,"26,643.00"
DESNZ,UKAEA,12/02/2024,Energy and Fuels,Property,EDF Energy,5169317,"28,230.73"
DESNZ,UKAEA,21/02/2024,Facilities,Property,Graham Asset Management Ltd,5170412,"31,106.42"
DESNZ,UKAEA,27/02/2024,ICT,Property,Snelling Business Systems Limited,5170699,"34,685.00"
DESNZ,UKAEA,07/02/2024,Energy and Fuels,Property,EDF Energy,5169187,"34,697.13"
DESNZ,UKAEA,27/02/2024,Construction,Property,Greenford Limited,5170561,"37,157.21"
DESNZ,UKAEA,14/02/2024,Facilities,Property,Wilson James Limited,5169748,"49,959.04"
DESNZ,UKAEA,14/02/2024,Facilities,Property,Wilson James Limited,5169748,"49,959.04"
DESNZ,UKAEA,07/02/2024,Facilities,Property,Wilson James Limited,5169024,"50,046.82"
DESNZ,UKAEA,07/02/2024,Facilities,Property,Wilson James Limited,5169024,"50,046.82"
DESNZ,UKAEA,12/02/2024,Facilities,Property,OCS Group UK Ltd,5169403,"55,927.11"
DESNZ,UKAEA,12/02/2024,Facilities,Property,OCS Group UK Ltd,5169405,"55,927.11"
DESNZ,UKAEA,07/02/2024,Energy and Fuels,Property,EDF Energy,5169178,"58,892.47"
DESNZ,UKAEA,12/02/2024,Energy and Fuels,Property,EDF Energy,5169338,"70,778.73"
DESNZ,UKAEA,05/02/2024,Facilities,Property,South Oxfordshire District Council,5168815,"84,992.00"
DESNZ,UKAEA,27/02/2024,Construction,Property,AtkinsR�alis � Lead Advisor Design Contract,5170631,"85,100.00"
DESNZ,UKAEA,05/02/2024,ICT,Property,Computacenter UK Ltd,5168538,"85,814.46"
DESNZ,UKAEA,07/02/2024,Energy and Fuels,Property,EDF Energy,5169180,"87,854.74"
DESNZ,UKAEA,05/02/2024,Facilities,Property,South Oxfordshire District Council,5168816,"94,208.00"
DESNZ,UKAEA,21/02/2024,Energy and Fuels,Property,Total Gas & Power Ltd,5170394,"142,857.86"
DESNZ,UKAEA,07/02/2024,Facilities,Other,Amber Integrated Controls & Automation Ltd.,5167216,"-6,945.00"
DESNZ,UKAEA,07/02/2024,Travel,Other,Employee Expenses,20019877,-759.89
DESNZ,UKAEA,21/02/2024,Engineering Goods,Other,RS Components Ltd,5170418,501.81
DESNZ,UKAEA,27/02/2024,Travel,Other,Employee Expenses,20020225,503.57
DESNZ,UKAEA,05/02/2024,Engineering Goods,Other,BPX Electromechanical Company Limited,5168457,510.78
DESNZ,UKAEA,05/02/2024,Engineering Goods,Other,Helix Precision Machining Limited,5168512,518.20
DESNZ,UKAEA,19/02/2024,Engineering Goods,Other,RS Components Ltd,5170191,528.77
DESNZ,UKAEA,07/02/2024,Travel,Other,Wessex Fleet Solutions Ltd,5168937,528.89
DESNZ,UKAEA,27/02/2024,Travel,Other,Rullion Engineering Ltd,5170786,531.62
DESNZ,UKAEA,05/02/2024,Engineering Goods,Other,Acrona Engineering Ltd,5168370,543.75
DESNZ,UKAEA,12/02/2024,Other Employee Expenses,Other,Employee Expenses,20019953,551.00
DESNZ,UKAEA,27/02/2024,Engineering Goods,Other,Complete Storage & Interiors Ltd. (CSI),5170778,560.12
DESNZ,UKAEA,07/02/2024,Other Employee Expenses,Other,Employee Expenses,20019871,567.98
DESNZ,UKAEA,19/02/2024,Engineering Goods,Other,Rittal Limited,5170247,568.93
DESNZ,UKAEA,05/02/2024,Engineering Goods,Other,R.A.F General Engineering Ltd,5168703,581.28
DESNZ,UKAEA,05/02/2024,Engineering Goods,Other,Lapp Limited,5168883,594.05
DESNZ,UKAEA,12/02/2024,Engineering Goods,Other,Ind-Tech Ltd,5169593,600.09
DESNZ,UKAEA,27/02/2024,Engineering Goods,Other,Budget Forktrucks Ltd,5170671,615.33
DESNZ,UKAEA,07/02/2024,Other Employee Expenses,Other,Employee Expenses,20019871,660.02
DESNZ,UKAEA,14/02/2024,Relocation Costs,Other,Employee Expenses,20020026,677.00
DESNZ,UKAEA,14/02/2024,Relocation Costs,Other,Employee Expenses,20020026,677.00
DESNZ,UKAEA,27/02/2024,Engineering Goods,Other,Condec Industrial Maintenance,5170469,695.00
DESNZ,UKAEA,27/02/2024,Engineering Goods,Other,RCB Logic Limited,5170487,707.00
DESNZ,UKAEA,21/02/2024,Engineering Goods,Other,Mouser Electronics,5170256,711.30
DESNZ,UKAEA,05/02/2024,Engineering Goods,Other,Harting Ltd,5168635,728.28
DESNZ,UKAEA,07/02/2024,Travel,Other,Employee Expenses,20019886,734.34
DESNZ,UKAEA,05/02/2024,Engineering Goods,Other,Harting Ltd,5168634,771.50
DESNZ,UKAEA,27/02/2024,Engineering Goods,Other,Staubli ( UK) Ltd,5170799,783.45
DESNZ,UKAEA,27/02/2024,Engineering Goods,Other,Lewvac Components Ltd.,5170795,787.50
DESNZ,UKAEA,05/02/2024,Travel,Other,Employee Expenses,20019804,809.36
DESNZ,UKAEA,05/02/2024,Travel,Other,Employee Expenses,20019785,845.60
DESNZ,UKAEA,05/02/2024,Engineering Goods,Other,Tyler Bros Ltd,5168602,848.00
DESNZ,UKAEA,05/02/2024,Travel,Other,Wessex Fleet Solutions Ltd,5168515,884.00
DESNZ,UKAEA,07/02/2024,Travel,Other,Rullion Engineering Ltd,5168600,889.88
DESNZ,UKAEA,21/02/2024,Engineering Goods,Other,Lonestar Fasteners Europe Ltd,5170408,904.20
DESNZ,UKAEA,05/02/2024,Engineering Goods,Other,Shropshire Stainless & Aluminium Ltd,5168477,947.90
DESNZ,UKAEA,21/02/2024,Engineering Goods,Other,SMC Pneumatics UK Ltd,5170263,950.13
DESNZ,UKAEA,12/02/2024,Engineering Goods,Other,Lonestar Fasteners Europe Ltd,5169495,975.00
DESNZ,UKAEA,12/02/2024,Travel,Other,Employee Expenses,20019948,977.24
DESNZ,UKAEA,12/02/2024,Engineering Goods,Other,Igus UK Ltd,5169615,"1,026.00"
DESNZ,UKAEA,27/02/2024,Travel,Other,Employee Expenses,20020225,"1,038.55"
DESNZ,UKAEA,27/02/2024,Travel,Other,Employee Expenses,20020277,"1,048.37"
DESNZ,UKAEA,05/02/2024,Other Employee Expenses,Other,Employee Expenses,20019782,"1,070.57"
DESNZ,UKAEA,27/02/2024,Engineering Goods,Other,Farnell Electronic Components Ltd,5170531,"1,072.10"
DESNZ,UKAEA,07/02/2024,Learning and Development,Other,Elevation Training & Development Ltd,5169149,"1,100.00"
DESNZ,UKAEA,07/02/2024,Travel,Other,Employee Expenses,20019877,"1,114.14"
DESNZ,UKAEA,07/02/2024,Travel,Other,Employee Expenses,20019886,"1,122.05"
DESNZ,UKAEA,27/02/2024,Other Employee Expenses,Other,Employee Expenses,20020234,"1,135.66"
DESNZ,UKAEA,12/02/2024,Engineering Goods,Other,Boxer Machine Tools Services,5169292,"1,158.75"
DESNZ,UKAEA,14/02/2024,ICT,Other,Oracle Corporation UK Limited,5169723,"1,295.23"
DESNZ,UKAEA,07/02/2024,Engineering Goods,Other,LR Engineering,5168992,"1,387.00"
DESNZ,UKAEA,19/02/2024,Engineering Goods,Other,Mouser Electronics,5170063,"1,412.50"
DESNZ,UKAEA,21/02/2024,Engineering Goods,Other,Garner Osborne Circuits Ltd,5170402,"1,440.38"
DESNZ,UKAEA,05/02/2024,Engineering Goods,Other,R.A.F General Engineering Ltd,5168702,"1,442.99"
DESNZ,UKAEA,21/02/2024,Engineering Goods,Other,Lonestar Fasteners Europe Ltd,5170407,"1,454.10"
DESNZ,UKAEA,05/02/2024,Engineering Goods,Other,Lonestar Fasteners Europe Ltd,5168431,"1,518.80"
DESNZ,UKAEA,12/02/2024,Engineering Goods,Other,Ind-Tech Ltd,5169595,"1,520.19"
DESNZ,UKAEA,19/02/2024,Engineering Goods,Other,Machining Techology (Mach-Tech) Ltd,5170042,"1,568.64"
DESNZ,UKAEA,27/02/2024,Travel,Other,Employee Expenses,20020277,"1,608.05"
DESNZ,UKAEA,05/02/2024,Engineering Goods,Other,Lonestar Fasteners Europe Ltd,5168432,"1,611.00"
DESNZ,UKAEA,07/02/2024,Construction,Other,AtkinsR�alis � Lead Advisor Design Contract,5169045,"1,835.00"
DESNZ,UKAEA,27/02/2024,Engineering Goods,Other,Condec Industrial Maintenance,5170458,"1,860.00"
DESNZ,UKAEA,12/02/2024,Other Employee Expenses,Other,Employee Expenses,20019953,"1,872.00"
DESNZ,UKAEA,19/02/2024,ICT,Other,Computacenter UK Ltd,5170157,"1,912.92"
DESNZ,UKAEA,14/02/2024,Relocation Costs,Other,Employee Expenses,20020027,"1,917.76"
DESNZ,UKAEA,21/02/2024,Travel,Other,Employee Expenses,20020144,"1,969.01"
DESNZ,UKAEA,14/02/2024,Relocation Costs,Other,Employee Expenses,20020027,"2,003.87"
DESNZ,UKAEA,27/02/2024,Learning and Development,Other,Harrison Network Ltd,5170765,"2,005.60"
DESNZ,UKAEA,05/02/2024,Travel,Other,Employee Expenses,20019786,"2,064.36"
DESNZ,UKAEA,27/02/2024,ICT,Other,Dassault Systemes UK Ltd,5170670,"2,080.00"
DESNZ,UKAEA,07/02/2024,Other Employee Expenses,Other,Employee Expenses,20019927,"2,123.73"
DESNZ,UKAEA,07/02/2024,Travel,Other,Employee Expenses,20019885,"2,141.39"
DESNZ,UKAEA,07/02/2024,Other Employee Expenses,Other,Employee Expenses,20019871,"2,252.09"
DESNZ,UKAEA,27/02/2024,Engineering Goods,Other,Rittal Limited,5170524,"2,254.41"
DESNZ,UKAEA,12/02/2024,Learning and Development,Other,Method Functional Safety Ltd.,5169314,"2,350.00"
DESNZ,UKAEA,05/02/2024,Engineering Goods,Other,Acrona Engineering Ltd,5168368,"2,376.00"
DESNZ,UKAEA,05/02/2024,Engineering Goods,Other,Acrona Engineering Ltd,5168369,"2,376.00"
DESNZ,UKAEA,05/02/2024,Engineering Goods,Other,Edm Precision Technologies Ltd,5168534,"2,390.00"
DESNZ,UKAEA,19/02/2024,Facilities,Other,Harrison Property Holdings (Malton) Limited,5170095,"2,500.00"
DESNZ,UKAEA,19/02/2024,Engineering Goods,Other,Igus UK Ltd,5170043,"2,559.00"
DESNZ,UKAEA,27/02/2024,Temporary Staff - Industrial Placements,Other,Element Digital Engineering Ltd,5170461,"2,827.99"
DESNZ,UKAEA,27/02/2024,Personnel Related,Other,TTHCURZON Relocation Ltd,5170651,"2,833.40"
DESNZ,UKAEA,14/02/2024,Relocation Costs,Other,Employee Expenses,20020027,"2,927.32"
DESNZ,UKAEA,27/02/2024,Personnel Related,Other,TTHCURZON Relocation Ltd,5170688,"3,355.00"
DESNZ,UKAEA,05/02/2024,Other Employee Expenses,Other,Employee Expenses,20019822,"3,425.55"
DESNZ,UKAEA,07/02/2024,Other Employee Expenses,Other,Employee Expenses,20019925,"3,428.76"
DESNZ,UKAEA,05/02/2024,Professional Services,Other,HM Treasury T/A Government Internal Audit Service,5168524,"3,429.00"
DESNZ,UKAEA,07/02/2024,Other Employee Expenses,Other,Employee Expenses,20019924,"3,430.52"
DESNZ,UKAEA,27/02/2024,Other Employee Expenses,Other,Employee Expenses,20020200,"3,435.20"
DESNZ,UKAEA,14/02/2024,Other Employee Expenses,Other,Employee Expenses,20020039,"3,436.97"
DESNZ,UKAEA,27/02/2024,Other Employee Expenses,Other,Employee Expenses,20020207,"3,441.67"
DESNZ,UKAEA,12/02/2024,Learning and Development,Other,Complete Training Solutions,5169607,"3,600.00"
DESNZ,UKAEA,19/02/2024,Engineering Goods,Other,Machining Techology (Mach-Tech) Ltd,5170050,"3,734.29"
DESNZ,UKAEA,14/02/2024,Engineering Goods,Other,Jacobs Clean Energy Ltd - GBP,5169768,"3,749.34"
DESNZ,UKAEA,14/02/2024,Engineering Goods,Other,Pure Innovate UK Ltd,5169654,"3,774.54"
DESNZ,UKAEA,12/02/2024,Travel,Other,Employee Expenses,20019957,"4,003.54"
DESNZ,UKAEA,07/02/2024,Other Employee Expenses,Other,Employee Expenses,20019903,"4,016.92"
DESNZ,UKAEA,14/02/2024,Other Employee Expenses,Other,Employee Expenses,20020052,"4,696.55"
DESNZ,UKAEA,07/02/2024,Other Employee Expenses,Other,Employee Expenses,20019927,"4,696.95"
DESNZ,UKAEA,07/02/2024,Engineering Goods,Other,M&I Materials Ltd,5169012,"5,224.13"
DESNZ,UKAEA,27/02/2024,Other Employee Expenses,Other,Employee Expenses,20020224,"5,401.71"
DESNZ,UKAEA,12/02/2024,Engineering Goods,Other,ODU-UK Ltd.,5169613,"5,567.15"
DESNZ,UKAEA,27/02/2024,Engineering Goods,Other,ODU-UK Ltd.,5170689,"5,614.93"
DESNZ,UKAEA,05/02/2024,Engineering Goods,Other,J Darbyshire & Son Ltd,5168660,"5,902.00"
DESNZ,UKAEA,07/02/2024,Other Employee Expenses,Other,Employee Expenses,20019889,"6,081.57"
DESNZ,UKAEA,27/02/2024,Personnel Related,Other,TTHCURZON Relocation Ltd,5170649,"6,385.00"
DESNZ,UKAEA,05/02/2024,Engineering Goods,Other,Machining Techology (Mach-Tech) Ltd,5168527,"6,444.32"
DESNZ,UKAEA,19/02/2024,Engineering Goods,Other,Igus UK Ltd,5170044,"6,875.15"
DESNZ,UKAEA,19/02/2024,Research,Other,HyBird Limited,5170179,"6,966.15"
DESNZ,UKAEA,27/02/2024,Learning and Development,Other,Iain Macleod Associates Ltd,5170792,"7,200.00"
DESNZ,UKAEA,12/02/2024,Engineering Goods,Other,Anixter UK Ltd,5169297,"7,568.40"
DESNZ,UKAEA,19/02/2024,Research,Other,Altido Group Limited,5170180,"8,000.00"
DESNZ,UKAEA,05/02/2024,Engineering Goods,Other,Machining Techology (Mach-Tech) Ltd,5168531,"8,029.01"
DESNZ,UKAEA,07/02/2024,Facilities,Other,Amber Integrated Controls & Automation Ltd.,5169058,"8,320.00"
DESNZ,UKAEA,05/02/2024,Personnel Related,Other,TTHCURZON Relocation Ltd,5168543,"8,839.58"
DESNZ,UKAEA,28/02/2024,Facilities,Other,Tech Weld I Blekinge AB,5170690,"9,555.60"
DESNZ,UKAEA,21/02/2024,Consultancy - Other (per Cabinet Office definition),Other,Energus,5170390,"14,264.68"
DESNZ,UKAEA,14/02/2024,Engineering Goods,Other,TOIA Ltd,5169678,"18,000.00"
DESNZ,UKAEA,28/02/2024,Facilities,Other,Tech Weld I Blekinge AB,5170691,"18,827.72"
DESNZ,UKAEA,05/02/2024,Facilities,Other,PDL Solutions (Europe) Limited,5168511,"19,750.00"
DESNZ,UKAEA,12/02/2024,Engineering Goods,Other,TM Engineers (Midlands) Limited (E6280),5169567,"19,751.25"
DESNZ,UKAEA,08/02/2024,Research,Other,Vetronics Research Centre EU Ltd,5168738,"24,904.50"
DESNZ,UKAEA,21/02/2024,Engineering Goods,Other,Hutchinson Engineering Limited,5170441,"29,400.00"
DESNZ,UKAEA,05/02/2024,Engineering Goods,Other,Helix Precision Machining Limited,5168510,"35,253.60"
DESNZ,UKAEA,08/02/2024,Research,Other,Vetronics Research Centre EU Ltd,5168738,"49,522.50"
DESNZ,UKAEA,19/02/2024,Facilities,Other,TOIA Ltd,5170143,"50,000.00"
DESNZ,UKAEA,21/02/2024,Construction,Other,Optimum Electrical Engineering Limited,5170395,"76,861.36"
DESNZ,UKAEA,19/02/2024,Research,Other,University of Manchester (GBP),5170181,"100,000.00"
DESNZ,UKAEA,19/02/2024,Research,Other,University of Manchester (GBP),5170182,"200,000.00"
DESNZ,UKAEA,12/02/2024,Consultancy - Other (per Cabinet Office definition),Other,Energus,5169353,"210,900.00"
DESNZ,UKAEA,27/02/2024,Engineering Goods,Other,Createc Ltd,5170766,"420,691.80"
DESNZ,UKAEA,07/02/2024,Consultancy - Other (per Cabinet Office definition),Fusion,Ove Arup & Partners,5164384,"-8,475.00"
DESNZ,UKAEA,27/02/2024,Professional Services,Fusion,Carter Jonas LLP,5170504,500.00
DESNZ,UKAEA,14/02/2024,Personnel Related,Fusion,WR Group Limited,5169765,598.00
DESNZ,UKAEA,14/02/2024,Personnel Related,Fusion,WR Group Limited,5169758,665.00
DESNZ,UKAEA,14/02/2024,Personnel Related,Fusion,WR Group Limited,5169759,665.00
DESNZ,UKAEA,05/02/2024,Professional Services,Fusion,Burges Salmon,5168430,676.00
DESNZ,UKAEA,12/02/2024,Engineering Goods,Fusion,City Electrical Factors,5169236,678.17
DESNZ,UKAEA,19/02/2024,Office Solutions,Fusion,Lyreco UK Limited,5169846,794.42
DESNZ,UKAEA,12/02/2024,Travel,Fusion,Wessex Fleet Solutions Ltd,5169442,819.00
DESNZ,UKAEA,14/02/2024,Travel,Fusion,Wessex Fleet Solutions Ltd,5169798,819.00
DESNZ,UKAEA,19/02/2024,Office Solutions,Fusion,Lyreco UK Limited,5169845,909.10
DESNZ,UKAEA,21/02/2024,Travel,Fusion,Wessex Fleet Solutions Ltd,5170303,"1,092.00"
DESNZ,UKAEA,07/02/2024,ICT,Fusion,Cinos Limited,5168930,"1,147.50"
DESNZ,UKAEA,05/02/2024,ICT,Fusion,British Telecommunications plc - VOIP Services,5168390,"1,542.07"
DESNZ,UKAEA,21/02/2024,Facilities,Fusion,AtkinsRealis UK Ltd,5170322,"1,564.80"
DESNZ,UKAEA,22/02/2024,Research,Fusion,mi2-factory GmbH,5170485,"1,626.16"
DESNZ,UKAEA,05/02/2024,Research,Fusion,University of Warwick - GBP,5168588,"1,918.39"
DESNZ,UKAEA,05/02/2024,Consultancy - Other (per Cabinet Office definition),Fusion,4C Associates Ltd,5168910,"2,082.30"
DESNZ,UKAEA,05/02/2024,Research,Fusion,Lancaster University,5168739,"2,327.75"
DESNZ,UKAEA,19/02/2024,Consultancy - Other (per Cabinet Office definition),Fusion,Cabinet Office (Government Business Services),5169988,"2,350.00"
DESNZ,UKAEA,22/02/2024,Research,Fusion,Research Trust of Victoria University of Wellington,5170061,"2,375.00"
DESNZ,UKAEA,19/02/2024,ICT,Fusion,British Telecommunications plc - VOIP Services,5170029,"2,385.00"
DESNZ,UKAEA,21/02/2024,Engineering Goods,Fusion,Edwards Limited,5170417,"2,436.00"
DESNZ,UKAEA,12/02/2024,Professional Services,Fusion,Rolls Royce Plc,5169290,"2,564.73"
DESNZ,UKAEA,07/02/2024,Temporary Staff - Rullion CMF/PO,Fusion,Rullion Engineering Ltd,5169134,"2,668.22"
DESNZ,UKAEA,27/02/2024,Operational Goods,Fusion,John Wiley & Sons Ltd,5170410,"2,780.00"
DESNZ,UKAEA,05/02/2024,Professional Services,Fusion,The Harris Partnership Ltd,5168437,"3,375.00"
DESNZ,UKAEA,05/02/2024,Engineering Goods,Fusion,Acrona Engineering Ltd,5168809,"3,444.00"
DESNZ,UKAEA,19/02/2024,Facilities,Fusion,AtkinsRealis UK Ltd,5170212,"3,702.30"
DESNZ,UKAEA,07/02/2024,Temporary Staff - Industrial Placements,Fusion,Nuvia Limited,5169190,"3,703.92"
DESNZ,UKAEA,05/02/2024,Personnel Related,Fusion,Praesta Partners LLP,5168422,"4,083.60"
DESNZ,UKAEA,14/02/2024,Consultancy - Other (per Cabinet Office definition),Fusion,Morris Inglis & Associates Limited,5169685,"4,122.34"
DESNZ,UKAEA,07/02/2024,Temporary Staff - Rullion CMF/PO,Fusion,Rullion Engineering Ltd,5168860,"4,298.40"
DESNZ,UKAEA,05/02/2024,Professional Services,Fusion,Burges Salmon,5168795,"4,356.00"
DESNZ,UKAEA,07/02/2024,Temporary Staff - Rullion CMF/PO,Fusion,Rullion Engineering Ltd,5168699,"4,641.60"
DESNZ,UKAEA,19/02/2024,Communications,Fusion,Camargue Group Limited,5170253,"4,870.00"
DESNZ,UKAEA,07/02/2024,Temporary Staff - Rullion CMF/PO,Fusion,Rullion Engineering Ltd,5168793,"5,053.24"
DESNZ,UKAEA,14/02/2024,Temporary Staff - Rullion CMF/PO,Fusion,Rullion Engineering Ltd,5169443,"5,129.50"
DESNZ,UKAEA,05/02/2024,ICT,Fusion,Dassault Systemes UK Ltd,5168509,"5,543.88"
DESNZ,UKAEA,21/02/2024,Consultancy - Other (per Cabinet Office definition),Fusion,Jacobs U.K. Limited,5170294,"5,801.59"
DESNZ,UKAEA,07/02/2024,Consultancy - Other (per Cabinet Office definition),Fusion,Jacobs U.K. Limited,5169150,"5,887.00"
DESNZ,UKAEA,21/02/2024,Consultancy - Other (per Cabinet Office definition),Fusion,Jacobs U.K. Limited,5170295,"6,280.76"
DESNZ,UKAEA,21/02/2024,Consultancy - Other (per Cabinet Office definition),Fusion,AtkinsRealis UK Ltd,5170300,"6,811.48"
DESNZ,UKAEA,27/02/2024,ICT,Fusion,Dassault Systemes UK Ltd,5170807,"7,175.00"
DESNZ,UKAEA,07/02/2024,Temporary Staff - Rullion CMF/PO,Fusion,Rullion Engineering Ltd,5168757,"7,203.84"
DESNZ,UKAEA,07/02/2024,Temporary Staff - Rullion CMF/PO,Fusion,Rullion Engineering Ltd,5168909,"7,224.48"
DESNZ,UKAEA,07/02/2024,Temporary Staff - Rullion CMF/PO,Fusion,Rullion Engineering Ltd,5168753,"7,381.93"
DESNZ,UKAEA,19/02/2024,Engineering Goods,Fusion,Quantum Design UK and Ireland Ltd,5170171,"7,454.00"
DESNZ,UKAEA,21/02/2024,ICT,Fusion,Academia,5170271,"7,581.07"
DESNZ,UKAEA,05/02/2024,Professional Services,Fusion,University of Warwick - GBP,5167283,"7,728.00"
DESNZ,UKAEA,05/02/2024,Professional Services,Fusion,University of Warwick - GBP,5168438,"7,728.00"
DESNZ,UKAEA,14/02/2024,Research,Fusion,AtkinsRealis UK Ltd,5169749,"8,161.00"
DESNZ,UKAEA,05/02/2024,Research,Fusion,AtkinsRealis UK Ltd,5168362,"8,242.60"
DESNZ,UKAEA,14/02/2024,Research,Fusion,AtkinsRealis UK Ltd,5169700,"8,242.60"
DESNZ,UKAEA,07/02/2024,Engineering Goods,Fusion,National Instruments Ltd,5169077,"8,298.00"
DESNZ,UKAEA,14/02/2024,Consultancy - Other (per Cabinet Office definition),Fusion,HBPW LLP,5169656,"8,945.70"
DESNZ,UKAEA,14/02/2024,Temporary Staff - Rullion CMF/PO,Fusion,Rullion Engineering Ltd,5169412,"9,405.60"
DESNZ,UKAEA,05/02/2024,Research,Fusion,AtkinsRealis UK Ltd,5168546,"9,494.95"
DESNZ,UKAEA,14/02/2024,Facilities,Fusion,Assystem UK Limited,5169736,"9,499.97"
DESNZ,UKAEA,21/02/2024,ICT,Fusion,boxxe Limited,5170257,"10,000.00"
DESNZ,UKAEA,05/02/2024,Research,Fusion,AtkinsRealis UK Ltd,5168621,"10,028.37"
DESNZ,UKAEA,07/02/2024,Temporary Staff - Rullion CMF/PO,Fusion,Rullion Engineering Ltd,5168942,"10,042.52"
DESNZ,UKAEA,19/02/2024,Temporary Staff - Industrial Placements,Fusion,Engineering Analysis Services Ltd,5170200,"10,277.05"
DESNZ,UKAEA,14/02/2024,Temporary Staff - Rullion CMF/PO,Fusion,Rullion Engineering Ltd,5169602,"10,439.40"
DESNZ,UKAEA,05/02/2024,Research,Fusion,University of York - GBP,5168579,"10,519.00"
DESNZ,UKAEA,07/02/2024,Consultancy - Other (per Cabinet Office definition),Fusion,Ove Arup & Partners,5169108,"11,000.00"
DESNZ,UKAEA,14/02/2024,Research,Fusion,AtkinsRealis UK Ltd,5169780,"11,000.00"
DESNZ,UKAEA,05/02/2024,Research,Fusion,AtkinsRealis UK Ltd,5168364,"11,796.50"
DESNZ,UKAEA,14/02/2024,Temporary Staff - Rullion CMF/PO,Fusion,Rullion Engineering Ltd,5169390,"12,321.88"
DESNZ,UKAEA,14/02/2024,Research,Fusion,AtkinsRealis UK Ltd,5169740,"12,389.38"
DESNZ,UKAEA,15/02/2024,Research,Fusion,VTT Technical Reserch Centre of  Finland,5169659,"12,500.00"
DESNZ,UKAEA,14/02/2024,Consultancy - Other (per Cabinet Office definition),Fusion,Frazer Nash Consultancy,5169743,"12,555.48"
DESNZ,UKAEA,05/02/2024,Research,Fusion,AtkinsRealis UK Ltd,5168361,"12,703.75"
DESNZ,UKAEA,14/02/2024,Research,Fusion,AtkinsRealis UK Ltd,5169779,"13,523.24"
DESNZ,UKAEA,21/02/2024,Engineering Goods,Fusion,Arbor Technology (UK) Limited,5170341,"14,881.00"
DESNZ,UKAEA,14/02/2024,Fleet,Fusion,Knowles Associates TFM Ltd,5169747,"15,113.53"
DESNZ,UKAEA,05/02/2024,Research,Fusion,AtkinsRealis UK Ltd,5168363,"15,397.63"
DESNZ,UKAEA,14/02/2024,Research,Fusion,AtkinsRealis UK Ltd,5169739,"15,397.63"
DESNZ,UKAEA,05/02/2024,Engineering Goods,Fusion,Edwards Limited,5168402,"16,878.40"
DESNZ,UKAEA,14/02/2024,Research,Fusion,AtkinsRealis UK Ltd,5169702,"19,704.60"
DESNZ,UKAEA,14/02/2024,Temporary Staff - Rullion CMF/PO,Fusion,Rullion Engineering Ltd,5169599,"19,900.00"
DESNZ,UKAEA,14/02/2024,Research,Fusion,AtkinsRealis UK Ltd,5169797,"22,000.00"
DESNZ,UKAEA,22/02/2024,Research,Fusion,General Atomics,5170306,"22,494.07"
DESNZ,UKAEA,05/02/2024,Professional Services,Fusion,AtkinsRealis UK Ltd,5168399,"22,629.34"
DESNZ,UKAEA,22/02/2024,ICT,Fusion,Quanscient Oy,5170528,"25,000.00"
DESNZ,UKAEA,19/02/2024,Consultancy - Other (per Cabinet Office definition),Fusion,AtkinsRealis UK Ltd,5170018,"26,696.40"
DESNZ,UKAEA,05/02/2024,Research,Fusion,AtkinsRealis UK Ltd,5168555,"26,953.56"
DESNZ,UKAEA,05/02/2024,Research,Fusion,AtkinsRealis UK Ltd,5168490,"27,984.00"
DESNZ,UKAEA,14/02/2024,Research,Fusion,AtkinsRealis UK Ltd,5169735,"30,008.10"
DESNZ,UKAEA,14/02/2024,Research,Fusion,AtkinsRealis UK Ltd,5169734,"30,896.00"
DESNZ,UKAEA,27/02/2024,Research,Fusion,University College London,5170645,"31,379.92"
DESNZ,UKAEA,27/02/2024,Professional Services,Fusion,WSP  UK Limited,5170824,"35,013.84"
DESNZ,UKAEA,14/02/2024,Professional Services,Fusion,4C Associates Ltd,5169795,"35,550.00"
DESNZ,UKAEA,27/02/2024,Professional Services,Fusion,Burges Salmon,5170624,"38,952.50"
DESNZ,UKAEA,28/02/2024,Professional Services,Fusion,Chart Energy & Chemicals Incorporation,5170720,"53,410.35"
DESNZ,UKAEA,19/02/2024,Professional Services,Fusion,Burges Salmon,5169854,"56,475.77"
DESNZ,UKAEA,19/02/2024,Professional Services,Fusion,Burges Salmon,5169854,"64,118.48"
DESNZ,UKAEA,12/02/2024,Consultancy - Other (per Cabinet Office definition),Fusion,Perfect Circle JV,5169497,"96,878.45"
DESNZ,UKAEA,27/02/2024,Professional Services,Fusion,WSP  UK Limited,5170825,"114,956.40"
DESNZ,UKAEA,14/02/2024,Professional Services,Fusion,4C Associates Ltd,5169795,"170,616.39"
DESNZ,UKAEA,27/02/2024,Travel,Other,Employee Expenses,20020247,600.54
DESNZ,UKAEA,12/02/2024,Professional Services,Other,Appleyard Lees IP LLP,5169254,646.90
DESNZ,UKAEA,27/02/2024,Construction,Property,AtkinsR�alis � Lead Advisor Design Contract,5170574,"14,260.18"
DESNZ,UKAEA,12/02/2024,Facilities,Other,Baxter Storey Ltd.,5169324,"8,699.93"
DESNZ,UKAEA,05/02/2024,Professional Services,Other,Burges Salmon,5168661,938.00
DESNZ,UKAEA,05/02/2024,Professional Services,Other,Burges Salmon,5168661,"1,122.00"
DESNZ,UKAEA,12/02/2024,Professional Services,Other,Burges Salmon,5169605,"4,414.00"
DESNZ,UKAEA,12/02/2024,Professional Services,Other,Burges Salmon,5169604,"4,498.00"
DESNZ,UKAEA,19/02/2024,Research,Other,Environment Agency,5170136,"113,537.83"
DESNZ,UKAEA,12/02/2024,Professional Services,Other,Equiniti,5169603,"103,930.90"
DESNZ,UKAEA,12/02/2024,Professional Services,Other,Ernst And Young Llp,5169601,"1,110.00"
DESNZ,UKAEA,12/02/2024,Professional Services,Other,Ernst And Young Llp,5169600,"1,290.00"
DESNZ,UKAEA,27/02/2024,Professional Services,Other,Government Actuary's Department,5170568,"16,749.90"
DESNZ,UKAEA,19/02/2024,Research,Other,HSE - Financial Operations,5170137,"5,808.16"
DESNZ,UKAEA,21/02/2024,Professional Services,Other,Kellogg Brown & Root Ltd,5170315,"88,500.00"
DESNZ,UKAEA,19/02/2024,Other External Costs,Other,Paymaster (1836) Ltd RE:UKAEA Recharges,5170218,"3,506.08"
DESNZ,UKAEA,19/02/2024,Professional Services,Other,Paymaster (1836) Ltd RE:UKAEA Recharges,5170209,"13,322.70"
DESNZ,UKAEA,14/02/2024,Operational Goods,Other,Premier People Solutions T/A Premier Partnership,5169741,"3,954.00"
DESNZ,UKAEA,05/02/2024,Learning and Development,Other,Solid Solutions Management Ltd,5168617,"9,900.00"
DESNZ,UKAEA,21/02/2024,Professional Services,Other,The Pensions Regulator,5170450,"3,079.92"
DESNZ,UKAEA,05/02/2024,Professional Services,Other,Unit 4 Business Software,5168607,"12,000.00"
DESNZ,UKAEA,07/02/2024,Professional Services,Other,Unit 4 Business Software,5169010,"12,000.00"
DESNZ,UKAEA,07/02/2024,Professional Services,Other,Unit 4 Business Software,5169019,"12,000.00"
DESNZ,UKAEA,27/02/2024,Professional Services,Other,Unit 4 Business Software,5170502,"12,000.00"
DESNZ,UKAEA,14/02/2024,Temporary Staff - Rullion CMF/PO,Other,Rullion Engineering Ltd,5169558,"1,046.20"
DESNZ,UKAEA,14/02/2024,Temporary Staff - Rullion CMF/PO,Other,Rullion Engineering Ltd,5169715,"1,131.76"
DESNZ,UKAEA,14/02/2024,Temporary Staff - Rullion CMF/PO,Other,Rullion Engineering Ltd,5169557,"1,804.13"
DESNZ,UKAEA,07/02/2024,Temporary Staff - Rullion CMF/PO,Other,Rullion Engineering Ltd,5169130,"1,813.05"
DESNZ,UKAEA,14/02/2024,Temporary Staff - Rullion CMF/PO,Other,Rullion Engineering Ltd,5169556,"1,910.27"
DESNZ,UKAEA,14/02/2024,Temporary Staff - Rullion CMF/PO,Other,Rullion Engineering Ltd,5169559,"1,910.27"
DESNZ,UKAEA,14/02/2024,Temporary Staff - Rullion CMF/PO,Other,Rullion Engineering Ltd,5169555,"1,965.09"
DESNZ,UKAEA,07/02/2024,Temporary Staff - Rullion CMF/PO,Other,Rullion Engineering Ltd,5169061,"1,975.05"
DESNZ,UKAEA,07/02/2024,Temporary Staff - Rullion CMF/PO,Other,Rullion Engineering Ltd,5168988,"2,026.35"
DESNZ,UKAEA,14/02/2024,Temporary Staff - Rullion CMF/PO,Other,Rullion Engineering Ltd,5169329,"2,430.00"
DESNZ,UKAEA,07/02/2024,Temporary Staff - Rullion CMF/PO,Other,Rullion Engineering Ltd,5168752,"2,871.39"
DESNZ,UKAEA,07/02/2024,Temporary Staff - Rullion CMF/PO,Other,Rullion Engineering Ltd,5168864,"3,012.45"
DESNZ,UKAEA,14/02/2024,Temporary Staff - Rullion CMF/PO,Other,Rullion Engineering Ltd,5169520,"3,123.00"
DESNZ,UKAEA,07/02/2024,Temporary Staff - Rullion CMF/PO,Other,Rullion Engineering Ltd,5168999,"3,411.45"
DESNZ,UKAEA,07/02/2024,Temporary Staff - Rullion CMF/PO,Other,Rullion Engineering Ltd,5169085,"3,827.55"
DESNZ,UKAEA,07/02/2024,Temporary Staff - Rullion CMF/PO,Other,Rullion Engineering Ltd,5168965,"5,588.85"
DESNZ,UKAEA,14/02/2024,Temporary Staff - Rullion CMF/PO,Other,Rullion Engineering Ltd,5169677,"5,615.94"
DESNZ,UKAEA,07/02/2024,Temporary Staff - Rullion CMF/PO,Other,Rullion Engineering Ltd,5168913,"6,819.75"
DESNZ,UKAEA,14/02/2024,Temporary Staff - Rullion CMF/PO,Other,Rullion Engineering Ltd,5169674,"6,846.54"
DESNZ,UKAEA,07/02/2024,Temporary Staff - Rullion CMF/PO,Other,Rullion Engineering Ltd,5169011,"7,482.69"
DESNZ,UKAEA,Various,Various,Various,Employee Expenses <500,Various,"75,949.86"
DESNZ,UKAEA,Various,Various,Various,Supplier,Various,"152,661.35"
